{"text_format":"1","workbook":"xlsx","n_sheets":1,"sheets":["Марина раскладка"],"not_rendered":{"charts":0,"images":0,"macros":1,"external_links":1,"defined_names":34,"comments":0,"pivot_tables":0},"unopened":[],"bounds":{"document_bytes":16777216,"sheet_cells":100000,"rows_first":2000,"rows_last":500,"rows_between":2000,"halvings":0,"cell_chars":16384,"cell_head_chars":4096},"cells_cut":0,"cells_raw":0,"read":"whole","date_system":"1900"}

{"sheet":"Марина раскладка","index":0,"n_rows":174,"n_cols":45,"rows_kept":174,"cut":false,"hidden":false,"merged":[[0,24,0,27]]}
[null,null,null,null,null,null,null,null,null,null,null,null,null,null,null,null,null,null,null,null,null,null,null,null,"А Как тут справится если несколько столбцев заданы в диспетчере имен под именем Экспорт ?"]
[null,null,null,null,"Хлебный","Дом","на :",{"$f":"[1]заявки!B1","v":"Книга3"},null,null,null,null,null,null,null,null,null,null,null,null,"Артис","Мария","мария2",null,null,"Число уникальных =",{"$f":"Уникальные_по_критерию(Экспорт)","v":59},null,null,null,null,null,"Хлебный","Дом","на :",{"$f":"[1]заявки!AD1","v":"00:00:00"}]
[]
[null,7771000,"Батон","Хлеб",7771001,"Булка","Хлеб",7771002,"Булка","Хлеб",7771015,"Батон","Хлеб",null,null,"Батон","Хлеб",null,null,null,null,{"$f":"МарияСписок","v":"27"},{"$f":"мариясписок2","v":0},null,null,null,"Уникальные",null,null,7771000,"Батон","Хлеб",7771001,"Булка","Хлеб",7771002,"Булка","Хлеб",7771015,"Батон","Хлеб",null,null,"Батон","Хлеб"]
[null,"65",{"$f":"IFERROR(IF(VLOOKUP($B5,[1]заявки!$A:$D,C$51,FALSE)=0,0,VLOOKUP($B5,[1]заявки!$A:$D,C$51,FALSE)),0)","v":24},{"$f":"IFERROR(IF(VLOOKUP($B5,[1]заявки!$A:$D,D$51,FALSE)=0,0,VLOOKUP($B5,[1]заявки!$A:$D,D$51,FALSE)),0)","v":7},"2-ф",{"$f":"IFERROR(IF(VLOOKUP($E5,[1]заявки!$A:$D,F$51,FALSE)=0,0,VLOOKUP($E5,[1]заявки!$A:$D,F$51,FALSE)),0)","v":10},{"$f":"IFERROR(IF(VLOOKUP($E5,[1]заявки!$A:$D,G$51,FALSE)=0,0,VLOOKUP($E5,[1]заявки!$A:$D,G$51,FALSE)),0)","v":4},null,{"$f":"IFERROR(IF(VLOOKUP($H5,[1]заявки!$A:$D,I$51,FALSE)=0,0,VLOOKUP($H5,[1]заявки!$A:$D,I$51,FALSE)),0)","v":0},{"$f":"IFERROR(IF(VLOOKUP($H5,[1]заявки!$A:$D,J$51,FALSE)=0,0,VLOOKUP($H5,[1]заявки!$A:$D,J$51,FALSE)),0)","v":0},null,{"$f":"IFERROR(IF(VLOOKUP($K5,[1]заявки!$A:$D,L$51,FALSE)=0,0,VLOOKUP($K5,[1]заявки!$A:$D,L$51,FALSE)),0)","v":0},{"$f":"IFERROR(IF(VLOOKUP($K5,[1]заявки!$A:$D,M$51,FALSE)=0,0,VLOOKUP($K5,[1]заявки!$A:$D,M$51,FALSE)),0)","v":0},7771006,"6-1",{"$f":"IFERROR(IF(VLOOKUP($O5,[1]заявки!$A:$D,P$51,FALSE)=0,0,VLOOKUP($O5,[1]заявки!$A:$D,P$51,FALSE)),0)","v":0},{"$f":"IFERROR(IF(VLOOKUP($O5,[1]заявки!$A:$D,Q$51,FALSE)=0,0,VLOOKUP($O5,[1]заявки!$A:$D,Q$51,FALSE)),0)","v":0},null,null,null,{"$f":"Артиссписок","v":"9"},"43","4",null,null,{"$f":"IFERROR(INDEX(Экспорт,MOD(ROW(O1)-1,COUNTA(Экспорт))+1,(ROW(O1)-1)/COUNTA(Экспорт)+1),\"\")","v":"65"},{"$f":"Уникальные_по_критерию(Экспорт,1)","v":"65"},null,null,"20",{"$f":"IFERROR(IF(VLOOKUP($B5,[1]заявки!$A:$D,AE$51,FALSE)=0,0,VLOOKUP($B5,[1]заявки!$A:$D,AE$51,FALSE)),0)","v":0},{"$f":"IFERROR(IF(VLOOKUP($B5,[1]заявки!$A:$D,AF$51,FALSE)=0,0,VLOOKUP($B5,[1]заявки!$A:$D,AF$51,FALSE)),0)","v":0},"2",{"$f":"IFERROR(IF(VLOOKUP($E5,[1]заявки!$A:$D,AH$51,FALSE)=0,0,VLOOKUP($E5,[1]заявки!$A:$D,AH$51,FALSE)),0)","v":0},{"$f":"IFERROR(IF(VLOOKUP($E5,[1]заявки!$A:$D,AI$51,FALSE)=0,0,VLOOKUP($E5,[1]заявки!$A:$D,AI$51,FALSE)),0)","v":0},null,{"$f":"IFERROR(IF(VLOOKUP($H5,[1]заявки!$A:$D,AK$51,FALSE)=0,0,VLOOKUP($H5,[1]заявки!$A:$D,AK$51,FALSE)),0)","v":0},{"$f":"IFERROR(IF(VLOOKUP($H5,[1]заявки!$A:$D,AL$51,FALSE)=0,0,VLOOKUP($H5,[1]заявки!$A:$D,AL$51,FALSE)),0)","v":0},"37",{"$f":"IFERROR(IF(VLOOKUP($K5,[1]заявки!$A:$D,AN$51,FALSE)=0,0,VLOOKUP($K5,[1]заявки!$A:$D,AN$51,FALSE)),0)","v":0},{"$f":"IFERROR(IF(VLOOKUP($K5,[1]заявки!$A:$D,AO$51,FALSE)=0,0,VLOOKUP($K5,[1]заявки!$A:$D,AO$51,FALSE)),0)","v":0},7771006,"6-1",{"$f":"IFERROR(IF(VLOOKUP($O5,[1]заявки!$A:$D,AR$51,FALSE)=0,0,VLOOKUP($O5,[1]заявки!$A:$D,AR$51,FALSE)),0)","v":0},{"$f":"IFERROR(IF(VLOOKUP($O5,[1]заявки!$A:$D,AS$51,FALSE)=0,0,VLOOKUP($O5,[1]заявки!$A:$D,AS$51,FALSE)),0)","v":0}]
[null,"20",{"$f":"IFERROR(IF(VLOOKUP($B6,[1]заявки!$A:$D,C$51,FALSE)=0,0,VLOOKUP($B6,[1]заявки!$A:$D,C$51,FALSE)),0)","v":7},{"$f":"IFERROR(IF(VLOOKUP($B6,[1]заявки!$A:$D,D$51,FALSE)=0,0,VLOOKUP($B6,[1]заявки!$A:$D,D$51,FALSE)),0)","v":2},"32-2",{"$f":"IFERROR(IF(VLOOKUP($E6,[1]заявки!$A:$D,F$51,FALSE)=0,0,VLOOKUP($E6,[1]заявки!$A:$D,F$51,FALSE)),0)","v":37},{"$f":"IFERROR(IF(VLOOKUP($E6,[1]заявки!$A:$D,G$51,FALSE)=0,0,VLOOKUP($E6,[1]заявки!$A:$D,G$51,FALSE)),0)","v":10},null,{"$f":"IFERROR(IF(VLOOKUP($H6,[1]заявки!$A:$D,I$51,FALSE)=0,0,VLOOKUP($H6,[1]заявки!$A:$D,I$51,FALSE)),0)","v":0},{"$f":"IFERROR(IF(VLOOKUP($H6,[1]заявки!$A:$D,J$51,FALSE)=0,0,VLOOKUP($H6,[1]заявки!$A:$D,J$51,FALSE)),0)","v":0},null,{"$f":"IFERROR(IF(VLOOKUP($K6,[1]заявки!$A:$D,L$51,FALSE)=0,0,VLOOKUP($K6,[1]заявки!$A:$D,L$51,FALSE)),0)","v":0},{"$f":"IFERROR(IF(VLOOKUP($K6,[1]заявки!$A:$D,M$51,FALSE)=0,0,VLOOKUP($K6,[1]заявки!$A:$D,M$51,FALSE)),0)","v":0},7771009,"6-2",{"$f":"IFERROR(IF(VLOOKUP($O6,[1]заявки!$A:$D,P$51,FALSE)=0,0,VLOOKUP($O6,[1]заявки!$A:$D,P$51,FALSE)),0)","v":0},{"$f":"IFERROR(IF(VLOOKUP($O6,[1]заявки!$A:$D,Q$51,FALSE)=0,0,VLOOKUP($O6,[1]заявки!$A:$D,Q$51,FALSE)),0)","v":0},null,null,null,"10","64","6-1",null,null,{"$f":"IFERROR(INDEX(Экспорт,MOD(ROW(O2)-1,COUNTA(Экспорт))+1,(ROW(O2)-1)/COUNTA(Экспорт)+1),\"\")","v":"20"},"20",null,null,"27",{"$f":"IFERROR(IF(VLOOKUP($B6,[1]заявки!$A:$D,AE$51,FALSE)=0,0,VLOOKUP($B6,[1]заявки!$A:$D,AE$51,FALSE)),0)","v":0},{"$f":"IFERROR(IF(VLOOKUP($B6,[1]заявки!$A:$D,AF$51,FALSE)=0,0,VLOOKUP($B6,[1]заявки!$A:$D,AF$51,FALSE)),0)","v":0},"2-ф",{"$f":"IFERROR(IF(VLOOKUP($E6,[1]заявки!$A:$D,AH$51,FALSE)=0,0,VLOOKUP($E6,[1]заявки!$A:$D,AH$51,FALSE)),0)","v":0},{"$f":"IFERROR(IF(VLOOKUP($E6,[1]заявки!$A:$D,AI$51,FALSE)=0,0,VLOOKUP($E6,[1]заявки!$A:$D,AI$51,FALSE)),0)","v":0},"36",{"$f":"IFERROR(IF(VLOOKUP($H6,[1]заявки!$A:$D,AK$51,FALSE)=0,0,VLOOKUP($H6,[1]заявки!$A:$D,AK$51,FALSE)),0)","v":0},{"$f":"IFERROR(IF(VLOOKUP($H6,[1]заявки!$A:$D,AL$51,FALSE)=0,0,VLOOKUP($H6,[1]заявки!$A:$D,AL$51,FALSE)),0)","v":0},"52",{"$f":"IFERROR(IF(VLOOKUP($K6,[1]заявки!$A:$D,AN$51,FALSE)=0,0,VLOOKUP($K6,[1]заявки!$A:$D,AN$51,FALSE)),0)","v":0},{"$f":"IFERROR(IF(VLOOKUP($K6,[1]заявки!$A:$D,AO$51,FALSE)=0,0,VLOOKUP($K6,[1]заявки!$A:$D,AO$51,FALSE)),0)","v":0},7771009,"6-2",{"$f":"IFERROR(IF(VLOOKUP($O6,[1]заявки!$A:$D,AR$51,FALSE)=0,0,VLOOKUP($O6,[1]заявки!$A:$D,AR$51,FALSE)),0)","v":0},{"$f":"IFERROR(IF(VLOOKUP($O6,[1]заявки!$A:$D,AS$51,FALSE)=0,0,VLOOKUP($O6,[1]заявки!$A:$D,AS$51,FALSE)),0)","v":0}]
[null,"27",{"$f":"IFERROR(IF(VLOOKUP($B7,[1]заявки!$A:$D,C$51,FALSE)=0,0,VLOOKUP($B7,[1]заявки!$A:$D,C$51,FALSE)),0)","v":15},{"$f":"IFERROR(IF(VLOOKUP($B7,[1]заявки!$A:$D,D$51,FALSE)=0,0,VLOOKUP($B7,[1]заявки!$A:$D,D$51,FALSE)),0)","v":5},"69",{"$f":"IFERROR(IF(VLOOKUP($E7,[1]заявки!$A:$D,F$51,FALSE)=0,0,VLOOKUP($E7,[1]заявки!$A:$D,F$51,FALSE)),0)","v":0},{"$f":"IFERROR(IF(VLOOKUP($E7,[1]заявки!$A:$D,G$51,FALSE)=0,0,VLOOKUP($E7,[1]заявки!$A:$D,G$51,FALSE)),0)","v":0},null,{"$f":"IFERROR(IF(VLOOKUP($H7,[1]заявки!$A:$D,I$51,FALSE)=0,0,VLOOKUP($H7,[1]заявки!$A:$D,I$51,FALSE)),0)","v":0},{"$f":"IFERROR(IF(VLOOKUP($H7,[1]заявки!$A:$D,J$51,FALSE)=0,0,VLOOKUP($H7,[1]заявки!$A:$D,J$51,FALSE)),0)","v":0},null,{"$f":"IFERROR(IF(VLOOKUP($K7,[1]заявки!$A:$D,L$51,FALSE)=0,0,VLOOKUP($K7,[1]заявки!$A:$D,L$51,FALSE)),0)","v":0},{"$f":"IFERROR(IF(VLOOKUP($K7,[1]заявки!$A:$D,M$51,FALSE)=0,0,VLOOKUP($K7,[1]заявки!$A:$D,M$51,FALSE)),0)","v":0},7771007,"7-1",{"$f":"IFERROR(IF(VLOOKUP($O7,[1]заявки!$A:$D,P$51,FALSE)=0,0,VLOOKUP($O7,[1]заявки!$A:$D,P$51,FALSE)),0)","v":0},{"$f":"IFERROR(IF(VLOOKUP($O7,[1]заявки!$A:$D,Q$51,FALSE)=0,0,VLOOKUP($O7,[1]заявки!$A:$D,Q$51,FALSE)),0)","v":0},null,null,null,"12","79","6-2",null,null,{"$f":"IFERROR(INDEX(Экспорт,MOD(ROW(O3)-1,COUNTA(Экспорт))+1,(ROW(O3)-1)/COUNTA(Экспорт)+1),\"\")","v":"27"},"27",null,null,"43",{"$f":"IFERROR(IF(VLOOKUP($B7,[1]заявки!$A:$D,AE$51,FALSE)=0,0,VLOOKUP($B7,[1]заявки!$A:$D,AE$51,FALSE)),0)","v":0},{"$f":"IFERROR(IF(VLOOKUP($B7,[1]заявки!$A:$D,AF$51,FALSE)=0,0,VLOOKUP($B7,[1]заявки!$A:$D,AF$51,FALSE)),0)","v":0},"4",{"$f":"IFERROR(IF(VLOOKUP($E7,[1]заявки!$A:$D,AH$51,FALSE)=0,0,VLOOKUP($E7,[1]заявки!$A:$D,AH$51,FALSE)),0)","v":0},{"$f":"IFERROR(IF(VLOOKUP($E7,[1]заявки!$A:$D,AI$51,FALSE)=0,0,VLOOKUP($E7,[1]заявки!$A:$D,AI$51,FALSE)),0)","v":0},"91",{"$f":"IFERROR(IF(VLOOKUP($H7,[1]заявки!$A:$D,AK$51,FALSE)=0,0,VLOOKUP($H7,[1]заявки!$A:$D,AK$51,FALSE)),0)","v":0},{"$f":"IFERROR(IF(VLOOKUP($H7,[1]заявки!$A:$D,AL$51,FALSE)=0,0,VLOOKUP($H7,[1]заявки!$A:$D,AL$51,FALSE)),0)","v":0},"83",{"$f":"IFERROR(IF(VLOOKUP($K7,[1]заявки!$A:$D,AN$51,FALSE)=0,0,VLOOKUP($K7,[1]заявки!$A:$D,AN$51,FALSE)),0)","v":0},{"$f":"IFERROR(IF(VLOOKUP($K7,[1]заявки!$A:$D,AO$51,FALSE)=0,0,VLOOKUP($K7,[1]заявки!$A:$D,AO$51,FALSE)),0)","v":0},7771007,"7-1",{"$f":"IFERROR(IF(VLOOKUP($O7,[1]заявки!$A:$D,AR$51,FALSE)=0,0,VLOOKUP($O7,[1]заявки!$A:$D,AR$51,FALSE)),0)","v":0},{"$f":"IFERROR(IF(VLOOKUP($O7,[1]заявки!$A:$D,AS$51,FALSE)=0,0,VLOOKUP($O7,[1]заявки!$A:$D,AS$51,FALSE)),0)","v":0}]
[null,"95",{"$f":"IFERROR(IF(VLOOKUP($B8,[1]заявки!$A:$D,C$51,FALSE)=0,0,VLOOKUP($B8,[1]заявки!$A:$D,C$51,FALSE)),0)","v":16},{"$f":"IFERROR(IF(VLOOKUP($B8,[1]заявки!$A:$D,D$51,FALSE)=0,0,VLOOKUP($B8,[1]заявки!$A:$D,D$51,FALSE)),0)","v":6},"72-1",{"$f":"IFERROR(IF(VLOOKUP($E8,[1]заявки!$A:$D,F$51,FALSE)=0,0,VLOOKUP($E8,[1]заявки!$A:$D,F$51,FALSE)),0)","v":25},{"$f":"IFERROR(IF(VLOOKUP($E8,[1]заявки!$A:$D,G$51,FALSE)=0,0,VLOOKUP($E8,[1]заявки!$A:$D,G$51,FALSE)),0)","v":9},null,{"$f":"IFERROR(IF(VLOOKUP($H8,[1]заявки!$A:$D,I$51,FALSE)=0,0,VLOOKUP($H8,[1]заявки!$A:$D,I$51,FALSE)),0)","v":0},{"$f":"IFERROR(IF(VLOOKUP($H8,[1]заявки!$A:$D,J$51,FALSE)=0,0,VLOOKUP($H8,[1]заявки!$A:$D,J$51,FALSE)),0)","v":0},null,{"$f":"IFERROR(IF(VLOOKUP($K8,[1]заявки!$A:$D,L$51,FALSE)=0,0,VLOOKUP($K8,[1]заявки!$A:$D,L$51,FALSE)),0)","v":0},{"$f":"IFERROR(IF(VLOOKUP($K8,[1]заявки!$A:$D,M$51,FALSE)=0,0,VLOOKUP($K8,[1]заявки!$A:$D,M$51,FALSE)),0)","v":0},7771008,"7-2",{"$f":"IFERROR(IF(VLOOKUP($O8,[1]заявки!$A:$D,P$51,FALSE)=0,0,VLOOKUP($O8,[1]заявки!$A:$D,P$51,FALSE)),0)","v":18},{"$f":"IFERROR(IF(VLOOKUP($O8,[1]заявки!$A:$D,Q$51,FALSE)=0,0,VLOOKUP($O8,[1]заявки!$A:$D,Q$51,FALSE)),0)","v":6},null,null,null,"15","95","7-1",null,null,{"$f":"IFERROR(INDEX(Экспорт,MOD(ROW(O4)-1,COUNTA(Экспорт))+1,(ROW(O4)-1)/COUNTA(Экспорт)+1),\"\")","v":"95"},"95",null,null,"64",{"$f":"IFERROR(IF(VLOOKUP($B8,[1]заявки!$A:$D,AE$51,FALSE)=0,0,VLOOKUP($B8,[1]заявки!$A:$D,AE$51,FALSE)),0)","v":0},{"$f":"IFERROR(IF(VLOOKUP($B8,[1]заявки!$A:$D,AF$51,FALSE)=0,0,VLOOKUP($B8,[1]заявки!$A:$D,AF$51,FALSE)),0)","v":0},"25",{"$f":"IFERROR(IF(VLOOKUP($E8,[1]заявки!$A:$D,AH$51,FALSE)=0,0,VLOOKUP($E8,[1]заявки!$A:$D,AH$51,FALSE)),0)","v":0},{"$f":"IFERROR(IF(VLOOKUP($E8,[1]заявки!$A:$D,AI$51,FALSE)=0,0,VLOOKUP($E8,[1]заявки!$A:$D,AI$51,FALSE)),0)","v":0},"99",{"$f":"IFERROR(IF(VLOOKUP($H8,[1]заявки!$A:$D,AK$51,FALSE)=0,0,VLOOKUP($H8,[1]заявки!$A:$D,AK$51,FALSE)),0)","v":0},{"$f":"IFERROR(IF(VLOOKUP($H8,[1]заявки!$A:$D,AL$51,FALSE)=0,0,VLOOKUP($H8,[1]заявки!$A:$D,AL$51,FALSE)),0)","v":0},"88",{"$f":"IFERROR(IF(VLOOKUP($K8,[1]заявки!$A:$D,AN$51,FALSE)=0,0,VLOOKUP($K8,[1]заявки!$A:$D,AN$51,FALSE)),0)","v":0},{"$f":"IFERROR(IF(VLOOKUP($K8,[1]заявки!$A:$D,AO$51,FALSE)=0,0,VLOOKUP($K8,[1]заявки!$A:$D,AO$51,FALSE)),0)","v":0},7771008,"7-2",{"$f":"IFERROR(IF(VLOOKUP($O8,[1]заявки!$A:$D,AR$51,FALSE)=0,0,VLOOKUP($O8,[1]заявки!$A:$D,AR$51,FALSE)),0)","v":0},{"$f":"IFERROR(IF(VLOOKUP($O8,[1]заявки!$A:$D,AS$51,FALSE)=0,0,VLOOKUP($O8,[1]заявки!$A:$D,AS$51,FALSE)),0)","v":0}]
[null,"131",{"$f":"IFERROR(IF(VLOOKUP($B9,[1]заявки!$A:$D,C$51,FALSE)=0,0,VLOOKUP($B9,[1]заявки!$A:$D,C$51,FALSE)),0)","v":15},{"$f":"IFERROR(IF(VLOOKUP($B9,[1]заявки!$A:$D,D$51,FALSE)=0,0,VLOOKUP($B9,[1]заявки!$A:$D,D$51,FALSE)),0)","v":11},"91",{"$f":"IFERROR(IF(VLOOKUP($E9,[1]заявки!$A:$D,F$51,FALSE)=0,0,VLOOKUP($E9,[1]заявки!$A:$D,F$51,FALSE)),0)","v":15},{"$f":"IFERROR(IF(VLOOKUP($E9,[1]заявки!$A:$D,G$51,FALSE)=0,0,VLOOKUP($E9,[1]заявки!$A:$D,G$51,FALSE)),0)","v":2},null,{"$f":"IFERROR(IF(VLOOKUP($H9,[1]заявки!$A:$D,I$51,FALSE)=0,0,VLOOKUP($H9,[1]заявки!$A:$D,I$51,FALSE)),0)","v":0},{"$f":"IFERROR(IF(VLOOKUP($H9,[1]заявки!$A:$D,J$51,FALSE)=0,0,VLOOKUP($H9,[1]заявки!$A:$D,J$51,FALSE)),0)","v":0},null,{"$f":"IFERROR(IF(VLOOKUP($K9,[1]заявки!$A:$D,L$51,FALSE)=0,0,VLOOKUP($K9,[1]заявки!$A:$D,L$51,FALSE)),0)","v":0},{"$f":"IFERROR(IF(VLOOKUP($K9,[1]заявки!$A:$D,M$51,FALSE)=0,0,VLOOKUP($K9,[1]заявки!$A:$D,M$51,FALSE)),0)","v":0},7771003,"140",{"$f":"IFERROR(IF(VLOOKUP($O9,[1]заявки!$A:$D,P$51,FALSE)=0,0,VLOOKUP($O9,[1]заявки!$A:$D,P$51,FALSE)),0)","v":16},{"$f":"IFERROR(IF(VLOOKUP($O9,[1]заявки!$A:$D,Q$51,FALSE)=0,0,VLOOKUP($O9,[1]заявки!$A:$D,Q$51,FALSE)),0)","v":5},null,null,null,"17","103","7-2",null,null,{"$f":"IFERROR(INDEX(Экспорт,MOD(ROW(O5)-1,COUNTA(Экспорт))+1,(ROW(O5)-1)/COUNTA(Экспорт)+1),\"\")","v":"131"},"131",null,null,"79",{"$f":"IFERROR(IF(VLOOKUP($B9,[1]заявки!$A:$D,AE$51,FALSE)=0,0,VLOOKUP($B9,[1]заявки!$A:$D,AE$51,FALSE)),0)","v":0},{"$f":"IFERROR(IF(VLOOKUP($B9,[1]заявки!$A:$D,AF$51,FALSE)=0,0,VLOOKUP($B9,[1]заявки!$A:$D,AF$51,FALSE)),0)","v":0},"32-1",{"$f":"IFERROR(IF(VLOOKUP($E9,[1]заявки!$A:$D,AH$51,FALSE)=0,0,VLOOKUP($E9,[1]заявки!$A:$D,AH$51,FALSE)),0)","v":0},{"$f":"IFERROR(IF(VLOOKUP($E9,[1]заявки!$A:$D,AI$51,FALSE)=0,0,VLOOKUP($E9,[1]заявки!$A:$D,AI$51,FALSE)),0)","v":0},"102",{"$f":"IFERROR(IF(VLOOKUP($H9,[1]заявки!$A:$D,AK$51,FALSE)=0,0,VLOOKUP($H9,[1]заявки!$A:$D,AK$51,FALSE)),0)","v":0},{"$f":"IFERROR(IF(VLOOKUP($H9,[1]заявки!$A:$D,AL$51,FALSE)=0,0,VLOOKUP($H9,[1]заявки!$A:$D,AL$51,FALSE)),0)","v":0},"109",{"$f":"IFERROR(IF(VLOOKUP($K9,[1]заявки!$A:$D,AN$51,FALSE)=0,0,VLOOKUP($K9,[1]заявки!$A:$D,AN$51,FALSE)),0)","v":0},{"$f":"IFERROR(IF(VLOOKUP($K9,[1]заявки!$A:$D,AO$51,FALSE)=0,0,VLOOKUP($K9,[1]заявки!$A:$D,AO$51,FALSE)),0)","v":0},7771003,"140",{"$f":"IFERROR(IF(VLOOKUP($O9,[1]заявки!$A:$D,AR$51,FALSE)=0,0,VLOOKUP($O9,[1]заявки!$A:$D,AR$51,FALSE)),0)","v":0},{"$f":"IFERROR(IF(VLOOKUP($O9,[1]заявки!$A:$D,AS$51,FALSE)=0,0,VLOOKUP($O9,[1]заявки!$A:$D,AS$51,FALSE)),0)","v":0}]
[null,"136",{"$f":"IFERROR(IF(VLOOKUP($B10,[1]заявки!$A:$D,C$51,FALSE)=0,0,VLOOKUP($B10,[1]заявки!$A:$D,C$51,FALSE)),0)","v":4},{"$f":"IFERROR(IF(VLOOKUP($B10,[1]заявки!$A:$D,D$51,FALSE)=0,0,VLOOKUP($B10,[1]заявки!$A:$D,D$51,FALSE)),0)","v":2},"116",{"$f":"IFERROR(IF(VLOOKUP($E10,[1]заявки!$A:$D,F$51,FALSE)=0,0,VLOOKUP($E10,[1]заявки!$A:$D,F$51,FALSE)),0)","v":0},{"$f":"IFERROR(IF(VLOOKUP($E10,[1]заявки!$A:$D,G$51,FALSE)=0,0,VLOOKUP($E10,[1]заявки!$A:$D,G$51,FALSE)),0)","v":0},null,{"$f":"IFERROR(IF(VLOOKUP($H10,[1]заявки!$A:$D,I$51,FALSE)=0,0,VLOOKUP($H10,[1]заявки!$A:$D,I$51,FALSE)),0)","v":0},{"$f":"IFERROR(IF(VLOOKUP($H10,[1]заявки!$A:$D,J$51,FALSE)=0,0,VLOOKUP($H10,[1]заявки!$A:$D,J$51,FALSE)),0)","v":0},null,{"$f":"IFERROR(IF(VLOOKUP($K10,[1]заявки!$A:$D,L$51,FALSE)=0,0,VLOOKUP($K10,[1]заявки!$A:$D,L$51,FALSE)),0)","v":0},{"$f":"IFERROR(IF(VLOOKUP($K10,[1]заявки!$A:$D,M$51,FALSE)=0,0,VLOOKUP($K10,[1]заявки!$A:$D,M$51,FALSE)),0)","v":0},7771005,"8 д/с",{"$f":"IFERROR(IF(VLOOKUP($O10,[1]заявки!$A:$D,P$51,FALSE)=0,0,VLOOKUP($O10,[1]заявки!$A:$D,P$51,FALSE)),0)","v":17},{"$f":"IFERROR(IF(VLOOKUP($O10,[1]заявки!$A:$D,Q$51,FALSE)=0,0,VLOOKUP($O10,[1]заявки!$A:$D,Q$51,FALSE)),0)","v":5},null,null,null,"21","116","65",null,null,{"$f":"IFERROR(INDEX(Экспорт,MOD(ROW(O6)-1,COUNTA(Экспорт))+1,(ROW(O6)-1)/COUNTA(Экспорт)+1),\"\")","v":"136"},"136",null,null,null,{"$f":"IFERROR(IF(VLOOKUP($B10,[1]заявки!$A:$D,AE$51,FALSE)=0,0,VLOOKUP($B10,[1]заявки!$A:$D,AE$51,FALSE)),0)","v":0},{"$f":"IFERROR(IF(VLOOKUP($B10,[1]заявки!$A:$D,AF$51,FALSE)=0,0,VLOOKUP($B10,[1]заявки!$A:$D,AF$51,FALSE)),0)","v":0},"32-3",{"$f":"IFERROR(IF(VLOOKUP($E10,[1]заявки!$A:$D,AH$51,FALSE)=0,0,VLOOKUP($E10,[1]заявки!$A:$D,AH$51,FALSE)),0)","v":0},{"$f":"IFERROR(IF(VLOOKUP($E10,[1]заявки!$A:$D,AI$51,FALSE)=0,0,VLOOKUP($E10,[1]заявки!$A:$D,AI$51,FALSE)),0)","v":0},"104",{"$f":"IFERROR(IF(VLOOKUP($H10,[1]заявки!$A:$D,AK$51,FALSE)=0,0,VLOOKUP($H10,[1]заявки!$A:$D,AK$51,FALSE)),0)","v":0},{"$f":"IFERROR(IF(VLOOKUP($H10,[1]заявки!$A:$D,AL$51,FALSE)=0,0,VLOOKUP($H10,[1]заявки!$A:$D,AL$51,FALSE)),0)","v":0},"123",{"$f":"IFERROR(IF(VLOOKUP($K10,[1]заявки!$A:$D,AN$51,FALSE)=0,0,VLOOKUP($K10,[1]заявки!$A:$D,AN$51,FALSE)),0)","v":0},{"$f":"IFERROR(IF(VLOOKUP($K10,[1]заявки!$A:$D,AO$51,FALSE)=0,0,VLOOKUP($K10,[1]заявки!$A:$D,AO$51,FALSE)),0)","v":0},7771005,"8 д/с",{"$f":"IFERROR(IF(VLOOKUP($O10,[1]заявки!$A:$D,AR$51,FALSE)=0,0,VLOOKUP($O10,[1]заявки!$A:$D,AR$51,FALSE)),0)","v":0},{"$f":"IFERROR(IF(VLOOKUP($O10,[1]заявки!$A:$D,AS$51,FALSE)=0,0,VLOOKUP($O10,[1]заявки!$A:$D,AS$51,FALSE)),0)","v":0}]
[null,"137",{"$f":"IFERROR(IF(VLOOKUP($B11,[1]заявки!$A:$D,C$51,FALSE)=0,0,VLOOKUP($B11,[1]заявки!$A:$D,C$51,FALSE)),0)","v":14},{"$f":"IFERROR(IF(VLOOKUP($B11,[1]заявки!$A:$D,D$51,FALSE)=0,0,VLOOKUP($B11,[1]заявки!$A:$D,D$51,FALSE)),0)","v":8},"123",{"$f":"IFERROR(IF(VLOOKUP($E11,[1]заявки!$A:$D,F$51,FALSE)=0,0,VLOOKUP($E11,[1]заявки!$A:$D,F$51,FALSE)),0)","v":15},{"$f":"IFERROR(IF(VLOOKUP($E11,[1]заявки!$A:$D,G$51,FALSE)=0,0,VLOOKUP($E11,[1]заявки!$A:$D,G$51,FALSE)),0)","v":6},null,{"$f":"IFERROR(IF(VLOOKUP($H11,[1]заявки!$A:$D,I$51,FALSE)=0,0,VLOOKUP($H11,[1]заявки!$A:$D,I$51,FALSE)),0)","v":0},{"$f":"IFERROR(IF(VLOOKUP($H11,[1]заявки!$A:$D,J$51,FALSE)=0,0,VLOOKUP($H11,[1]заявки!$A:$D,J$51,FALSE)),0)","v":0},null,{"$f":"IFERROR(IF(VLOOKUP($K11,[1]заявки!$A:$D,L$51,FALSE)=0,0,VLOOKUP($K11,[1]заявки!$A:$D,L$51,FALSE)),0)","v":0},{"$f":"IFERROR(IF(VLOOKUP($K11,[1]заявки!$A:$D,M$51,FALSE)=0,0,VLOOKUP($K11,[1]заявки!$A:$D,M$51,FALSE)),0)","v":0},7771011,"кол.карп",{"$f":"IFERROR(IF(VLOOKUP($O11,[1]заявки!$A:$D,P$51,FALSE)=0,0,VLOOKUP($O11,[1]заявки!$A:$D,P$51,FALSE)),0)","v":0},{"$f":"IFERROR(IF(VLOOKUP($O11,[1]заявки!$A:$D,Q$51,FALSE)=0,0,VLOOKUP($O11,[1]заявки!$A:$D,Q$51,FALSE)),0)","v":0},null,null,null,"23","131","ДГБ гав",null,null,{"$f":"IFERROR(INDEX(Экспорт,MOD(ROW(O7)-1,COUNTA(Экспорт))+1,(ROW(O7)-1)/COUNTA(Экспорт)+1),\"\")","v":"137"},"137",null,null,"95",{"$f":"IFERROR(IF(VLOOKUP($B11,[1]заявки!$A:$D,AE$51,FALSE)=0,0,VLOOKUP($B11,[1]заявки!$A:$D,AE$51,FALSE)),0)","v":0},{"$f":"IFERROR(IF(VLOOKUP($B11,[1]заявки!$A:$D,AF$51,FALSE)=0,0,VLOOKUP($B11,[1]заявки!$A:$D,AF$51,FALSE)),0)","v":0},"65",{"$f":"IFERROR(IF(VLOOKUP($E11,[1]заявки!$A:$D,AH$51,FALSE)=0,0,VLOOKUP($E11,[1]заявки!$A:$D,AH$51,FALSE)),0)","v":0},{"$f":"IFERROR(IF(VLOOKUP($E11,[1]заявки!$A:$D,AI$51,FALSE)=0,0,VLOOKUP($E11,[1]заявки!$A:$D,AI$51,FALSE)),0)","v":0},"110",{"$f":"IFERROR(IF(VLOOKUP($H11,[1]заявки!$A:$D,AK$51,FALSE)=0,0,VLOOKUP($H11,[1]заявки!$A:$D,AK$51,FALSE)),0)","v":0},{"$f":"IFERROR(IF(VLOOKUP($H11,[1]заявки!$A:$D,AL$51,FALSE)=0,0,VLOOKUP($H11,[1]заявки!$A:$D,AL$51,FALSE)),0)","v":0},"124",{"$f":"IFERROR(IF(VLOOKUP($K11,[1]заявки!$A:$D,AN$51,FALSE)=0,0,VLOOKUP($K11,[1]заявки!$A:$D,AN$51,FALSE)),0)","v":0},{"$f":"IFERROR(IF(VLOOKUP($K11,[1]заявки!$A:$D,AO$51,FALSE)=0,0,VLOOKUP($K11,[1]заявки!$A:$D,AO$51,FALSE)),0)","v":0},7771011,"кол.карп",{"$f":"IFERROR(IF(VLOOKUP($O11,[1]заявки!$A:$D,AR$51,FALSE)=0,0,VLOOKUP($O11,[1]заявки!$A:$D,AR$51,FALSE)),0)","v":0},{"$f":"IFERROR(IF(VLOOKUP($O11,[1]заявки!$A:$D,AS$51,FALSE)=0,0,VLOOKUP($O11,[1]заявки!$A:$D,AS$51,FALSE)),0)","v":0}]
[null,"8-д/д",{"$f":"IFERROR(IF(VLOOKUP($B12,[1]заявки!$A:$D,C$51,FALSE)=0,0,VLOOKUP($B12,[1]заявки!$A:$D,C$51,FALSE)),0)","v":0},{"$f":"IFERROR(IF(VLOOKUP($B12,[1]заявки!$A:$D,D$51,FALSE)=0,0,VLOOKUP($B12,[1]заявки!$A:$D,D$51,FALSE)),0)","v":0},"124",{"$f":"IFERROR(IF(VLOOKUP($E12,[1]заявки!$A:$D,F$51,FALSE)=0,0,VLOOKUP($E12,[1]заявки!$A:$D,F$51,FALSE)),0)","v":13},{"$f":"IFERROR(IF(VLOOKUP($E12,[1]заявки!$A:$D,G$51,FALSE)=0,0,VLOOKUP($E12,[1]заявки!$A:$D,G$51,FALSE)),0)","v":8},null,{"$f":"IFERROR(IF(VLOOKUP($H12,[1]заявки!$A:$D,I$51,FALSE)=0,0,VLOOKUP($H12,[1]заявки!$A:$D,I$51,FALSE)),0)","v":0},{"$f":"IFERROR(IF(VLOOKUP($H12,[1]заявки!$A:$D,J$51,FALSE)=0,0,VLOOKUP($H12,[1]заявки!$A:$D,J$51,FALSE)),0)","v":0},null,{"$f":"IFERROR(IF(VLOOKUP($K12,[1]заявки!$A:$D,L$51,FALSE)=0,0,VLOOKUP($K12,[1]заявки!$A:$D,L$51,FALSE)),0)","v":0},{"$f":"IFERROR(IF(VLOOKUP($K12,[1]заявки!$A:$D,M$51,FALSE)=0,0,VLOOKUP($K12,[1]заявки!$A:$D,M$51,FALSE)),0)","v":0},7771012,"кол.обв",{"$f":"IFERROR(IF(VLOOKUP($O12,[1]заявки!$A:$D,P$51,FALSE)=0,0,VLOOKUP($O12,[1]заявки!$A:$D,P$51,FALSE)),0)","v":0},{"$f":"IFERROR(IF(VLOOKUP($O12,[1]заявки!$A:$D,Q$51,FALSE)=0,0,VLOOKUP($O12,[1]заявки!$A:$D,Q$51,FALSE)),0)","v":0},null,null,null,"44","133","дгб зем",null,null,{"$f":"IFERROR(INDEX(Экспорт,MOD(ROW(O8)-1,COUNTA(Экспорт))+1,(ROW(O8)-1)/COUNTA(Экспорт)+1),\"\")","v":"8-д/д"},"8-д/д",null,null,"103",{"$f":"IFERROR(IF(VLOOKUP($B12,[1]заявки!$A:$D,AE$51,FALSE)=0,0,VLOOKUP($B12,[1]заявки!$A:$D,AE$51,FALSE)),0)","v":0},{"$f":"IFERROR(IF(VLOOKUP($B12,[1]заявки!$A:$D,AF$51,FALSE)=0,0,VLOOKUP($B12,[1]заявки!$A:$D,AF$51,FALSE)),0)","v":0},"67",{"$f":"IFERROR(IF(VLOOKUP($E12,[1]заявки!$A:$D,AH$51,FALSE)=0,0,VLOOKUP($E12,[1]заявки!$A:$D,AH$51,FALSE)),0)","v":0},{"$f":"IFERROR(IF(VLOOKUP($E12,[1]заявки!$A:$D,AI$51,FALSE)=0,0,VLOOKUP($E12,[1]заявки!$A:$D,AI$51,FALSE)),0)","v":0},"113",{"$f":"IFERROR(IF(VLOOKUP($H12,[1]заявки!$A:$D,AK$51,FALSE)=0,0,VLOOKUP($H12,[1]заявки!$A:$D,AK$51,FALSE)),0)","v":0},{"$f":"IFERROR(IF(VLOOKUP($H12,[1]заявки!$A:$D,AL$51,FALSE)=0,0,VLOOKUP($H12,[1]заявки!$A:$D,AL$51,FALSE)),0)","v":0},"233",{"$f":"IFERROR(IF(VLOOKUP($K12,[1]заявки!$A:$D,AN$51,FALSE)=0,0,VLOOKUP($K12,[1]заявки!$A:$D,AN$51,FALSE)),0)","v":0},{"$f":"IFERROR(IF(VLOOKUP($K12,[1]заявки!$A:$D,AO$51,FALSE)=0,0,VLOOKUP($K12,[1]заявки!$A:$D,AO$51,FALSE)),0)","v":0},7771012,"кол.обв",{"$f":"IFERROR(IF(VLOOKUP($O12,[1]заявки!$A:$D,AR$51,FALSE)=0,0,VLOOKUP($O12,[1]заявки!$A:$D,AR$51,FALSE)),0)","v":0},{"$f":"IFERROR(IF(VLOOKUP($O12,[1]заявки!$A:$D,AS$51,FALSE)=0,0,VLOOKUP($O12,[1]заявки!$A:$D,AS$51,FALSE)),0)","v":0}]
[null,"53-д/д",{"$f":"IFERROR(IF(VLOOKUP($B13,[1]заявки!$A:$D,C$51,FALSE)=0,0,VLOOKUP($B13,[1]заявки!$A:$D,C$51,FALSE)),0)","v":0},{"$f":"IFERROR(IF(VLOOKUP($B13,[1]заявки!$A:$D,D$51,FALSE)=0,0,VLOOKUP($B13,[1]заявки!$A:$D,D$51,FALSE)),0)","v":0},"125-2",{"$f":"IFERROR(IF(VLOOKUP($E13,[1]заявки!$A:$D,F$51,FALSE)=0,0,VLOOKUP($E13,[1]заявки!$A:$D,F$51,FALSE)),0)","v":28},{"$f":"IFERROR(IF(VLOOKUP($E13,[1]заявки!$A:$D,G$51,FALSE)=0,0,VLOOKUP($E13,[1]заявки!$A:$D,G$51,FALSE)),0)","v":8},null,null,{"$f":"IFERROR(IF(VLOOKUP($H13,[1]заявки!$A:$D,J$51,FALSE)=0,0,VLOOKUP($H13,[1]заявки!$A:$D,J$51,FALSE)),0)","v":0},null,{"$f":"IFERROR(IF(VLOOKUP($K13,[1]заявки!$A:$D,L$51,FALSE)=0,0,VLOOKUP($K13,[1]заявки!$A:$D,L$51,FALSE)),0)","v":0},{"$f":"IFERROR(IF(VLOOKUP($K13,[1]заявки!$A:$D,M$51,FALSE)=0,0,VLOOKUP($K13,[1]заявки!$A:$D,M$51,FALSE)),0)","v":0},7771013,"лаб.лун",{"$f":"IFERROR(IF(VLOOKUP($O13,[1]заявки!$A:$D,P$51,FALSE)=0,0,VLOOKUP($O13,[1]заявки!$A:$D,P$51,FALSE)),0)","v":0},{"$f":"IFERROR(IF(VLOOKUP($O13,[1]заявки!$A:$D,Q$51,FALSE)=0,0,VLOOKUP($O13,[1]заявки!$A:$D,Q$51,FALSE)),0)","v":0},null,null,null,"48","135-1","2",null,null,{"$f":"IFERROR(INDEX(Экспорт,MOD(ROW(O9)-1,COUNTA(Экспорт))+1,(ROW(O9)-1)/COUNTA(Экспорт)+1),\"\")","v":"53-д/д"},"53-д/д",null,null,"116",{"$f":"IFERROR(IF(VLOOKUP($B13,[1]заявки!$A:$D,AE$51,FALSE)=0,0,VLOOKUP($B13,[1]заявки!$A:$D,AE$51,FALSE)),0)","v":0},{"$f":"IFERROR(IF(VLOOKUP($B13,[1]заявки!$A:$D,AF$51,FALSE)=0,0,VLOOKUP($B13,[1]заявки!$A:$D,AF$51,FALSE)),0)","v":0},"69",{"$f":"IFERROR(IF(VLOOKUP($E13,[1]заявки!$A:$D,AH$51,FALSE)=0,0,VLOOKUP($E13,[1]заявки!$A:$D,AH$51,FALSE)),0)","v":0},{"$f":"IFERROR(IF(VLOOKUP($E13,[1]заявки!$A:$D,AI$51,FALSE)=0,0,VLOOKUP($E13,[1]заявки!$A:$D,AI$51,FALSE)),0)","v":0},"119",{"$f":"IFERROR(IF(VLOOKUP($H13,[1]заявки!$A:$D,AK$51,FALSE)=0,0,VLOOKUP($H13,[1]заявки!$A:$D,AK$51,FALSE)),0)","v":0},{"$f":"IFERROR(IF(VLOOKUP($H13,[1]заявки!$A:$D,AL$51,FALSE)=0,0,VLOOKUP($H13,[1]заявки!$A:$D,AL$51,FALSE)),0)","v":0},"298",{"$f":"IFERROR(IF(VLOOKUP($K13,[1]заявки!$A:$D,AN$51,FALSE)=0,0,VLOOKUP($K13,[1]заявки!$A:$D,AN$51,FALSE)),0)","v":0},{"$f":"IFERROR(IF(VLOOKUP($K13,[1]заявки!$A:$D,AO$51,FALSE)=0,0,VLOOKUP($K13,[1]заявки!$A:$D,AO$51,FALSE)),0)","v":0},7771013,"лаб.лун",{"$f":"IFERROR(IF(VLOOKUP($O13,[1]заявки!$A:$D,AR$51,FALSE)=0,0,VLOOKUP($O13,[1]заявки!$A:$D,AR$51,FALSE)),0)","v":0},{"$f":"IFERROR(IF(VLOOKUP($O13,[1]заявки!$A:$D,AS$51,FALSE)=0,0,VLOOKUP($O13,[1]заявки!$A:$D,AS$51,FALSE)),0)","v":0}]
[null,"102",{"$f":"IFERROR(IF(VLOOKUP($B14,[1]заявки!$A:$D,C$51,FALSE)=0,0,VLOOKUP($B14,[1]заявки!$A:$D,C$51,FALSE)),0)","v":13},{"$f":"IFERROR(IF(VLOOKUP($B14,[1]заявки!$A:$D,D$51,FALSE)=0,0,VLOOKUP($B14,[1]заявки!$A:$D,D$51,FALSE)),0)","v":4},"677-с2",{"$f":"IFERROR(IF(VLOOKUP($E14,[1]заявки!$A:$D,F$51,FALSE)=0,0,VLOOKUP($E14,[1]заявки!$A:$D,F$51,FALSE)),0)","v":8},{"$f":"IFERROR(IF(VLOOKUP($E14,[1]заявки!$A:$D,G$51,FALSE)=0,0,VLOOKUP($E14,[1]заявки!$A:$D,G$51,FALSE)),0)","v":4},null,{"$f":"IFERROR(IF(VLOOKUP($H14,[1]заявки!$A:$D,I$51,FALSE)=0,0,VLOOKUP($H14,[1]заявки!$A:$D,I$51,FALSE)),0)","v":0},{"$f":"IFERROR(IF(VLOOKUP($H14,[1]заявки!$A:$D,J$51,FALSE)=0,0,VLOOKUP($H14,[1]заявки!$A:$D,J$51,FALSE)),0)","v":0},null,{"$f":"IFERROR(IF(VLOOKUP($K14,[1]заявки!$A:$D,L$51,FALSE)=0,0,VLOOKUP($K14,[1]заявки!$A:$D,L$51,FALSE)),0)","v":0},{"$f":"IFERROR(IF(VLOOKUP($K14,[1]заявки!$A:$D,M$51,FALSE)=0,0,VLOOKUP($K14,[1]заявки!$A:$D,M$51,FALSE)),0)","v":0},7771014,"лаб.обв",{"$f":"IFERROR(IF(VLOOKUP($O14,[1]заявки!$A:$D,P$51,FALSE)=0,0,VLOOKUP($O14,[1]заявки!$A:$D,P$51,FALSE)),0)","v":0},{"$f":"IFERROR(IF(VLOOKUP($O14,[1]заявки!$A:$D,Q$51,FALSE)=0,0,VLOOKUP($O14,[1]заявки!$A:$D,Q$51,FALSE)),0)","v":0},null,null,null,"49","136","2-ф",null,null,{"$f":"IFERROR(INDEX(Экспорт,MOD(ROW(O10)-1,COUNTA(Экспорт))+1,(ROW(O10)-1)/COUNTA(Экспорт)+1),\"\")","v":"102"},"102",null,null,"131",{"$f":"IFERROR(IF(VLOOKUP($B14,[1]заявки!$A:$D,AE$51,FALSE)=0,0,VLOOKUP($B14,[1]заявки!$A:$D,AE$51,FALSE)),0)","v":0},{"$f":"IFERROR(IF(VLOOKUP($B14,[1]заявки!$A:$D,AF$51,FALSE)=0,0,VLOOKUP($B14,[1]заявки!$A:$D,AF$51,FALSE)),0)","v":0},"72-1",{"$f":"IFERROR(IF(VLOOKUP($E14,[1]заявки!$A:$D,AH$51,FALSE)=0,0,VLOOKUP($E14,[1]заявки!$A:$D,AH$51,FALSE)),0)","v":0},{"$f":"IFERROR(IF(VLOOKUP($E14,[1]заявки!$A:$D,AI$51,FALSE)=0,0,VLOOKUP($E14,[1]заявки!$A:$D,AI$51,FALSE)),0)","v":0},"120",{"$f":"IFERROR(IF(VLOOKUP($H14,[1]заявки!$A:$D,AK$51,FALSE)=0,0,VLOOKUP($H14,[1]заявки!$A:$D,AK$51,FALSE)),0)","v":0},{"$f":"IFERROR(IF(VLOOKUP($H14,[1]заявки!$A:$D,AL$51,FALSE)=0,0,VLOOKUP($H14,[1]заявки!$A:$D,AL$51,FALSE)),0)","v":0},"104-шк",{"$f":"IFERROR(IF(VLOOKUP($K14,[1]заявки!$A:$D,AN$51,FALSE)=0,0,VLOOKUP($K14,[1]заявки!$A:$D,AN$51,FALSE)),0)","v":0},{"$f":"IFERROR(IF(VLOOKUP($K14,[1]заявки!$A:$D,AO$51,FALSE)=0,0,VLOOKUP($K14,[1]заявки!$A:$D,AO$51,FALSE)),0)","v":0},7771014,"лаб.обв",{"$f":"IFERROR(IF(VLOOKUP($O14,[1]заявки!$A:$D,AR$51,FALSE)=0,0,VLOOKUP($O14,[1]заявки!$A:$D,AR$51,FALSE)),0)","v":0},{"$f":"IFERROR(IF(VLOOKUP($O14,[1]заявки!$A:$D,AS$51,FALSE)=0,0,VLOOKUP($O14,[1]заявки!$A:$D,AS$51,FALSE)),0)","v":0}]
[null,"104",{"$f":"IFERROR(IF(VLOOKUP($B15,[1]заявки!$A:$D,C$51,FALSE)=0,0,VLOOKUP($B15,[1]заявки!$A:$D,C$51,FALSE)),0)","v":24},{"$f":"IFERROR(IF(VLOOKUP($B15,[1]заявки!$A:$D,D$51,FALSE)=0,0,VLOOKUP($B15,[1]заявки!$A:$D,D$51,FALSE)),0)","v":7},null,{"$f":"IFERROR(IF(VLOOKUP($E15,[1]заявки!$A:$D,F$51,FALSE)=0,0,VLOOKUP($E15,[1]заявки!$A:$D,F$51,FALSE)),0)","v":0},{"$f":"IFERROR(IF(VLOOKUP($E15,[1]заявки!$A:$D,G$51,FALSE)=0,0,VLOOKUP($E15,[1]заявки!$A:$D,G$51,FALSE)),0)","v":0},null,{"$f":"IFERROR(IF(VLOOKUP($H15,[1]заявки!$A:$D,I$51,FALSE)=0,0,VLOOKUP($H15,[1]заявки!$A:$D,I$51,FALSE)),0)","v":0},{"$f":"IFERROR(IF(VLOOKUP($H15,[1]заявки!$A:$D,J$51,FALSE)=0,0,VLOOKUP($H15,[1]заявки!$A:$D,J$51,FALSE)),0)","v":0},null,{"$f":"IFERROR(IF(VLOOKUP($K15,[1]заявки!$A:$D,L$51,FALSE)=0,0,VLOOKUP($K15,[1]заявки!$A:$D,L$51,FALSE)),0)","v":0},{"$f":"IFERROR(IF(VLOOKUP($K15,[1]заявки!$A:$D,M$51,FALSE)=0,0,VLOOKUP($K15,[1]заявки!$A:$D,M$51,FALSE)),0)","v":0},7771016,"кол.бум в/б",{"$f":"IFERROR(IF(VLOOKUP($O15,[1]заявки!$A:$D,P$51,FALSE)=0,0,VLOOKUP($O15,[1]заявки!$A:$D,P$51,FALSE)),0)","v":0},{"$f":"IFERROR(IF(VLOOKUP($O15,[1]заявки!$A:$D,Q$51,FALSE)=0,0,VLOOKUP($O15,[1]заявки!$A:$D,Q$51,FALSE)),0)","v":0},null,null,null,"56","137",0,null,null,{"$f":"IFERROR(INDEX(Экспорт,MOD(ROW(O11)-1,COUNTA(Экспорт))+1,(ROW(O11)-1)/COUNTA(Экспорт)+1),\"\")","v":"104"},"104",null,null,"133",{"$f":"IFERROR(IF(VLOOKUP($B15,[1]заявки!$A:$D,AE$51,FALSE)=0,0,VLOOKUP($B15,[1]заявки!$A:$D,AE$51,FALSE)),0)","v":0},{"$f":"IFERROR(IF(VLOOKUP($B15,[1]заявки!$A:$D,AF$51,FALSE)=0,0,VLOOKUP($B15,[1]заявки!$A:$D,AF$51,FALSE)),0)","v":0},"72-2",{"$f":"IFERROR(IF(VLOOKUP($E15,[1]заявки!$A:$D,AH$51,FALSE)=0,0,VLOOKUP($E15,[1]заявки!$A:$D,AH$51,FALSE)),0)","v":0},{"$f":"IFERROR(IF(VLOOKUP($E15,[1]заявки!$A:$D,AI$51,FALSE)=0,0,VLOOKUP($E15,[1]заявки!$A:$D,AI$51,FALSE)),0)","v":0},"121",{"$f":"IFERROR(IF(VLOOKUP($H15,[1]заявки!$A:$D,AK$51,FALSE)=0,0,VLOOKUP($H15,[1]заявки!$A:$D,AK$51,FALSE)),0)","v":0},{"$f":"IFERROR(IF(VLOOKUP($H15,[1]заявки!$A:$D,AL$51,FALSE)=0,0,VLOOKUP($H15,[1]заявки!$A:$D,AL$51,FALSE)),0)","v":0},"104-буф",{"$f":"IFERROR(IF(VLOOKUP($K15,[1]заявки!$A:$D,AN$51,FALSE)=0,0,VLOOKUP($K15,[1]заявки!$A:$D,AN$51,FALSE)),0)","v":0},{"$f":"IFERROR(IF(VLOOKUP($K15,[1]заявки!$A:$D,AO$51,FALSE)=0,0,VLOOKUP($K15,[1]заявки!$A:$D,AO$51,FALSE)),0)","v":0},7771016,"кол.бум в/б",{"$f":"IFERROR(IF(VLOOKUP($O15,[1]заявки!$A:$D,AR$51,FALSE)=0,0,VLOOKUP($O15,[1]заявки!$A:$D,AR$51,FALSE)),0)","v":0},{"$f":"IFERROR(IF(VLOOKUP($O15,[1]заявки!$A:$D,AS$51,FALSE)=0,0,VLOOKUP($O15,[1]заявки!$A:$D,AS$51,FALSE)),0)","v":0}]
[null,"119",{"$f":"IFERROR(IF(VLOOKUP($B16,[1]заявки!$A:$D,C$51,FALSE)=0,0,VLOOKUP($B16,[1]заявки!$A:$D,C$51,FALSE)),0)","v":4},{"$f":"IFERROR(IF(VLOOKUP($B16,[1]заявки!$A:$D,D$51,FALSE)=0,0,VLOOKUP($B16,[1]заявки!$A:$D,D$51,FALSE)),0)","v":2},null,{"$f":"IFERROR(IF(VLOOKUP($E16,[1]заявки!$A:$D,F$51,FALSE)=0,0,VLOOKUP($E16,[1]заявки!$A:$D,F$51,FALSE)),0)","v":0},{"$f":"IFERROR(IF(VLOOKUP($E16,[1]заявки!$A:$D,G$51,FALSE)=0,0,VLOOKUP($E16,[1]заявки!$A:$D,G$51,FALSE)),0)","v":0},null,{"$f":"IFERROR(IF(VLOOKUP($H16,[1]заявки!$A:$D,I$51,FALSE)=0,0,VLOOKUP($H16,[1]заявки!$A:$D,I$51,FALSE)),0)","v":0},{"$f":"IFERROR(IF(VLOOKUP($H16,[1]заявки!$A:$D,J$51,FALSE)=0,0,VLOOKUP($H16,[1]заявки!$A:$D,J$51,FALSE)),0)","v":0},null,{"$f":"IFERROR(IF(VLOOKUP($K16,[1]заявки!$A:$D,L$51,FALSE)=0,0,VLOOKUP($K16,[1]заявки!$A:$D,L$51,FALSE)),0)","v":0},{"$f":"IFERROR(IF(VLOOKUP($K16,[1]заявки!$A:$D,M$51,FALSE)=0,0,VLOOKUP($K16,[1]заявки!$A:$D,M$51,FALSE)),0)","v":0},7771022,"36",{"$f":"IFERROR(IF(VLOOKUP($O16,[1]заявки!$A:$D,P$51,FALSE)=0,0,VLOOKUP($O16,[1]заявки!$A:$D,P$51,FALSE)),0)","v":0},{"$f":"IFERROR(IF(VLOOKUP($O16,[1]заявки!$A:$D,Q$51,FALSE)=0,0,VLOOKUP($O16,[1]заявки!$A:$D,Q$51,FALSE)),0)","v":0},null,null,null,"60","8-д/д",0,null,null,{"$f":"IFERROR(INDEX(Экспорт,MOD(ROW(O12)-1,COUNTA(Экспорт))+1,(ROW(O12)-1)/COUNTA(Экспорт)+1),\"\")","v":"119"},"119",null,null,"135-1",{"$f":"IFERROR(IF(VLOOKUP($B16,[1]заявки!$A:$D,AE$51,FALSE)=0,0,VLOOKUP($B16,[1]заявки!$A:$D,AE$51,FALSE)),0)","v":0},{"$f":"IFERROR(IF(VLOOKUP($B16,[1]заявки!$A:$D,AF$51,FALSE)=0,0,VLOOKUP($B16,[1]заявки!$A:$D,AF$51,FALSE)),0)","v":0},"82",{"$f":"IFERROR(IF(VLOOKUP($E16,[1]заявки!$A:$D,AH$51,FALSE)=0,0,VLOOKUP($E16,[1]заявки!$A:$D,AH$51,FALSE)),0)","v":0},{"$f":"IFERROR(IF(VLOOKUP($E16,[1]заявки!$A:$D,AI$51,FALSE)=0,0,VLOOKUP($E16,[1]заявки!$A:$D,AI$51,FALSE)),0)","v":0},"125-2",{"$f":"IFERROR(IF(VLOOKUP($H16,[1]заявки!$A:$D,AK$51,FALSE)=0,0,VLOOKUP($H16,[1]заявки!$A:$D,AK$51,FALSE)),0)","v":0},{"$f":"IFERROR(IF(VLOOKUP($H16,[1]заявки!$A:$D,AL$51,FALSE)=0,0,VLOOKUP($H16,[1]заявки!$A:$D,AL$51,FALSE)),0)","v":0},"1-Инт",{"$f":"IFERROR(IF(VLOOKUP($K16,[1]заявки!$A:$D,AN$51,FALSE)=0,0,VLOOKUP($K16,[1]заявки!$A:$D,AN$51,FALSE)),0)","v":0},{"$f":"IFERROR(IF(VLOOKUP($K16,[1]заявки!$A:$D,AO$51,FALSE)=0,0,VLOOKUP($K16,[1]заявки!$A:$D,AO$51,FALSE)),0)","v":0},7771017,"кол.обв в/б",{"$f":"IFERROR(IF(VLOOKUP($O16,[1]заявки!$A:$D,AR$51,FALSE)=0,0,VLOOKUP($O16,[1]заявки!$A:$D,AR$51,FALSE)),0)","v":0},{"$f":"IFERROR(IF(VLOOKUP($O16,[1]заявки!$A:$D,AS$51,FALSE)=0,0,VLOOKUP($O16,[1]заявки!$A:$D,AS$51,FALSE)),0)","v":0}]
[null,"121",{"$f":"IFERROR(IF(VLOOKUP($B17,[1]заявки!$A:$D,C$51,FALSE)=0,0,VLOOKUP($B17,[1]заявки!$A:$D,C$51,FALSE)),0)","v":9},{"$f":"IFERROR(IF(VLOOKUP($B17,[1]заявки!$A:$D,D$51,FALSE)=0,0,VLOOKUP($B17,[1]заявки!$A:$D,D$51,FALSE)),0)","v":3},null,{"$f":"IFERROR(IF(VLOOKUP($E17,[1]заявки!$A:$D,F$51,FALSE)=0,0,VLOOKUP($E17,[1]заявки!$A:$D,F$51,FALSE)),0)","v":0},{"$f":"IFERROR(IF(VLOOKUP($E17,[1]заявки!$A:$D,G$51,FALSE)=0,0,VLOOKUP($E17,[1]заявки!$A:$D,G$51,FALSE)),0)","v":0},null,{"$f":"IFERROR(IF(VLOOKUP($H17,[1]заявки!$A:$D,I$51,FALSE)=0,0,VLOOKUP($H17,[1]заявки!$A:$D,I$51,FALSE)),0)","v":0},{"$f":"IFERROR(IF(VLOOKUP($H17,[1]заявки!$A:$D,J$51,FALSE)=0,0,VLOOKUP($H17,[1]заявки!$A:$D,J$51,FALSE)),0)","v":0},null,{"$f":"IFERROR(IF(VLOOKUP($K17,[1]заявки!$A:$D,L$51,FALSE)=0,0,VLOOKUP($K17,[1]заявки!$A:$D,L$51,FALSE)),0)","v":0},{"$f":"IFERROR(IF(VLOOKUP($K17,[1]заявки!$A:$D,M$51,FALSE)=0,0,VLOOKUP($K17,[1]заявки!$A:$D,M$51,FALSE)),0)","v":0},7771023,"113",{"$f":"IFERROR(IF(VLOOKUP($O17,[1]заявки!$A:$D,P$51,FALSE)=0,0,VLOOKUP($O17,[1]заявки!$A:$D,P$51,FALSE)),0)","v":4},{"$f":"IFERROR(IF(VLOOKUP($O17,[1]заявки!$A:$D,Q$51,FALSE)=0,0,VLOOKUP($O17,[1]заявки!$A:$D,Q$51,FALSE)),0)","v":2},null,null,null,"63","457-шк",0,null,null,{"$f":"IFERROR(INDEX(Экспорт,MOD(ROW(O13)-1,COUNTA(Экспорт))+1,(ROW(O13)-1)/COUNTA(Экспорт)+1),\"\")","v":"121"},"121",null,null,"136",{"$f":"IFERROR(IF(VLOOKUP($B17,[1]заявки!$A:$D,AE$51,FALSE)=0,0,VLOOKUP($B17,[1]заявки!$A:$D,AE$51,FALSE)),0)","v":0},{"$f":"IFERROR(IF(VLOOKUP($B17,[1]заявки!$A:$D,AF$51,FALSE)=0,0,VLOOKUP($B17,[1]заявки!$A:$D,AF$51,FALSE)),0)","v":0},"93",{"$f":"IFERROR(IF(VLOOKUP($E17,[1]заявки!$A:$D,AH$51,FALSE)=0,0,VLOOKUP($E17,[1]заявки!$A:$D,AH$51,FALSE)),0)","v":0},{"$f":"IFERROR(IF(VLOOKUP($E17,[1]заявки!$A:$D,AI$51,FALSE)=0,0,VLOOKUP($E17,[1]заявки!$A:$D,AI$51,FALSE)),0)","v":0},"128-1",{"$f":"IFERROR(IF(VLOOKUP($H17,[1]заявки!$A:$D,AK$51,FALSE)=0,0,VLOOKUP($H17,[1]заявки!$A:$D,AK$51,FALSE)),0)","v":0},{"$f":"IFERROR(IF(VLOOKUP($H17,[1]заявки!$A:$D,AL$51,FALSE)=0,0,VLOOKUP($H17,[1]заявки!$A:$D,AL$51,FALSE)),0)","v":0},"33-Инт",{"$f":"IFERROR(IF(VLOOKUP($K17,[1]заявки!$A:$D,AN$51,FALSE)=0,0,VLOOKUP($K17,[1]заявки!$A:$D,AN$51,FALSE)),0)","v":0},{"$f":"IFERROR(IF(VLOOKUP($K17,[1]заявки!$A:$D,AO$51,FALSE)=0,0,VLOOKUP($K17,[1]заявки!$A:$D,AO$51,FALSE)),0)","v":0},7771019,"кол.карп в/б",{"$f":"IFERROR(IF(VLOOKUP($O17,[1]заявки!$A:$D,AR$51,FALSE)=0,0,VLOOKUP($O17,[1]заявки!$A:$D,AR$51,FALSE)),0)","v":0},{"$f":"IFERROR(IF(VLOOKUP($O17,[1]заявки!$A:$D,AS$51,FALSE)=0,0,VLOOKUP($O17,[1]заявки!$A:$D,AS$51,FALSE)),0)","v":0}]
[null,"128-1",{"$f":"IFERROR(IF(VLOOKUP($B18,[1]заявки!$A:$D,C$51,FALSE)=0,0,VLOOKUP($B18,[1]заявки!$A:$D,C$51,FALSE)),0)","v":23},{"$f":"IFERROR(IF(VLOOKUP($B18,[1]заявки!$A:$D,D$51,FALSE)=0,0,VLOOKUP($B18,[1]заявки!$A:$D,D$51,FALSE)),0)","v":6},null,{"$f":"IFERROR(IF(VLOOKUP($E18,[1]заявки!$A:$D,F$51,FALSE)=0,0,VLOOKUP($E18,[1]заявки!$A:$D,F$51,FALSE)),0)","v":0},{"$f":"IFERROR(IF(VLOOKUP($E18,[1]заявки!$A:$D,G$51,FALSE)=0,0,VLOOKUP($E18,[1]заявки!$A:$D,G$51,FALSE)),0)","v":0},null,{"$f":"IFERROR(IF(VLOOKUP($H18,[1]заявки!$A:$D,I$51,FALSE)=0,0,VLOOKUP($H18,[1]заявки!$A:$D,I$51,FALSE)),0)","v":0},{"$f":"IFERROR(IF(VLOOKUP($H18,[1]заявки!$A:$D,J$51,FALSE)=0,0,VLOOKUP($H18,[1]заявки!$A:$D,J$51,FALSE)),0)","v":0},null,{"$f":"IFERROR(IF(VLOOKUP($K18,[1]заявки!$A:$D,L$51,FALSE)=0,0,VLOOKUP($K18,[1]заявки!$A:$D,L$51,FALSE)),0)","v":0},{"$f":"IFERROR(IF(VLOOKUP($K18,[1]заявки!$A:$D,M$51,FALSE)=0,0,VLOOKUP($K18,[1]заявки!$A:$D,M$51,FALSE)),0)","v":0},7771004,"103-Л",{"$f":"IFERROR(IF(VLOOKUP($O18,[1]заявки!$A:$D,P$51,FALSE)=0,0,VLOOKUP($O18,[1]заявки!$A:$D,P$51,FALSE)),0)","v":18},{"$f":"IFERROR(IF(VLOOKUP($O18,[1]заявки!$A:$D,Q$51,FALSE)=0,0,VLOOKUP($O18,[1]заявки!$A:$D,Q$51,FALSE)),0)","v":6},null,null,null,"70","66-К",0,null,null,{"$f":"IFERROR(INDEX(Экспорт,MOD(ROW(O14)-1,COUNTA(Экспорт))+1,(ROW(O14)-1)/COUNTA(Экспорт)+1),\"\")","v":"128-1"},"128-1",null,null,"137",{"$f":"IFERROR(IF(VLOOKUP($B18,[1]заявки!$A:$D,AE$51,FALSE)=0,0,VLOOKUP($B18,[1]заявки!$A:$D,AE$51,FALSE)),0)","v":0},{"$f":"IFERROR(IF(VLOOKUP($B18,[1]заявки!$A:$D,AF$51,FALSE)=0,0,VLOOKUP($B18,[1]заявки!$A:$D,AF$51,FALSE)),0)","v":0},"101",{"$f":"IFERROR(IF(VLOOKUP($E18,[1]заявки!$A:$D,AH$51,FALSE)=0,0,VLOOKUP($E18,[1]заявки!$A:$D,AH$51,FALSE)),0)","v":0},{"$f":"IFERROR(IF(VLOOKUP($E18,[1]заявки!$A:$D,AI$51,FALSE)=0,0,VLOOKUP($E18,[1]заявки!$A:$D,AI$51,FALSE)),0)","v":0},"128-2",{"$f":"IFERROR(IF(VLOOKUP($H18,[1]заявки!$A:$D,AK$51,FALSE)=0,0,VLOOKUP($H18,[1]заявки!$A:$D,AK$51,FALSE)),0)","v":0},{"$f":"IFERROR(IF(VLOOKUP($H18,[1]заявки!$A:$D,AL$51,FALSE)=0,0,VLOOKUP($H18,[1]заявки!$A:$D,AL$51,FALSE)),0)","v":0},"9",{"$f":"IFERROR(IF(VLOOKUP($K18,[1]заявки!$A:$D,AN$51,FALSE)=0,0,VLOOKUP($K18,[1]заявки!$A:$D,AN$51,FALSE)),0)","v":0},{"$f":"IFERROR(IF(VLOOKUP($K18,[1]заявки!$A:$D,AO$51,FALSE)=0,0,VLOOKUP($K18,[1]заявки!$A:$D,AO$51,FALSE)),0)","v":0},7771004,"103-Л",{"$f":"[1]заявки!$B$159","v":0},{"$f":"[1]заявки!$C$159","v":0}]
[null,"132",{"$f":"IFERROR(IF(VLOOKUP($B19,[1]заявки!$A:$D,C$51,FALSE)=0,0,VLOOKUP($B19,[1]заявки!$A:$D,C$51,FALSE)),0)","v":0},{"$f":"IFERROR(IF(VLOOKUP($B19,[1]заявки!$A:$D,D$51,FALSE)=0,0,VLOOKUP($B19,[1]заявки!$A:$D,D$51,FALSE)),0)","v":0},null,{"$f":"IFERROR(IF(VLOOKUP($E19,[1]заявки!$A:$D,F$51,FALSE)=0,0,VLOOKUP($E19,[1]заявки!$A:$D,F$51,FALSE)),0)","v":0},{"$f":"IFERROR(IF(VLOOKUP($E19,[1]заявки!$A:$D,G$51,FALSE)=0,0,VLOOKUP($E19,[1]заявки!$A:$D,G$51,FALSE)),0)","v":0},null,{"$f":"IFERROR(IF(VLOOKUP($H19,[1]заявки!$A:$D,I$51,FALSE)=0,0,VLOOKUP($H19,[1]заявки!$A:$D,I$51,FALSE)),0)","v":0},{"$f":"IFERROR(IF(VLOOKUP($H19,[1]заявки!$A:$D,J$51,FALSE)=0,0,VLOOKUP($H19,[1]заявки!$A:$D,J$51,FALSE)),0)","v":0},null,{"$f":"IFERROR(IF(VLOOKUP($K19,[1]заявки!$A:$D,L$51,FALSE)=0,0,VLOOKUP($K19,[1]заявки!$A:$D,L$51,FALSE)),0)","v":0},{"$f":"IFERROR(IF(VLOOKUP($K19,[1]заявки!$A:$D,M$51,FALSE)=0,0,VLOOKUP($K19,[1]заявки!$A:$D,M$51,FALSE)),0)","v":0},null,"103-лс",{"$f":"IFERROR(IF(VLOOKUP($O19,[1]заявки!$A:$D,P$51,FALSE)=0,0,VLOOKUP($O19,[1]заявки!$A:$D,P$51,FALSE)),0)","v":4},{"$f":"IFERROR(IF(VLOOKUP($O19,[1]заявки!$A:$D,Q$51,FALSE)=0,0,VLOOKUP($O19,[1]заявки!$A:$D,Q$51,FALSE)),0)","v":2},null,null,null,"71","83-К",0,null,null,{"$f":"IFERROR(INDEX(Экспорт,MOD(ROW(O15)-1,COUNTA(Экспорт))+1,(ROW(O15)-1)/COUNTA(Экспорт)+1),\"\")","v":"132"},"132",null,null,"8-д/д",{"$f":"IFERROR(IF(VLOOKUP($B19,[1]заявки!$A:$D,AE$51,FALSE)=0,0,VLOOKUP($B19,[1]заявки!$A:$D,AE$51,FALSE)),0)","v":0},{"$f":"IFERROR(IF(VLOOKUP($B19,[1]заявки!$A:$D,AF$51,FALSE)=0,0,VLOOKUP($B19,[1]заявки!$A:$D,AF$51,FALSE)),0)","v":0},"107",{"$f":"IFERROR(IF(VLOOKUP($E19,[1]заявки!$A:$D,AH$51,FALSE)=0,0,VLOOKUP($E19,[1]заявки!$A:$D,AH$51,FALSE)),0)","v":0},{"$f":"IFERROR(IF(VLOOKUP($E19,[1]заявки!$A:$D,AI$51,FALSE)=0,0,VLOOKUP($E19,[1]заявки!$A:$D,AI$51,FALSE)),0)","v":0},"129",{"$f":"IFERROR(IF(VLOOKUP($H19,[1]заявки!$A:$D,AK$51,FALSE)=0,0,VLOOKUP($H19,[1]заявки!$A:$D,AK$51,FALSE)),0)","v":0},{"$f":"IFERROR(IF(VLOOKUP($H19,[1]заявки!$A:$D,AL$51,FALSE)=0,0,VLOOKUP($H19,[1]заявки!$A:$D,AL$51,FALSE)),0)","v":0},"17",{"$f":"IFERROR(IF(VLOOKUP($K19,[1]заявки!$A:$D,AN$51,FALSE)=0,0,VLOOKUP($K19,[1]заявки!$A:$D,AN$51,FALSE)),0)","v":0},{"$f":"IFERROR(IF(VLOOKUP($K19,[1]заявки!$A:$D,AO$51,FALSE)=0,0,VLOOKUP($K19,[1]заявки!$A:$D,AO$51,FALSE)),0)","v":0},null,"103-лс",{"$f":"[1]заявки!$B$160","v":0},{"$f":"[1]заявки!$C$160","v":0}]
[null,null,{"$f":"IFERROR(IF(VLOOKUP($B20,[1]заявки!$A:$D,C$51,FALSE)=0,0,VLOOKUP($B20,[1]заявки!$A:$D,C$51,FALSE)),0)","v":0},{"$f":"IFERROR(IF(VLOOKUP($B20,[1]заявки!$A:$D,D$51,FALSE)=0,0,VLOOKUP($B20,[1]заявки!$A:$D,D$51,FALSE)),0)","v":0},null,{"$f":"IFERROR(IF(VLOOKUP($E20,[1]заявки!$A:$D,F$51,FALSE)=0,0,VLOOKUP($E20,[1]заявки!$A:$D,F$51,FALSE)),0)","v":0},{"$f":"IFERROR(IF(VLOOKUP($E20,[1]заявки!$A:$D,G$51,FALSE)=0,0,VLOOKUP($E20,[1]заявки!$A:$D,G$51,FALSE)),0)","v":0},null,{"$f":"IFERROR(IF(VLOOKUP($H20,[1]заявки!$A:$D,I$51,FALSE)=0,0,VLOOKUP($H20,[1]заявки!$A:$D,I$51,FALSE)),0)","v":0},{"$f":"IFERROR(IF(VLOOKUP($H20,[1]заявки!$A:$D,J$51,FALSE)=0,0,VLOOKUP($H20,[1]заявки!$A:$D,J$51,FALSE)),0)","v":0},null,{"$f":"IFERROR(IF(VLOOKUP($K20,[1]заявки!$A:$D,L$51,FALSE)=0,0,VLOOKUP($K20,[1]заявки!$A:$D,L$51,FALSE)),0)","v":0},{"$f":"IFERROR(IF(VLOOKUP($K20,[1]заявки!$A:$D,M$51,FALSE)=0,0,VLOOKUP($K20,[1]заявки!$A:$D,M$51,FALSE)),0)","v":0},7771021,"34-1",{"$f":"IFERROR(IF(VLOOKUP($O20,[1]заявки!$A:$D,P$51,FALSE)=0,0,VLOOKUP($O20,[1]заявки!$A:$D,P$51,FALSE)),0)","v":0},{"$f":"IFERROR(IF(VLOOKUP($O20,[1]заявки!$A:$D,Q$51,FALSE)=0,0,VLOOKUP($O20,[1]заявки!$A:$D,Q$51,FALSE)),0)","v":0},null,null,null,"78","25",0,null,null,{"$f":"IFERROR(INDEX(Экспорт,MOD(ROW(O16)-1,COUNTA(Экспорт))+1,(ROW(O16)-1)/COUNTA(Экспорт)+1),\"\")","v":0},"3-2",null,null,"457-шк",{"$f":"IFERROR(IF(VLOOKUP($B20,[1]заявки!$A:$D,AE$51,FALSE)=0,0,VLOOKUP($B20,[1]заявки!$A:$D,AE$51,FALSE)),0)","v":0},{"$f":"IFERROR(IF(VLOOKUP($B20,[1]заявки!$A:$D,AF$51,FALSE)=0,0,VLOOKUP($B20,[1]заявки!$A:$D,AF$51,FALSE)),0)","v":0},"118",{"$f":"IFERROR(IF(VLOOKUP($E20,[1]заявки!$A:$D,AH$51,FALSE)=0,0,VLOOKUP($E20,[1]заявки!$A:$D,AH$51,FALSE)),0)","v":0},{"$f":"IFERROR(IF(VLOOKUP($E20,[1]заявки!$A:$D,AI$51,FALSE)=0,0,VLOOKUP($E20,[1]заявки!$A:$D,AI$51,FALSE)),0)","v":0},"132",{"$f":"IFERROR(IF(VLOOKUP($H20,[1]заявки!$A:$D,AK$51,FALSE)=0,0,VLOOKUP($H20,[1]заявки!$A:$D,AK$51,FALSE)),0)","v":0},{"$f":"IFERROR(IF(VLOOKUP($H20,[1]заявки!$A:$D,AL$51,FALSE)=0,0,VLOOKUP($H20,[1]заявки!$A:$D,AL$51,FALSE)),0)","v":0},"21",{"$f":"IFERROR(IF(VLOOKUP($K20,[1]заявки!$A:$D,AN$51,FALSE)=0,0,VLOOKUP($K20,[1]заявки!$A:$D,AN$51,FALSE)),0)","v":0},{"$f":"IFERROR(IF(VLOOKUP($K20,[1]заявки!$A:$D,AO$51,FALSE)=0,0,VLOOKUP($K20,[1]заявки!$A:$D,AO$51,FALSE)),0)","v":0},7771021,"34-1",{"$f":"IFERROR(IF(VLOOKUP($O20,[1]заявки!$A:$D,AR$51,FALSE)=0,0,VLOOKUP($O20,[1]заявки!$A:$D,AR$51,FALSE)),0)","v":0},{"$f":"IFERROR(IF(VLOOKUP($O20,[1]заявки!$A:$D,AS$51,FALSE)=0,0,VLOOKUP($O20,[1]заявки!$A:$D,AS$51,FALSE)),0)","v":0}]
[null,null,{"$f":"IFERROR(IF(VLOOKUP($B21,[1]заявки!$A:$D,C$51,FALSE)=0,0,VLOOKUP($B21,[1]заявки!$A:$D,C$51,FALSE)),0)","v":0},{"$f":"IFERROR(IF(VLOOKUP($B21,[1]заявки!$A:$D,D$51,FALSE)=0,0,VLOOKUP($B21,[1]заявки!$A:$D,D$51,FALSE)),0)","v":0},null,{"$f":"IFERROR(IF(VLOOKUP($E21,[1]заявки!$A:$D,F$51,FALSE)=0,0,VLOOKUP($E21,[1]заявки!$A:$D,F$51,FALSE)),0)","v":0},{"$f":"IFERROR(IF(VLOOKUP($E21,[1]заявки!$A:$D,G$51,FALSE)=0,0,VLOOKUP($E21,[1]заявки!$A:$D,G$51,FALSE)),0)","v":0},null,{"$f":"IFERROR(IF(VLOOKUP($H21,[1]заявки!$A:$D,I$51,FALSE)=0,0,VLOOKUP($H21,[1]заявки!$A:$D,I$51,FALSE)),0)","v":0},{"$f":"IFERROR(IF(VLOOKUP($H21,[1]заявки!$A:$D,J$51,FALSE)=0,0,VLOOKUP($H21,[1]заявки!$A:$D,J$51,FALSE)),0)","v":0},null,{"$f":"IFERROR(IF(VLOOKUP($K21,[1]заявки!$A:$D,L$51,FALSE)=0,0,VLOOKUP($K21,[1]заявки!$A:$D,L$51,FALSE)),0)","v":0},{"$f":"IFERROR(IF(VLOOKUP($K21,[1]заявки!$A:$D,M$51,FALSE)=0,0,VLOOKUP($K21,[1]заявки!$A:$D,M$51,FALSE)),0)","v":0},7771025,"34-2",{"$f":"IFERROR(IF(VLOOKUP($O21,[1]заявки!$A:$D,P$51,FALSE)=0,0,VLOOKUP($O21,[1]заявки!$A:$D,P$51,FALSE)),0)","v":20},{"$f":"IFERROR(IF(VLOOKUP($O21,[1]заявки!$A:$D,Q$51,FALSE)=0,0,VLOOKUP($O21,[1]заявки!$A:$D,Q$51,FALSE)),0)","v":6},null,null,null,"81","32-1",0,null,null,{"$f":"IFERROR(INDEX(Экспорт,MOD(ROW(O17)-1,COUNTA(Экспорт))+1,(ROW(O17)-1)/COUNTA(Экспорт)+1),\"\")","v":0},"81",null,null,"66-К",{"$f":"IFERROR(IF(VLOOKUP($B21,[1]заявки!$A:$D,AE$51,FALSE)=0,0,VLOOKUP($B21,[1]заявки!$A:$D,AE$51,FALSE)),0)","v":0},{"$f":"IFERROR(IF(VLOOKUP($B21,[1]заявки!$A:$D,AF$51,FALSE)=0,0,VLOOKUP($B21,[1]заявки!$A:$D,AF$51,FALSE)),0)","v":0},"125-1",{"$f":"IFERROR(IF(VLOOKUP($E21,[1]заявки!$A:$D,AH$51,FALSE)=0,0,VLOOKUP($E21,[1]заявки!$A:$D,AH$51,FALSE)),0)","v":0},{"$f":"IFERROR(IF(VLOOKUP($E21,[1]заявки!$A:$D,AI$51,FALSE)=0,0,VLOOKUP($E21,[1]заявки!$A:$D,AI$51,FALSE)),0)","v":0},"135-2",{"$f":"IFERROR(IF(VLOOKUP($H21,[1]заявки!$A:$D,AK$51,FALSE)=0,0,VLOOKUP($H21,[1]заявки!$A:$D,AK$51,FALSE)),0)","v":0},{"$f":"IFERROR(IF(VLOOKUP($H21,[1]заявки!$A:$D,AL$51,FALSE)=0,0,VLOOKUP($H21,[1]заявки!$A:$D,AL$51,FALSE)),0)","v":0},"23",{"$f":"IFERROR(IF(VLOOKUP($K21,[1]заявки!$A:$D,AN$51,FALSE)=0,0,VLOOKUP($K21,[1]заявки!$A:$D,AN$51,FALSE)),0)","v":0},{"$f":"IFERROR(IF(VLOOKUP($K21,[1]заявки!$A:$D,AO$51,FALSE)=0,0,VLOOKUP($K21,[1]заявки!$A:$D,AO$51,FALSE)),0)","v":0},7771025,"34-2",{"$f":"IFERROR(IF(VLOOKUP($O21,[1]заявки!$A:$D,AR$51,FALSE)=0,0,VLOOKUP($O21,[1]заявки!$A:$D,AR$51,FALSE)),0)","v":0},{"$f":"IFERROR(IF(VLOOKUP($O21,[1]заявки!$A:$D,AS$51,FALSE)=0,0,VLOOKUP($O21,[1]заявки!$A:$D,AS$51,FALSE)),0)","v":0}]
[null,null,{"$f":"IFERROR(IF(VLOOKUP($B22,[1]заявки!$A:$D,C$51,FALSE)=0,0,VLOOKUP($B22,[1]заявки!$A:$D,C$51,FALSE)),0)","v":0},{"$f":"IFERROR(IF(VLOOKUP($B22,[1]заявки!$A:$D,D$51,FALSE)=0,0,VLOOKUP($B22,[1]заявки!$A:$D,D$51,FALSE)),0)","v":0},null,{"$f":"IFERROR(IF(VLOOKUP($E22,[1]заявки!$A:$D,F$51,FALSE)=0,0,VLOOKUP($E22,[1]заявки!$A:$D,F$51,FALSE)),0)","v":0},{"$f":"IFERROR(IF(VLOOKUP($E22,[1]заявки!$A:$D,G$51,FALSE)=0,0,VLOOKUP($E22,[1]заявки!$A:$D,G$51,FALSE)),0)","v":0},null,{"$f":"IFERROR(IF(VLOOKUP($H22,[1]заявки!$A:$D,I$51,FALSE)=0,0,VLOOKUP($H22,[1]заявки!$A:$D,I$51,FALSE)),0)","v":0},{"$f":"IFERROR(IF(VLOOKUP($H22,[1]заявки!$A:$D,J$51,FALSE)=0,0,VLOOKUP($H22,[1]заявки!$A:$D,J$51,FALSE)),0)","v":0},null,{"$f":"IFERROR(IF(VLOOKUP($K22,[1]заявки!$A:$D,L$51,FALSE)=0,0,VLOOKUP($K22,[1]заявки!$A:$D,L$51,FALSE)),0)","v":0},{"$f":"IFERROR(IF(VLOOKUP($K22,[1]заявки!$A:$D,M$51,FALSE)=0,0,VLOOKUP($K22,[1]заявки!$A:$D,M$51,FALSE)),0)","v":0},7771026,"40-п",{"$f":"IFERROR(IF(VLOOKUP($O22,[1]заявки!$A:$D,P$51,FALSE)=0,0,VLOOKUP($O22,[1]заявки!$A:$D,P$51,FALSE)),0)","v":3},{"$f":"IFERROR(IF(VLOOKUP($O22,[1]заявки!$A:$D,Q$51,FALSE)=0,0,VLOOKUP($O22,[1]заявки!$A:$D,Q$51,FALSE)),0)","v":3},null,null,null,"85","32-2",0,null,null,{"$f":"IFERROR(INDEX(Экспорт,MOD(ROW(O18)-1,COUNTA(Экспорт))+1,(ROW(O18)-1)/COUNTA(Экспорт)+1),\"\")","v":0},"134",null,null,"83-К",{"$f":"IFERROR(IF(VLOOKUP($B22,[1]заявки!$A:$D,AE$51,FALSE)=0,0,VLOOKUP($B22,[1]заявки!$A:$D,AE$51,FALSE)),0)","v":0},{"$f":"IFERROR(IF(VLOOKUP($B22,[1]заявки!$A:$D,AF$51,FALSE)=0,0,VLOOKUP($B22,[1]заявки!$A:$D,AF$51,FALSE)),0)","v":0},"130-с",{"$f":"IFERROR(IF(VLOOKUP($E22,[1]заявки!$A:$D,AH$51,FALSE)=0,0,VLOOKUP($E22,[1]заявки!$A:$D,AH$51,FALSE)),0)","v":0},{"$f":"IFERROR(IF(VLOOKUP($E22,[1]заявки!$A:$D,AI$51,FALSE)=0,0,VLOOKUP($E22,[1]заявки!$A:$D,AI$51,FALSE)),0)","v":0},"138",{"$f":"IFERROR(IF(VLOOKUP($H22,[1]заявки!$A:$D,AK$51,FALSE)=0,0,VLOOKUP($H22,[1]заявки!$A:$D,AK$51,FALSE)),0)","v":0},{"$f":"IFERROR(IF(VLOOKUP($H22,[1]заявки!$A:$D,AL$51,FALSE)=0,0,VLOOKUP($H22,[1]заявки!$A:$D,AL$51,FALSE)),0)","v":0},"29-1",{"$f":"IFERROR(IF(VLOOKUP($K22,[1]заявки!$A:$D,AN$51,FALSE)=0,0,VLOOKUP($K22,[1]заявки!$A:$D,AN$51,FALSE)),0)","v":0},{"$f":"IFERROR(IF(VLOOKUP($K22,[1]заявки!$A:$D,AO$51,FALSE)=0,0,VLOOKUP($K22,[1]заявки!$A:$D,AO$51,FALSE)),0)","v":0},7771026,"40-п",{"$f":"IFERROR(IF(VLOOKUP($O22,[1]заявки!$A:$D,AR$51,FALSE)=0,0,VLOOKUP($O22,[1]заявки!$A:$D,AR$51,FALSE)),0)","v":0},{"$f":"IFERROR(IF(VLOOKUP($O22,[1]заявки!$A:$D,AS$51,FALSE)=0,0,VLOOKUP($O22,[1]заявки!$A:$D,AS$51,FALSE)),0)","v":0}]
[null,null,{"$f":"IFERROR(IF(VLOOKUP($B23,[1]заявки!$A:$D,C$51,FALSE)=0,0,VLOOKUP($B23,[1]заявки!$A:$D,C$51,FALSE)),0)","v":0},{"$f":"IFERROR(IF(VLOOKUP($B23,[1]заявки!$A:$D,D$51,FALSE)=0,0,VLOOKUP($B23,[1]заявки!$A:$D,D$51,FALSE)),0)","v":0},null,{"$f":"IFERROR(IF(VLOOKUP($E23,[1]заявки!$A:$D,F$51,FALSE)=0,0,VLOOKUP($E23,[1]заявки!$A:$D,F$51,FALSE)),0)","v":0},{"$f":"IFERROR(IF(VLOOKUP($E23,[1]заявки!$A:$D,G$51,FALSE)=0,0,VLOOKUP($E23,[1]заявки!$A:$D,G$51,FALSE)),0)","v":0},null,{"$f":"IFERROR(IF(VLOOKUP($H23,[1]заявки!$A:$D,I$51,FALSE)=0,0,VLOOKUP($H23,[1]заявки!$A:$D,I$51,FALSE)),0)","v":0},{"$f":"IFERROR(IF(VLOOKUP($H23,[1]заявки!$A:$D,J$51,FALSE)=0,0,VLOOKUP($H23,[1]заявки!$A:$D,J$51,FALSE)),0)","v":0},null,{"$f":"IFERROR(IF(VLOOKUP($K23,[1]заявки!$A:$D,L$51,FALSE)=0,0,VLOOKUP($K23,[1]заявки!$A:$D,L$51,FALSE)),0)","v":0},{"$f":"IFERROR(IF(VLOOKUP($K23,[1]заявки!$A:$D,M$51,FALSE)=0,0,VLOOKUP($K23,[1]заявки!$A:$D,M$51,FALSE)),0)","v":0},7771027,"43-п",{"$f":"IFERROR(IF(VLOOKUP($O23,[1]заявки!$A:$D,P$51,FALSE)=0,0,VLOOKUP($O23,[1]заявки!$A:$D,P$51,FALSE)),0)","v":27},{"$f":"IFERROR(IF(VLOOKUP($O23,[1]заявки!$A:$D,Q$51,FALSE)=0,0,VLOOKUP($O23,[1]заявки!$A:$D,Q$51,FALSE)),0)","v":8},null,null,null,"87","32-3",0,null,null,{"$f":"IFERROR(INDEX(Экспорт,MOD(ROW(O19)-1,COUNTA(Экспорт))+1,(ROW(O19)-1)/COUNTA(Экспорт)+1),\"\")","v":0},"115",null,null,"3-2",{"$f":"IFERROR(IF(VLOOKUP($B23,[1]заявки!$A:$D,AE$51,FALSE)=0,0,VLOOKUP($B23,[1]заявки!$A:$D,AE$51,FALSE)),0)","v":0},{"$f":"IFERROR(IF(VLOOKUP($B23,[1]заявки!$A:$D,AF$51,FALSE)=0,0,VLOOKUP($B23,[1]заявки!$A:$D,AF$51,FALSE)),0)","v":0},"130-ш",{"$f":"IFERROR(IF(VLOOKUP($E23,[1]заявки!$A:$D,AH$51,FALSE)=0,0,VLOOKUP($E23,[1]заявки!$A:$D,AH$51,FALSE)),0)","v":0},{"$f":"IFERROR(IF(VLOOKUP($E23,[1]заявки!$A:$D,AI$51,FALSE)=0,0,VLOOKUP($E23,[1]заявки!$A:$D,AI$51,FALSE)),0)","v":0},"139",{"$f":"IFERROR(IF(VLOOKUP($H23,[1]заявки!$A:$D,AK$51,FALSE)=0,0,VLOOKUP($H23,[1]заявки!$A:$D,AK$51,FALSE)),0)","v":0},{"$f":"IFERROR(IF(VLOOKUP($H23,[1]заявки!$A:$D,AL$51,FALSE)=0,0,VLOOKUP($H23,[1]заявки!$A:$D,AL$51,FALSE)),0)","v":0},"29-2",{"$f":"IFERROR(IF(VLOOKUP($K23,[1]заявки!$A:$D,AN$51,FALSE)=0,0,VLOOKUP($K23,[1]заявки!$A:$D,AN$51,FALSE)),0)","v":0},{"$f":"IFERROR(IF(VLOOKUP($K23,[1]заявки!$A:$D,AO$51,FALSE)=0,0,VLOOKUP($K23,[1]заявки!$A:$D,AO$51,FALSE)),0)","v":0},7771027,"43-п",{"$f":"IFERROR(IF(VLOOKUP($O23,[1]заявки!$A:$D,AR$51,FALSE)=0,0,VLOOKUP($O23,[1]заявки!$A:$D,AR$51,FALSE)),0)","v":0},{"$f":"IFERROR(IF(VLOOKUP($O23,[1]заявки!$A:$D,AS$51,FALSE)=0,0,VLOOKUP($O23,[1]заявки!$A:$D,AS$51,FALSE)),0)","v":0}]
[null,"3-2",{"$f":"IFERROR(IF(VLOOKUP($B24,[1]заявки!$A:$D,C$51,FALSE)=0,0,VLOOKUP($B24,[1]заявки!$A:$D,C$51,FALSE)),0)","v":7},{"$f":"IFERROR(IF(VLOOKUP($B24,[1]заявки!$A:$D,D$51,FALSE)=0,0,VLOOKUP($B24,[1]заявки!$A:$D,D$51,FALSE)),0)","v":5},null,{"$f":"IFERROR(IF(VLOOKUP($E24,[1]заявки!$A:$D,F$51,FALSE)=0,0,VLOOKUP($E24,[1]заявки!$A:$D,F$51,FALSE)),0)","v":0},{"$f":"IFERROR(IF(VLOOKUP($E24,[1]заявки!$A:$D,G$51,FALSE)=0,0,VLOOKUP($E24,[1]заявки!$A:$D,G$51,FALSE)),0)","v":0},null,{"$f":"IFERROR(IF(VLOOKUP($H24,[1]заявки!$A:$D,I$51,FALSE)=0,0,VLOOKUP($H24,[1]заявки!$A:$D,I$51,FALSE)),0)","v":0},{"$f":"IFERROR(IF(VLOOKUP($H24,[1]заявки!$A:$D,J$51,FALSE)=0,0,VLOOKUP($H24,[1]заявки!$A:$D,J$51,FALSE)),0)","v":0},null,{"$f":"IFERROR(IF(VLOOKUP($K24,[1]заявки!$A:$D,L$51,FALSE)=0,0,VLOOKUP($K24,[1]заявки!$A:$D,L$51,FALSE)),0)","v":0},{"$f":"IFERROR(IF(VLOOKUP($K24,[1]заявки!$A:$D,M$51,FALSE)=0,0,VLOOKUP($K24,[1]заявки!$A:$D,M$51,FALSE)),0)","v":0},"7771028","85-п",{"$f":"IFERROR(IF(VLOOKUP($O24,[1]заявки!$A:$D,P$51,FALSE)=0,0,VLOOKUP($O24,[1]заявки!$A:$D,P$51,FALSE)),0)","v":0},{"$f":"IFERROR(IF(VLOOKUP($O24,[1]заявки!$A:$D,Q$51,FALSE)=0,0,VLOOKUP($O24,[1]заявки!$A:$D,Q$51,FALSE)),0)","v":0},null,null,null,"90","67",0,null,null,{"$f":"IFERROR(INDEX(Экспорт,MOD(ROW(O20)-1,COUNTA(Экспорт))+1,(ROW(O20)-1)/COUNTA(Экспорт)+1),\"\")","v":"3-2"},"2-ф",null,null,"48",{"$f":"IFERROR(IF(VLOOKUP($B24,[1]заявки!$A:$D,AE$51,FALSE)=0,0,VLOOKUP($B24,[1]заявки!$A:$D,AE$51,FALSE)),0)","v":0},{"$f":"IFERROR(IF(VLOOKUP($B24,[1]заявки!$A:$D,AF$51,FALSE)=0,0,VLOOKUP($B24,[1]заявки!$A:$D,AF$51,FALSE)),0)","v":0},"677-с1",{"$f":"IFERROR(IF(VLOOKUP($E24,[1]заявки!$A:$D,AH$51,FALSE)=0,0,VLOOKUP($E24,[1]заявки!$A:$D,AH$51,FALSE)),0)","v":0},{"$f":"IFERROR(IF(VLOOKUP($E24,[1]заявки!$A:$D,AI$51,FALSE)=0,0,VLOOKUP($E24,[1]заявки!$A:$D,AI$51,FALSE)),0)","v":0},"141",{"$f":"IFERROR(IF(VLOOKUP($H24,[1]заявки!$A:$D,AK$51,FALSE)=0,0,VLOOKUP($H24,[1]заявки!$A:$D,AK$51,FALSE)),0)","v":0},{"$f":"IFERROR(IF(VLOOKUP($H24,[1]заявки!$A:$D,AL$51,FALSE)=0,0,VLOOKUP($H24,[1]заявки!$A:$D,AL$51,FALSE)),0)","v":0},"49",{"$f":"IFERROR(IF(VLOOKUP($K24,[1]заявки!$A:$D,AN$51,FALSE)=0,0,VLOOKUP($K24,[1]заявки!$A:$D,AN$51,FALSE)),0)","v":0},{"$f":"IFERROR(IF(VLOOKUP($K24,[1]заявки!$A:$D,AO$51,FALSE)=0,0,VLOOKUP($K24,[1]заявки!$A:$D,AO$51,FALSE)),0)","v":0},"7771028","85-п",{"$f":"IFERROR(IF(VLOOKUP($O24,[1]заявки!$A:$D,AR$51,FALSE)=0,0,VLOOKUP($O24,[1]заявки!$A:$D,AR$51,FALSE)),0)","v":0},{"$f":"IFERROR(IF(VLOOKUP($O24,[1]заявки!$A:$D,AS$51,FALSE)=0,0,VLOOKUP($O24,[1]заявки!$A:$D,AS$51,FALSE)),0)","v":0}]
[null,"81",{"$f":"IFERROR(IF(VLOOKUP($B25,[1]заявки!$A:$D,C$51,FALSE)=0,0,VLOOKUP($B25,[1]заявки!$A:$D,C$51,FALSE)),0)","v":6},{"$f":"IFERROR(IF(VLOOKUP($B25,[1]заявки!$A:$D,D$51,FALSE)=0,0,VLOOKUP($B25,[1]заявки!$A:$D,D$51,FALSE)),0)","v":5},null,{"$f":"IFERROR(IF(VLOOKUP($E25,[1]заявки!$A:$D,F$51,FALSE)=0,0,VLOOKUP($E25,[1]заявки!$A:$D,F$51,FALSE)),0)","v":0},{"$f":"IFERROR(IF(VLOOKUP($E25,[1]заявки!$A:$D,G$51,FALSE)=0,0,VLOOKUP($E25,[1]заявки!$A:$D,G$51,FALSE)),0)","v":0},null,{"$f":"IFERROR(IF(VLOOKUP($H25,[1]заявки!$A:$D,I$51,FALSE)=0,0,VLOOKUP($H25,[1]заявки!$A:$D,I$51,FALSE)),0)","v":0},{"$f":"IFERROR(IF(VLOOKUP($H25,[1]заявки!$A:$D,J$51,FALSE)=0,0,VLOOKUP($H25,[1]заявки!$A:$D,J$51,FALSE)),0)","v":0},null,{"$f":"IFERROR(IF(VLOOKUP($K25,[1]заявки!$A:$D,L$51,FALSE)=0,0,VLOOKUP($K25,[1]заявки!$A:$D,L$51,FALSE)),0)","v":0},{"$f":"IFERROR(IF(VLOOKUP($K25,[1]заявки!$A:$D,M$51,FALSE)=0,0,VLOOKUP($K25,[1]заявки!$A:$D,M$51,FALSE)),0)","v":0},7771029,"87-1-п",{"$f":"IFERROR(IF(VLOOKUP($O25,[1]заявки!$A:$D,P$51,FALSE)=0,0,VLOOKUP($O25,[1]заявки!$A:$D,P$51,FALSE)),0)","v":0},{"$f":"IFERROR(IF(VLOOKUP($O25,[1]заявки!$A:$D,Q$51,FALSE)=0,0,VLOOKUP($O25,[1]заявки!$A:$D,Q$51,FALSE)),0)","v":0},null,null,null,"100","69",0,null,null,{"$f":"IFERROR(INDEX(Экспорт,MOD(ROW(O21)-1,COUNTA(Экспорт))+1,(ROW(O21)-1)/COUNTA(Экспорт)+1),\"\")","v":"81"},"32-2",null,null,"78",{"$f":"IFERROR(IF(VLOOKUP($B25,[1]заявки!$A:$D,AE$51,FALSE)=0,0,VLOOKUP($B25,[1]заявки!$A:$D,AE$51,FALSE)),0)","v":0},{"$f":"IFERROR(IF(VLOOKUP($B25,[1]заявки!$A:$D,AF$51,FALSE)=0,0,VLOOKUP($B25,[1]заявки!$A:$D,AF$51,FALSE)),0)","v":0},"677-с2",{"$f":"IFERROR(IF(VLOOKUP($E25,[1]заявки!$A:$D,AH$51,FALSE)=0,0,VLOOKUP($E25,[1]заявки!$A:$D,AH$51,FALSE)),0)","v":0},{"$f":"IFERROR(IF(VLOOKUP($E25,[1]заявки!$A:$D,AI$51,FALSE)=0,0,VLOOKUP($E25,[1]заявки!$A:$D,AI$51,FALSE)),0)","v":0},"295",{"$f":"IFERROR(IF(VLOOKUP($H25,[1]заявки!$A:$D,AK$51,FALSE)=0,0,VLOOKUP($H25,[1]заявки!$A:$D,AK$51,FALSE)),0)","v":0},{"$f":"IFERROR(IF(VLOOKUP($H25,[1]заявки!$A:$D,AL$51,FALSE)=0,0,VLOOKUP($H25,[1]заявки!$A:$D,AL$51,FALSE)),0)","v":0},"56",{"$f":"IFERROR(IF(VLOOKUP($K25,[1]заявки!$A:$D,AN$51,FALSE)=0,0,VLOOKUP($K25,[1]заявки!$A:$D,AN$51,FALSE)),0)","v":0},{"$f":"IFERROR(IF(VLOOKUP($K25,[1]заявки!$A:$D,AO$51,FALSE)=0,0,VLOOKUP($K25,[1]заявки!$A:$D,AO$51,FALSE)),0)","v":0},7771029,"87-1-п",{"$f":"IFERROR(IF(VLOOKUP($O25,[1]заявки!$A:$D,AR$51,FALSE)=0,0,VLOOKUP($O25,[1]заявки!$A:$D,AR$51,FALSE)),0)","v":0},{"$f":"IFERROR(IF(VLOOKUP($O25,[1]заявки!$A:$D,AS$51,FALSE)=0,0,VLOOKUP($O25,[1]заявки!$A:$D,AS$51,FALSE)),0)","v":0}]
[null,"134",{"$f":"IFERROR(IF(VLOOKUP($B26,[1]заявки!$A:$D,C$51,FALSE)=0,0,VLOOKUP($B26,[1]заявки!$A:$D,C$51,FALSE)),0)","v":12},{"$f":"IFERROR(IF(VLOOKUP($B26,[1]заявки!$A:$D,D$51,FALSE)=0,0,VLOOKUP($B26,[1]заявки!$A:$D,D$51,FALSE)),0)","v":4},null,{"$f":"IFERROR(IF(VLOOKUP($E26,[1]заявки!$A:$D,F$51,FALSE)=0,0,VLOOKUP($E26,[1]заявки!$A:$D,F$51,FALSE)),0)","v":0},{"$f":"IFERROR(IF(VLOOKUP($E26,[1]заявки!$A:$D,G$51,FALSE)=0,0,VLOOKUP($E26,[1]заявки!$A:$D,G$51,FALSE)),0)","v":0},null,{"$f":"IFERROR(IF(VLOOKUP($H26,[1]заявки!$A:$D,I$51,FALSE)=0,0,VLOOKUP($H26,[1]заявки!$A:$D,I$51,FALSE)),0)","v":0},{"$f":"IFERROR(IF(VLOOKUP($H26,[1]заявки!$A:$D,J$51,FALSE)=0,0,VLOOKUP($H26,[1]заявки!$A:$D,J$51,FALSE)),0)","v":0},null,{"$f":"IFERROR(IF(VLOOKUP($K26,[1]заявки!$A:$D,L$51,FALSE)=0,0,VLOOKUP($K26,[1]заявки!$A:$D,L$51,FALSE)),0)","v":0},{"$f":"IFERROR(IF(VLOOKUP($K26,[1]заявки!$A:$D,M$51,FALSE)=0,0,VLOOKUP($K26,[1]заявки!$A:$D,M$51,FALSE)),0)","v":0},7771030,"87-2-п",{"$f":"IFERROR(IF(VLOOKUP($O26,[1]заявки!$A:$D,P$51,FALSE)=0,0,VLOOKUP($O26,[1]заявки!$A:$D,P$51,FALSE)),0)","v":0},{"$f":"IFERROR(IF(VLOOKUP($O26,[1]заявки!$A:$D,Q$51,FALSE)=0,0,VLOOKUP($O26,[1]заявки!$A:$D,Q$51,FALSE)),0)","v":0},null,null,null,"108","72-1",0,null,null,{"$f":"IFERROR(INDEX(Экспорт,MOD(ROW(O22)-1,COUNTA(Экспорт))+1,(ROW(O22)-1)/COUNTA(Экспорт)+1),\"\")","v":"134"},"69",null,null,"112",{"$f":"IFERROR(IF(VLOOKUP($B26,[1]заявки!$A:$D,AE$51,FALSE)=0,0,VLOOKUP($B26,[1]заявки!$A:$D,AE$51,FALSE)),0)","v":0},{"$f":"IFERROR(IF(VLOOKUP($B26,[1]заявки!$A:$D,AF$51,FALSE)=0,0,VLOOKUP($B26,[1]заявки!$A:$D,AF$51,FALSE)),0)","v":0},"677-шк",{"$f":"IFERROR(IF(VLOOKUP($E26,[1]заявки!$A:$D,AH$51,FALSE)=0,0,VLOOKUP($E26,[1]заявки!$A:$D,AH$51,FALSE)),0)","v":0},{"$f":"IFERROR(IF(VLOOKUP($E26,[1]заявки!$A:$D,AI$51,FALSE)=0,0,VLOOKUP($E26,[1]заявки!$A:$D,AI$51,FALSE)),0)","v":0},null,{"$f":"IFERROR(IF(VLOOKUP($H26,[1]заявки!$A:$D,AK$51,FALSE)=0,0,VLOOKUP($H26,[1]заявки!$A:$D,AK$51,FALSE)),0)","v":0},{"$f":"IFERROR(IF(VLOOKUP($H26,[1]заявки!$A:$D,AL$51,FALSE)=0,0,VLOOKUP($H26,[1]заявки!$A:$D,AL$51,FALSE)),0)","v":0},"60",{"$f":"IFERROR(IF(VLOOKUP($K26,[1]заявки!$A:$D,AN$51,FALSE)=0,0,VLOOKUP($K26,[1]заявки!$A:$D,AN$51,FALSE)),0)","v":0},{"$f":"IFERROR(IF(VLOOKUP($K26,[1]заявки!$A:$D,AO$51,FALSE)=0,0,VLOOKUP($K26,[1]заявки!$A:$D,AO$51,FALSE)),0)","v":0},7771030,"87-2-п",{"$f":"IFERROR(IF(VLOOKUP($O26,[1]заявки!$A:$D,AR$51,FALSE)=0,0,VLOOKUP($O26,[1]заявки!$A:$D,AR$51,FALSE)),0)","v":0},{"$f":"IFERROR(IF(VLOOKUP($O26,[1]заявки!$A:$D,AS$51,FALSE)=0,0,VLOOKUP($O26,[1]заявки!$A:$D,AS$51,FALSE)),0)","v":0}]
[null,"115",{"$f":"IFERROR(IF(VLOOKUP($B27,[1]заявки!$A:$D,C$51,FALSE)=0,0,VLOOKUP($B27,[1]заявки!$A:$D,C$51,FALSE)),0)","v":10},{"$f":"IFERROR(IF(VLOOKUP($B27,[1]заявки!$A:$D,D$51,FALSE)=0,0,VLOOKUP($B27,[1]заявки!$A:$D,D$51,FALSE)),0)","v":4},null,{"$f":"IFERROR(IF(VLOOKUP($E27,[1]заявки!$A:$D,F$51,FALSE)=0,0,VLOOKUP($E27,[1]заявки!$A:$D,F$51,FALSE)),0)","v":0},{"$f":"IFERROR(IF(VLOOKUP($E27,[1]заявки!$A:$D,G$51,FALSE)=0,0,VLOOKUP($E27,[1]заявки!$A:$D,G$51,FALSE)),0)","v":0},null,{"$f":"IFERROR(IF(VLOOKUP($H27,[1]заявки!$A:$D,I$51,FALSE)=0,0,VLOOKUP($H27,[1]заявки!$A:$D,I$51,FALSE)),0)","v":0},{"$f":"IFERROR(IF(VLOOKUP($H27,[1]заявки!$A:$D,J$51,FALSE)=0,0,VLOOKUP($H27,[1]заявки!$A:$D,J$51,FALSE)),0)","v":0},null,{"$f":"IFERROR(IF(VLOOKUP($K27,[1]заявки!$A:$D,L$51,FALSE)=0,0,VLOOKUP($K27,[1]заявки!$A:$D,L$51,FALSE)),0)","v":0},{"$f":"IFERROR(IF(VLOOKUP($K27,[1]заявки!$A:$D,M$51,FALSE)=0,0,VLOOKUP($K27,[1]заявки!$A:$D,M$51,FALSE)),0)","v":0},7771031,"90-п",{"$f":"IFERROR(IF(VLOOKUP($O27,[1]заявки!$A:$D,P$51,FALSE)=0,0,VLOOKUP($O27,[1]заявки!$A:$D,P$51,FALSE)),0)","v":13},{"$f":"IFERROR(IF(VLOOKUP($O27,[1]заявки!$A:$D,Q$51,FALSE)=0,0,VLOOKUP($O27,[1]заявки!$A:$D,Q$51,FALSE)),0)","v":6},null,null,null,"111","72-2",0,null,null,{"$f":"IFERROR(INDEX(Экспорт,MOD(ROW(O23)-1,COUNTA(Экспорт))+1,(ROW(O23)-1)/COUNTA(Экспорт)+1),\"\")","v":"115"},"72-1",null,null,"127",{"$f":"IFERROR(IF(VLOOKUP($B27,[1]заявки!$A:$D,AE$51,FALSE)=0,0,VLOOKUP($B27,[1]заявки!$A:$D,AE$51,FALSE)),0)","v":0},{"$f":"IFERROR(IF(VLOOKUP($B27,[1]заявки!$A:$D,AF$51,FALSE)=0,0,VLOOKUP($B27,[1]заявки!$A:$D,AF$51,FALSE)),0)","v":0},"32-2",{"$f":"IFERROR(IF(VLOOKUP($E27,[1]заявки!$A:$D,AH$51,FALSE)=0,0,VLOOKUP($E27,[1]заявки!$A:$D,AH$51,FALSE)),0)","v":0},{"$f":"IFERROR(IF(VLOOKUP($E27,[1]заявки!$A:$D,AI$51,FALSE)=0,0,VLOOKUP($E27,[1]заявки!$A:$D,AI$51,FALSE)),0)","v":0},"44",{"$f":"IFERROR(IF(VLOOKUP($H27,[1]заявки!$A:$D,AK$51,FALSE)=0,0,VLOOKUP($H27,[1]заявки!$A:$D,AK$51,FALSE)),0)","v":0},{"$f":"IFERROR(IF(VLOOKUP($H27,[1]заявки!$A:$D,AL$51,FALSE)=0,0,VLOOKUP($H27,[1]заявки!$A:$D,AL$51,FALSE)),0)","v":0},"63",{"$f":"IFERROR(IF(VLOOKUP($K27,[1]заявки!$A:$D,AN$51,FALSE)=0,0,VLOOKUP($K27,[1]заявки!$A:$D,AN$51,FALSE)),0)","v":0},{"$f":"IFERROR(IF(VLOOKUP($K27,[1]заявки!$A:$D,AO$51,FALSE)=0,0,VLOOKUP($K27,[1]заявки!$A:$D,AO$51,FALSE)),0)","v":0},7771031,"90-п",{"$f":"IFERROR(IF(VLOOKUP($O27,[1]заявки!$A:$D,AR$51,FALSE)=0,0,VLOOKUP($O27,[1]заявки!$A:$D,AR$51,FALSE)),0)","v":0},{"$f":"IFERROR(IF(VLOOKUP($O27,[1]заявки!$A:$D,AS$51,FALSE)=0,0,VLOOKUP($O27,[1]заявки!$A:$D,AS$51,FALSE)),0)","v":0}]
[null,null,{"$f":"IFERROR(IF(VLOOKUP($B28,[1]заявки!$A:$D,C$51,FALSE)=0,0,VLOOKUP($B28,[1]заявки!$A:$D,C$51,FALSE)),0)","v":0},{"$f":"IFERROR(IF(VLOOKUP($B28,[1]заявки!$A:$D,D$51,FALSE)=0,0,VLOOKUP($B28,[1]заявки!$A:$D,D$51,FALSE)),0)","v":0},"9",{"$f":"IFERROR(IF(VLOOKUP($E28,[1]заявки!$A:$D,F$51,FALSE)=0,0,VLOOKUP($E28,[1]заявки!$A:$D,F$51,FALSE)),0)","v":10},{"$f":"IFERROR(IF(VLOOKUP($E28,[1]заявки!$A:$D,G$51,FALSE)=0,0,VLOOKUP($E28,[1]заявки!$A:$D,G$51,FALSE)),0)","v":3},null,{"$f":"IFERROR(IF(VLOOKUP($H28,[1]заявки!$A:$D,I$51,FALSE)=0,0,VLOOKUP($H28,[1]заявки!$A:$D,I$51,FALSE)),0)","v":0},{"$f":"IFERROR(IF(VLOOKUP($H28,[1]заявки!$A:$D,J$51,FALSE)=0,0,VLOOKUP($H28,[1]заявки!$A:$D,J$51,FALSE)),0)","v":0},null,{"$f":"IFERROR(IF(VLOOKUP($K28,[1]заявки!$A:$D,L$51,FALSE)=0,0,VLOOKUP($K28,[1]заявки!$A:$D,L$51,FALSE)),0)","v":0},{"$f":"IFERROR(IF(VLOOKUP($K28,[1]заявки!$A:$D,M$51,FALSE)=0,0,VLOOKUP($K28,[1]заявки!$A:$D,M$51,FALSE)),0)","v":0},"Итог М2",null,{"$f":"SUMPRODUCT(P5:P27*ISNUMBER(MATCH(O5:O27&\"\",мария2&\"\",)))","v":18},{"$f":"SUMPRODUCT(Q5:Q27*ISNUMBER(MATCH(O5:O27&\"\",мария2&\"\",)))","v":6},null,null,null,"112","82",0,null,null,{"$f":"IFERROR(INDEX(Экспорт,MOD(ROW(O24)-1,COUNTA(Экспорт))+1,(ROW(O24)-1)/COUNTA(Экспорт)+1),\"\")","v":0},"91",null,null,"71",{"$f":"IFERROR(IF(VLOOKUP($B28,[1]заявки!$A:$D,AE$51,FALSE)=0,0,VLOOKUP($B28,[1]заявки!$A:$D,AE$51,FALSE)),0)","v":0},{"$f":"IFERROR(IF(VLOOKUP($B28,[1]заявки!$A:$D,AF$51,FALSE)=0,0,VLOOKUP($B28,[1]заявки!$A:$D,AF$51,FALSE)),0)","v":0},"1",{"$f":"IFERROR(IF(VLOOKUP($E28,[1]заявки!$A:$D,AH$51,FALSE)=0,0,VLOOKUP($E28,[1]заявки!$A:$D,AH$51,FALSE)),0)","v":0},{"$f":"IFERROR(IF(VLOOKUP($E28,[1]заявки!$A:$D,AI$51,FALSE)=0,0,VLOOKUP($E28,[1]заявки!$A:$D,AI$51,FALSE)),0)","v":0},"122",{"$f":"IFERROR(IF(VLOOKUP($H28,[1]заявки!$A:$D,AK$51,FALSE)=0,0,VLOOKUP($H28,[1]заявки!$A:$D,AK$51,FALSE)),0)","v":0},{"$f":"IFERROR(IF(VLOOKUP($H28,[1]заявки!$A:$D,AL$51,FALSE)=0,0,VLOOKUP($H28,[1]заявки!$A:$D,AL$51,FALSE)),0)","v":0},"70",{"$f":"IFERROR(IF(VLOOKUP($K28,[1]заявки!$A:$D,AN$51,FALSE)=0,0,VLOOKUP($K28,[1]заявки!$A:$D,AN$51,FALSE)),0)","v":0},{"$f":"IFERROR(IF(VLOOKUP($K28,[1]заявки!$A:$D,AO$51,FALSE)=0,0,VLOOKUP($K28,[1]заявки!$A:$D,AO$51,FALSE)),0)","v":0},"Итог М2",null,{"$f":"SUMPRODUCT(AR5:AR27*ISNUMBER(MATCH(AQ5:AQ27&\"\",мария2&\"\",)))","v":0},{"$f":"SUMPRODUCT(AS5:AS27*ISNUMBER(MATCH(AQ5:AQ27&\"\",мария2&\"\",)))","v":0}]
[null,null,{"$f":"IFERROR(IF(VLOOKUP($B29,[1]заявки!$A:$D,C$51,FALSE)=0,0,VLOOKUP($B29,[1]заявки!$A:$D,C$51,FALSE)),0)","v":0},{"$f":"IFERROR(IF(VLOOKUP($B29,[1]заявки!$A:$D,D$51,FALSE)=0,0,VLOOKUP($B29,[1]заявки!$A:$D,D$51,FALSE)),0)","v":0},"29-2",{"$f":"IFERROR(IF(VLOOKUP($E29,[1]заявки!$A:$D,F$51,FALSE)=0,0,VLOOKUP($E29,[1]заявки!$A:$D,F$51,FALSE)),0)","v":5},{"$f":"IFERROR(IF(VLOOKUP($E29,[1]заявки!$A:$D,G$51,FALSE)=0,0,VLOOKUP($E29,[1]заявки!$A:$D,G$51,FALSE)),0)","v":2},null,{"$f":"IFERROR(IF(VLOOKUP($H29,[1]заявки!$A:$D,I$51,FALSE)=0,0,VLOOKUP($H29,[1]заявки!$A:$D,I$51,FALSE)),0)","v":0},{"$f":"IFERROR(IF(VLOOKUP($H29,[1]заявки!$A:$D,J$51,FALSE)=0,0,VLOOKUP($H29,[1]заявки!$A:$D,J$51,FALSE)),0)","v":0},null,{"$f":"IFERROR(IF(VLOOKUP($K29,[1]заявки!$A:$D,L$51,FALSE)=0,0,VLOOKUP($K29,[1]заявки!$A:$D,L$51,FALSE)),0)","v":0},{"$f":"IFERROR(IF(VLOOKUP($K29,[1]заявки!$A:$D,M$51,FALSE)=0,0,VLOOKUP($K29,[1]заявки!$A:$D,M$51,FALSE)),0)","v":0},"Норпит",null,{"$f":"SUMPRODUCT(P5:P27*ISNUMBER(MATCH(O5:O27&\"\",Норпит&\"\",)))","v":0},{"$f":"SUMPRODUCT(Q5:Q27*ISNUMBER(MATCH(O5:O27&\"\",Норпит&\"\",)))","v":0},null,null,null,"115","93",0,null,null,{"$f":"IFERROR(INDEX(Экспорт,MOD(ROW(O25)-1,COUNTA(Экспорт))+1,(ROW(O25)-1)/COUNTA(Экспорт)+1),\"\")","v":0},"116",null,null,"81",{"$f":"IFERROR(IF(VLOOKUP($B29,[1]заявки!$A:$D,AE$51,FALSE)=0,0,VLOOKUP($B29,[1]заявки!$A:$D,AE$51,FALSE)),0)","v":0},{"$f":"IFERROR(IF(VLOOKUP($B29,[1]заявки!$A:$D,AF$51,FALSE)=0,0,VLOOKUP($B29,[1]заявки!$A:$D,AF$51,FALSE)),0)","v":0},"12",{"$f":"IFERROR(IF(VLOOKUP($E29,[1]заявки!$A:$D,AH$51,FALSE)=0,0,VLOOKUP($E29,[1]заявки!$A:$D,AH$51,FALSE)),0)","v":0},{"$f":"IFERROR(IF(VLOOKUP($E29,[1]заявки!$A:$D,AI$51,FALSE)=0,0,VLOOKUP($E29,[1]заявки!$A:$D,AI$51,FALSE)),0)","v":0},null,{"$f":"IFERROR(IF(VLOOKUP($H29,[1]заявки!$A:$D,AK$51,FALSE)=0,0,VLOOKUP($H29,[1]заявки!$A:$D,AK$51,FALSE)),0)","v":0},{"$f":"IFERROR(IF(VLOOKUP($H29,[1]заявки!$A:$D,AL$51,FALSE)=0,0,VLOOKUP($H29,[1]заявки!$A:$D,AL$51,FALSE)),0)","v":0},"85",{"$f":"IFERROR(IF(VLOOKUP($K29,[1]заявки!$A:$D,AN$51,FALSE)=0,0,VLOOKUP($K29,[1]заявки!$A:$D,AN$51,FALSE)),0)","v":0},{"$f":"IFERROR(IF(VLOOKUP($K29,[1]заявки!$A:$D,AO$51,FALSE)=0,0,VLOOKUP($K29,[1]заявки!$A:$D,AO$51,FALSE)),0)","v":0},"Норпит",null,{"$f":"SUMPRODUCT(AR5:AR27*ISNUMBER(MATCH(AQ5:AQ27&\"\",Норпит&\"\",)))","v":0},{"$f":"SUMPRODUCT(AS5:AS27*ISNUMBER(MATCH(AQ5:AQ27&\"\",Норпит&\"\",)))","v":0}]
[null,null,{"$f":"IFERROR(IF(VLOOKUP($B30,[1]заявки!$A:$D,C$51,FALSE)=0,0,VLOOKUP($B30,[1]заявки!$A:$D,C$51,FALSE)),0)","v":0},{"$f":"IFERROR(IF(VLOOKUP($B30,[1]заявки!$A:$D,D$51,FALSE)=0,0,VLOOKUP($B30,[1]заявки!$A:$D,D$51,FALSE)),0)","v":0},"44",{"$f":"IFERROR(IF(VLOOKUP($E30,[1]заявки!$A:$D,F$51,FALSE)=0,0,VLOOKUP($E30,[1]заявки!$A:$D,F$51,FALSE)),0)","v":19},{"$f":"IFERROR(IF(VLOOKUP($E30,[1]заявки!$A:$D,G$51,FALSE)=0,0,VLOOKUP($E30,[1]заявки!$A:$D,G$51,FALSE)),0)","v":7},null,{"$f":"IFERROR(IF(VLOOKUP($H30,[1]заявки!$A:$D,I$51,FALSE)=0,0,VLOOKUP($H30,[1]заявки!$A:$D,I$51,FALSE)),0)","v":0},{"$f":"IFERROR(IF(VLOOKUP($H30,[1]заявки!$A:$D,J$51,FALSE)=0,0,VLOOKUP($H30,[1]заявки!$A:$D,J$51,FALSE)),0)","v":0},null,{"$f":"IFERROR(IF(VLOOKUP($K30,[1]заявки!$A:$D,L$51,FALSE)=0,0,VLOOKUP($K30,[1]заявки!$A:$D,L$51,FALSE)),0)","v":0},{"$f":"IFERROR(IF(VLOOKUP($K30,[1]заявки!$A:$D,M$51,FALSE)=0,0,VLOOKUP($K30,[1]заявки!$A:$D,M$51,FALSE)),0)","v":0},"Итог","Батон","Хлеб",null,null,null,null,"117","101",0,null,null,{"$f":"IFERROR(INDEX(Экспорт,MOD(ROW(O26)-1,COUNTA(Экспорт))+1,(ROW(O26)-1)/COUNTA(Экспорт)+1),\"\")","v":0},"123",null,null,"90",{"$f":"IFERROR(IF(VLOOKUP($B30,[1]заявки!$A:$D,AE$51,FALSE)=0,0,VLOOKUP($B30,[1]заявки!$A:$D,AE$51,FALSE)),0)","v":0},{"$f":"IFERROR(IF(VLOOKUP($B30,[1]заявки!$A:$D,AF$51,FALSE)=0,0,VLOOKUP($B30,[1]заявки!$A:$D,AF$51,FALSE)),0)","v":0},"15",{"$f":"IFERROR(IF(VLOOKUP($E30,[1]заявки!$A:$D,AH$51,FALSE)=0,0,VLOOKUP($E30,[1]заявки!$A:$D,AH$51,FALSE)),0)","v":0},{"$f":"IFERROR(IF(VLOOKUP($E30,[1]заявки!$A:$D,AI$51,FALSE)=0,0,VLOOKUP($E30,[1]заявки!$A:$D,AI$51,FALSE)),0)","v":0},null,{"$f":"IFERROR(IF(VLOOKUP($H30,[1]заявки!$A:$D,AK$51,FALSE)=0,0,VLOOKUP($H30,[1]заявки!$A:$D,AK$51,FALSE)),0)","v":0},{"$f":"IFERROR(IF(VLOOKUP($H30,[1]заявки!$A:$D,AL$51,FALSE)=0,0,VLOOKUP($H30,[1]заявки!$A:$D,AL$51,FALSE)),0)","v":0},"87",{"$f":"IFERROR(IF(VLOOKUP($K30,[1]заявки!$A:$D,AN$51,FALSE)=0,0,VLOOKUP($K30,[1]заявки!$A:$D,AN$51,FALSE)),0)","v":0},{"$f":"IFERROR(IF(VLOOKUP($K30,[1]заявки!$A:$D,AO$51,FALSE)=0,0,VLOOKUP($K30,[1]заявки!$A:$D,AO$51,FALSE)),0)","v":0},"Итог","Батон","Хлеб"]
[null,null,{"$f":"IFERROR(IF(VLOOKUP($B31,[1]заявки!$A:$D,C$51,FALSE)=0,0,VLOOKUP($B31,[1]заявки!$A:$D,C$51,FALSE)),0)","v":0},{"$f":"IFERROR(IF(VLOOKUP($B31,[1]заявки!$A:$D,D$51,FALSE)=0,0,VLOOKUP($B31,[1]заявки!$A:$D,D$51,FALSE)),0)","v":0},"74-2",{"$f":"IFERROR(IF(VLOOKUP($E31,[1]заявки!$A:$D,F$51,FALSE)=0,0,VLOOKUP($E31,[1]заявки!$A:$D,F$51,FALSE)),0)","v":25},{"$f":"IFERROR(IF(VLOOKUP($E31,[1]заявки!$A:$D,G$51,FALSE)=0,0,VLOOKUP($E31,[1]заявки!$A:$D,G$51,FALSE)),0)","v":10},null,{"$f":"IFERROR(IF(VLOOKUP($H31,[1]заявки!$A:$D,I$51,FALSE)=0,0,VLOOKUP($H31,[1]заявки!$A:$D,I$51,FALSE)),0)","v":0},{"$f":"IFERROR(IF(VLOOKUP($H31,[1]заявки!$A:$D,J$51,FALSE)=0,0,VLOOKUP($H31,[1]заявки!$A:$D,J$51,FALSE)),0)","v":0},null,{"$f":"IFERROR(IF(VLOOKUP($K31,[1]заявки!$A:$D,L$51,FALSE)=0,0,VLOOKUP($K31,[1]заявки!$A:$D,L$51,FALSE)),0)","v":0},{"$f":"IFERROR(IF(VLOOKUP($K31,[1]заявки!$A:$D,M$51,FALSE)=0,0,VLOOKUP($K31,[1]заявки!$A:$D,M$51,FALSE)),0)","v":0},"Мария",{"$f":"C37+F37+I37+L37+P37","v":577},{"$f":"D37+G37+J37+M37+Q37","v":213},null,null,null,null,"122","107",0,null,null,{"$f":"IFERROR(INDEX(Экспорт,MOD(ROW(O27)-1,COUNTA(Экспорт))+1,(ROW(O27)-1)/COUNTA(Экспорт)+1),\"\")","v":0},"124",null,null,"3-1",{"$f":"IFERROR(IF(VLOOKUP($B31,[1]заявки!$A:$D,AE$51,FALSE)=0,0,VLOOKUP($B31,[1]заявки!$A:$D,AE$51,FALSE)),0)","v":0},{"$f":"IFERROR(IF(VLOOKUP($B31,[1]заявки!$A:$D,AF$51,FALSE)=0,0,VLOOKUP($B31,[1]заявки!$A:$D,AF$51,FALSE)),0)","v":0},"74-1",{"$f":"IFERROR(IF(VLOOKUP($E31,[1]заявки!$A:$D,AH$51,FALSE)=0,0,VLOOKUP($E31,[1]заявки!$A:$D,AH$51,FALSE)),0)","v":0},{"$f":"IFERROR(IF(VLOOKUP($E31,[1]заявки!$A:$D,AI$51,FALSE)=0,0,VLOOKUP($E31,[1]заявки!$A:$D,AI$51,FALSE)),0)","v":0},null,{"$f":"IFERROR(IF(VLOOKUP($H31,[1]заявки!$A:$D,AK$51,FALSE)=0,0,VLOOKUP($H31,[1]заявки!$A:$D,AK$51,FALSE)),0)","v":0},{"$f":"IFERROR(IF(VLOOKUP($H31,[1]заявки!$A:$D,AL$51,FALSE)=0,0,VLOOKUP($H31,[1]заявки!$A:$D,AL$51,FALSE)),0)","v":0},"100",{"$f":"IFERROR(IF(VLOOKUP($K31,[1]заявки!$A:$D,AN$51,FALSE)=0,0,VLOOKUP($K31,[1]заявки!$A:$D,AN$51,FALSE)),0)","v":0},{"$f":"IFERROR(IF(VLOOKUP($K31,[1]заявки!$A:$D,AO$51,FALSE)=0,0,VLOOKUP($K31,[1]заявки!$A:$D,AO$51,FALSE)),0)","v":0},"Мария",{"$f":"AE37+AH37+AK37+AN37+AR37","v":0},{"$f":"AF37+AI37+AL37+AO37+AS37","v":0}]
[null,null,{"$f":"IFERROR(IF(VLOOKUP($B32,[1]заявки!$A:$D,C$51,FALSE)=0,0,VLOOKUP($B32,[1]заявки!$A:$D,C$51,FALSE)),0)","v":0},{"$f":"IFERROR(IF(VLOOKUP($B32,[1]заявки!$A:$D,D$51,FALSE)=0,0,VLOOKUP($B32,[1]заявки!$A:$D,D$51,FALSE)),0)","v":0},"87",{"$f":"IFERROR(IF(VLOOKUP($E32,[1]заявки!$A:$D,F$51,FALSE)=0,0,VLOOKUP($E32,[1]заявки!$A:$D,F$51,FALSE)),0)","v":0},{"$f":"IFERROR(IF(VLOOKUP($E32,[1]заявки!$A:$D,G$51,FALSE)=0,0,VLOOKUP($E32,[1]заявки!$A:$D,G$51,FALSE)),0)","v":0},null,{"$f":"IFERROR(IF(VLOOKUP($H32,[1]заявки!$A:$D,I$51,FALSE)=0,0,VLOOKUP($H32,[1]заявки!$A:$D,I$51,FALSE)),0)","v":0},{"$f":"IFERROR(IF(VLOOKUP($H32,[1]заявки!$A:$D,J$51,FALSE)=0,0,VLOOKUP($H32,[1]заявки!$A:$D,J$51,FALSE)),0)","v":0},null,{"$f":"IFERROR(IF(VLOOKUP($K32,[1]заявки!$A:$D,L$51,FALSE)=0,0,VLOOKUP($K32,[1]заявки!$A:$D,L$51,FALSE)),0)","v":0},{"$f":"IFERROR(IF(VLOOKUP($K32,[1]заявки!$A:$D,M$51,FALSE)=0,0,VLOOKUP($K32,[1]заявки!$A:$D,M$51,FALSE)),0)","v":0},"Артис",{"$f":"C38+F38+I38+L38","v":118},{"$f":"D38+G38+J38+M38","v":50},null,null,null,null,"126","118",0,null,null,{"$f":"IFERROR(INDEX(Экспорт,MOD(ROW(O28)-1,COUNTA(Экспорт))+1,(ROW(O28)-1)/COUNTA(Экспорт)+1),\"\")","v":0},"125-2",null,null,"108",{"$f":"IFERROR(IF(VLOOKUP($B32,[1]заявки!$A:$D,AE$51,FALSE)=0,0,VLOOKUP($B32,[1]заявки!$A:$D,AE$51,FALSE)),0)","v":0},{"$f":"IFERROR(IF(VLOOKUP($B32,[1]заявки!$A:$D,AF$51,FALSE)=0,0,VLOOKUP($B32,[1]заявки!$A:$D,AF$51,FALSE)),0)","v":0},"74-2",{"$f":"IFERROR(IF(VLOOKUP($E32,[1]заявки!$A:$D,AH$51,FALSE)=0,0,VLOOKUP($E32,[1]заявки!$A:$D,AH$51,FALSE)),0)","v":0},{"$f":"IFERROR(IF(VLOOKUP($E32,[1]заявки!$A:$D,AI$51,FALSE)=0,0,VLOOKUP($E32,[1]заявки!$A:$D,AI$51,FALSE)),0)","v":0},null,{"$f":"IFERROR(IF(VLOOKUP($H32,[1]заявки!$A:$D,AK$51,FALSE)=0,0,VLOOKUP($H32,[1]заявки!$A:$D,AK$51,FALSE)),0)","v":0},{"$f":"IFERROR(IF(VLOOKUP($H32,[1]заявки!$A:$D,AL$51,FALSE)=0,0,VLOOKUP($H32,[1]заявки!$A:$D,AL$51,FALSE)),0)","v":0},"10",{"$f":"IFERROR(IF(VLOOKUP($K32,[1]заявки!$A:$D,AN$51,FALSE)=0,0,VLOOKUP($K32,[1]заявки!$A:$D,AN$51,FALSE)),0)","v":0},{"$f":"IFERROR(IF(VLOOKUP($K32,[1]заявки!$A:$D,AO$51,FALSE)=0,0,VLOOKUP($K32,[1]заявки!$A:$D,AO$51,FALSE)),0)","v":0},"Артис",{"$f":"AE38+AH38+AK38+AN38","v":0},{"$f":"AF38+AI38+AL38+AO38","v":0}]
[null,null,{"$f":"IFERROR(IF(VLOOKUP($B33,[1]заявки!$A:$D,C$51,FALSE)=0,0,VLOOKUP($B33,[1]заявки!$A:$D,C$51,FALSE)),0)","v":0},{"$f":"IFERROR(IF(VLOOKUP($B33,[1]заявки!$A:$D,D$51,FALSE)=0,0,VLOOKUP($B33,[1]заявки!$A:$D,D$51,FALSE)),0)","v":0},"112",{"$f":"IFERROR(IF(VLOOKUP($E33,[1]заявки!$A:$D,F$51,FALSE)=0,0,VLOOKUP($E33,[1]заявки!$A:$D,F$51,FALSE)),0)","v":0},{"$f":"IFERROR(IF(VLOOKUP($E33,[1]заявки!$A:$D,G$51,FALSE)=0,0,VLOOKUP($E33,[1]заявки!$A:$D,G$51,FALSE)),0)","v":0},null,{"$f":"IFERROR(IF(VLOOKUP($H33,[1]заявки!$A:$D,I$51,FALSE)=0,0,VLOOKUP($H33,[1]заявки!$A:$D,I$51,FALSE)),0)","v":0},{"$f":"IFERROR(IF(VLOOKUP($H33,[1]заявки!$A:$D,J$51,FALSE)=0,0,VLOOKUP($H33,[1]заявки!$A:$D,J$51,FALSE)),0)","v":0},null,{"$f":"IFERROR(IF(VLOOKUP($K33,[1]заявки!$A:$D,L$51,FALSE)=0,0,VLOOKUP($K33,[1]заявки!$A:$D,L$51,FALSE)),0)","v":0},{"$f":"IFERROR(IF(VLOOKUP($K33,[1]заявки!$A:$D,M$51,FALSE)=0,0,VLOOKUP($K33,[1]заявки!$A:$D,M$51,FALSE)),0)","v":0},"Мария2",{"$f":"P39","v":34},{"$f":"Q39","v":11},null,null,null,null,"134","125-1",0,null,null,{"$f":"IFERROR(INDEX(Экспорт,MOD(ROW(O29)-1,COUNTA(Экспорт))+1,(ROW(O29)-1)/COUNTA(Экспорт)+1),\"\")","v":0},"677-с2",null,null,"111",{"$f":"IFERROR(IF(VLOOKUP($B33,[1]заявки!$A:$D,AE$51,FALSE)=0,0,VLOOKUP($B33,[1]заявки!$A:$D,AE$51,FALSE)),0)","v":0},{"$f":"IFERROR(IF(VLOOKUP($B33,[1]заявки!$A:$D,AF$51,FALSE)=0,0,VLOOKUP($B33,[1]заявки!$A:$D,AF$51,FALSE)),0)","v":0},"117",{"$f":"IFERROR(IF(VLOOKUP($E33,[1]заявки!$A:$D,AH$51,FALSE)=0,0,VLOOKUP($E33,[1]заявки!$A:$D,AH$51,FALSE)),0)","v":0},{"$f":"IFERROR(IF(VLOOKUP($E33,[1]заявки!$A:$D,AI$51,FALSE)=0,0,VLOOKUP($E33,[1]заявки!$A:$D,AI$51,FALSE)),0)","v":0},null,{"$f":"IFERROR(IF(VLOOKUP($H33,[1]заявки!$A:$D,AK$51,FALSE)=0,0,VLOOKUP($H33,[1]заявки!$A:$D,AK$51,FALSE)),0)","v":0},{"$f":"IFERROR(IF(VLOOKUP($H33,[1]заявки!$A:$D,AL$51,FALSE)=0,0,VLOOKUP($H33,[1]заявки!$A:$D,AL$51,FALSE)),0)","v":0},"115",{"$f":"IFERROR(IF(VLOOKUP($K33,[1]заявки!$A:$D,AN$51,FALSE)=0,0,VLOOKUP($K33,[1]заявки!$A:$D,AN$51,FALSE)),0)","v":0},{"$f":"IFERROR(IF(VLOOKUP($K33,[1]заявки!$A:$D,AO$51,FALSE)=0,0,VLOOKUP($K33,[1]заявки!$A:$D,AO$51,FALSE)),0)","v":0},"Мария2",{"$f":"AR39","v":0},{"$f":"AS39","v":0}]
[null,null,{"$f":"IFERROR(IF(VLOOKUP($B34,[1]заявки!$A:$D,C$51,FALSE)=0,0,VLOOKUP($B34,[1]заявки!$A:$D,C$51,FALSE)),0)","v":0},{"$f":"IFERROR(IF(VLOOKUP($B34,[1]заявки!$A:$D,D$51,FALSE)=0,0,VLOOKUP($B34,[1]заявки!$A:$D,D$51,FALSE)),0)","v":0},"127",{"$f":"IFERROR(IF(VLOOKUP($E34,[1]заявки!$A:$D,F$51,FALSE)=0,0,VLOOKUP($E34,[1]заявки!$A:$D,F$51,FALSE)),0)","v":24},{"$f":"IFERROR(IF(VLOOKUP($E34,[1]заявки!$A:$D,G$51,FALSE)=0,0,VLOOKUP($E34,[1]заявки!$A:$D,G$51,FALSE)),0)","v":10},null,null,null,null,{"$f":"IFERROR(IF(VLOOKUP($K34,[1]заявки!$A:$D,L$51,FALSE)=0,0,VLOOKUP($K34,[1]заявки!$A:$D,L$51,FALSE)),0)","v":0},{"$f":"IFERROR(IF(VLOOKUP($K34,[1]заявки!$A:$D,M$51,FALSE)=0,0,VLOOKUP($K34,[1]заявки!$A:$D,M$51,FALSE)),0)","v":0},null,null,null,null,null,null,null,"202","130-с",0,null,null,{"$f":"IFERROR(INDEX(Экспорт,MOD(ROW(O30)-1,COUNTA(Экспорт))+1,(ROW(O30)-1)/COUNTA(Экспорт)+1),\"\")","v":0},"9",null,null,"134",{"$f":"IFERROR(IF(VLOOKUP($B34,[1]заявки!$A:$D,AE$51,FALSE)=0,0,VLOOKUP($B34,[1]заявки!$A:$D,AE$51,FALSE)),0)","v":0},{"$f":"IFERROR(IF(VLOOKUP($B34,[1]заявки!$A:$D,AF$51,FALSE)=0,0,VLOOKUP($B34,[1]заявки!$A:$D,AF$51,FALSE)),0)","v":0},"126",{"$f":"IFERROR(IF(VLOOKUP($E34,[1]заявки!$A:$D,AH$51,FALSE)=0,0,VLOOKUP($E34,[1]заявки!$A:$D,AH$51,FALSE)),0)","v":0},{"$f":"IFERROR(IF(VLOOKUP($E34,[1]заявки!$A:$D,AI$51,FALSE)=0,0,VLOOKUP($E34,[1]заявки!$A:$D,AI$51,FALSE)),0)","v":0},null,null,null,"202",{"$f":"IFERROR(IF(VLOOKUP($K34,[1]заявки!$A:$D,AN$51,FALSE)=0,0,VLOOKUP($K34,[1]заявки!$A:$D,AN$51,FALSE)),0)","v":0},{"$f":"IFERROR(IF(VLOOKUP($K34,[1]заявки!$A:$D,AO$51,FALSE)=0,0,VLOOKUP($K34,[1]заявки!$A:$D,AO$51,FALSE)),0)","v":0}]
[null,null,null,null,null,null,null,null,null,null,null,{"$f":"IFERROR(IF(VLOOKUP($K35,[1]заявки!$A:$D,L$51,FALSE)=0,0,VLOOKUP($K35,[1]заявки!$A:$D,L$51,FALSE)),0)","v":0},{"$f":"IFERROR(IF(VLOOKUP($K35,[1]заявки!$A:$D,M$51,FALSE)=0,0,VLOOKUP($K35,[1]заявки!$A:$D,M$51,FALSE)),0)","v":0},null,null,null,null,null,null,null,"252","130-ш",0,null,null,{"$f":"IFERROR(INDEX(Экспорт,MOD(ROW(O31)-1,COUNTA(Экспорт))+1,(ROW(O31)-1)/COUNTA(Экспорт)+1),\"\")","v":0},"29-2",null,null,null,null,null,null,null,null,null,null,null,"252",{"$f":"IFERROR(IF(VLOOKUP($K35,[1]заявки!$A:$D,AN$51,FALSE)=0,0,VLOOKUP($K35,[1]заявки!$A:$D,AN$51,FALSE)),0)","v":0},{"$f":"IFERROR(IF(VLOOKUP($K35,[1]заявки!$A:$D,AO$51,FALSE)=0,0,VLOOKUP($K35,[1]заявки!$A:$D,AO$51,FALSE)),0)","v":0}]
[null,null,"батон","хлеб"," ","батон","хлеб",null,"батон","хлеб",null,{"$f":"IFERROR(IF(VLOOKUP($K36,[1]заявки!$A:$D,L$51,FALSE)=0,0,VLOOKUP($K36,[1]заявки!$A:$D,L$51,FALSE)),0)","v":0},{"$f":"IFERROR(IF(VLOOKUP($K36,[1]заявки!$A:$D,M$51,FALSE)=0,0,VLOOKUP($K36,[1]заявки!$A:$D,M$51,FALSE)),0)","v":0},null,null,"батон","хлеб",null,null,null,"29-1",{"$f":"МарияСписок","v":"677-с1"},{"$f":"мариясписок2","v":0},null,null,{"$f":"IFERROR(INDEX(Экспорт,MOD(ROW(O32)-1,COUNTA(Экспорт))+1,(ROW(O32)-1)/COUNTA(Экспорт)+1),\"\")","v":""},"44",null,null,null,"батон","хлеб"," ","батон","хлеб",null,"батон","хлеб","53-д/д",{"$f":"IFERROR(IF(VLOOKUP($K36,[1]заявки!$A:$D,AN$51,FALSE)=0,0,VLOOKUP($K36,[1]заявки!$A:$D,AN$51,FALSE)),0)","v":0},{"$f":"IFERROR(IF(VLOOKUP($K36,[1]заявки!$A:$D,AO$51,FALSE)=0,0,VLOOKUP($K36,[1]заявки!$A:$D,AO$51,FALSE)),0)","v":0},null,null,"батон","хлеб"]
[null,"Весь",{"$f":"SUM(C5:C34)","v":203},{"$f":"SUM(D5:D34)","v":81},null,{"$f":"SUM(F5:F34)","v":234},{"$f":"SUM(G5:G34)","v":83},null,{"$f":"SUM(I5:I33)","v":0},{"$f":"SUM(J5:J33)","v":0},null,{"$f":"SUM(L5:L36)","v":0},{"$f":"SUM(M5:M36)","v":0},null,null,{"$f":"SUM(P5:P27)","v":140},{"$f":"SUM(Q5:Q27)","v":49},null,null,null,{"$f":"Артиссписок","v":"29-2"},"677-с2",0,null,null,{"$f":"IFERROR(INDEX(Экспорт,MOD(ROW(O33)-1,COUNTA(Экспорт))+1,(ROW(O33)-1)/COUNTA(Экспорт)+1),\"\")","v":""},"74-2",null,null,"Весь",{"$f":"SUM(AE5:AE34)","v":0},{"$f":"SUM(AF5:AF34)","v":0},null,{"$f":"SUM(AH5:AH34)","v":0},{"$f":"SUM(AI5:AI34)","v":0},null,{"$f":"SUM(AK5:AK33)","v":0},{"$f":"SUM(AL5:AL33)","v":0},null,{"$f":"SUM(AN5:AN36)","v":0},{"$f":"SUM(AO5:AO36)","v":0},null,null,{"$f":"SUM(AR5:AR27)","v":0},{"$f":"SUM(AS5:AS27)","v":0}]
[null,"Артис",{"$f":"SUMPRODUCT(C5:C34*ISNUMBER(MATCH(B5:B34&\"\",Артис&\"\",)))","v":35},{"$f":"SUMPRODUCT(D5:D34*ISNUMBER(MATCH(B5:B34&\"\",Артис&\"\",)))","v":18},null,{"$f":"SUMPRODUCT(F5:F34*ISNUMBER(MATCH(E5:E34&\"\",Артис&\"\",)))","v":83},{"$f":"SUMPRODUCT(G5:G34*ISNUMBER(MATCH(E5:E34&\"\",Артис&\"\",)))","v":32},null,{"$f":"SUMPRODUCT(I5:I34*ISNUMBER(MATCH(H5:H34&\"\",Артис&\"\",)))","v":0},{"$f":"SUMPRODUCT(J5:J34*ISNUMBER(MATCH(H5:H34&\"\",Артис&\"\",)))","v":0},null,{"$f":"SUMPRODUCT(L5:L36*ISNUMBER(MATCH(K5:K36&\"\",Артис&\"\",)))","v":0},{"$f":"SUMPRODUCT(M5:M36*ISNUMBER(MATCH(K5:K36&\"\",Артис&\"\",)))","v":0},null,"Артис Итого:",{"$f":"C38+F38+I38+L38","v":118},{"$f":"D38+G38+J38+M38","v":50},null,null,null,"3-ф","677-шк",0,null,null,{"$f":"IFERROR(INDEX(Экспорт,MOD(ROW(O34)-1,COUNTA(Экспорт))+1,(ROW(O34)-1)/COUNTA(Экспорт)+1),\"\")","v":""},"87",null,null,"Артис",{"$f":"SUMPRODUCT(AE5:AE34*ISNUMBER(MATCH(AD5:AD34&\"\",Артис&\"\",)))","v":0},{"$f":"SUMPRODUCT(AF5:AF34*ISNUMBER(MATCH(AD5:AD34&\"\",Артис&\"\",)))","v":0},null,{"$f":"SUMPRODUCT(AH5:AH34*ISNUMBER(MATCH(AG5:AG34&\"\",Артис&\"\",)))","v":0},{"$f":"SUMPRODUCT(AI5:AI34*ISNUMBER(MATCH(AG5:AG34&\"\",Артис&\"\",)))","v":0},null,{"$f":"SUMPRODUCT(AK5:AK34*ISNUMBER(MATCH(AJ5:AJ34&\"\",Артис&\"\",)))","v":0},{"$f":"SUMPRODUCT(AL5:AL34*ISNUMBER(MATCH(AJ5:AJ34&\"\",Артис&\"\",)))","v":0},null,{"$f":"SUMPRODUCT(AN5:AN36*ISNUMBER(MATCH(AM5:AM36&\"\",Артис&\"\",)))","v":0},{"$f":"SUMPRODUCT(AO5:AO36*ISNUMBER(MATCH(AM5:AM36&\"\",Артис&\"\",)))","v":0},null,"Артис Итого:",{"$f":"AE38+AH38+AK38+AN38","v":0},{"$f":"AF38+AI38+AL38+AO38","v":0}]
[null,"Мария2",{"$f":"SUMPRODUCT(C5:C34*ISNUMBER(MATCH(B5:B34&\"\",мария2&\"\",)))","v":24},{"$f":"SUMPRODUCT(D5:D34*ISNUMBER(MATCH(B5:B34&\"\",мария2&\"\",)))","v":7},null,{"$f":"SUMPRODUCT(F5:F34*ISNUMBER(MATCH(E5:E34&\"\",мария2&\"\",)))","v":10},{"$f":"SUMPRODUCT(G5:G34*ISNUMBER(MATCH(E5:E34&\"\",мария2&\"\",)))","v":4},null,{"$f":"SUMPRODUCT(I5:I34*ISNUMBER(MATCH(H5:H34&\"\",мария2&\"\",)))","v":0},{"$f":"SUMPRODUCT(J5:J34*ISNUMBER(MATCH(H5:H34&\"\",мария2&\"\",)))","v":0},null,{"$f":"SUMPRODUCT(L5:L36*ISNUMBER(MATCH(K5:K36&\"\",мария2&\"\",)))","v":0},{"$f":"SUMPRODUCT(M5:M36*ISNUMBER(MATCH(K5:K36&\"\",мария2&\"\",)))","v":0},null,null,{"$f":"C39+F39+I39+L39","v":34},{"$f":"D39+G39+J39+M39","v":11},null,null,null,"74-1","36",0,null,null,{"$f":"IFERROR(INDEX(Экспорт,MOD(ROW(O35)-1,COUNTA(Экспорт))+1,(ROW(O35)-1)/COUNTA(Экспорт)+1),\"\")","v":""},"112",null,null,"Мария2",{"$f":"SUMPRODUCT(AE5:AE34*ISNUMBER(MATCH(AD5:AD34&\"\",мария2&\"\",)))","v":0},{"$f":"SUMPRODUCT(AF5:AF34*ISNUMBER(MATCH(AD5:AD34&\"\",мария2&\"\",)))","v":0},null,{"$f":"SUMPRODUCT(AH5:AH34*ISNUMBER(MATCH(AG5:AG34&\"\",мария2&\"\",)))","v":0},{"$f":"SUMPRODUCT(AI5:AI34*ISNUMBER(MATCH(AG5:AG34&\"\",мария2&\"\",)))","v":0},null,{"$f":"SUMPRODUCT(AK5:AK34*ISNUMBER(MATCH(AJ5:AJ34&\"\",мария2&\"\",)))","v":0},{"$f":"SUMPRODUCT(AL5:AL34*ISNUMBER(MATCH(AJ5:AJ34&\"\",мария2&\"\",)))","v":0},null,{"$f":"SUMPRODUCT(AN5:AN36*ISNUMBER(MATCH(AM5:AM36&\"\",мария2&\"\",)))","v":0},{"$f":"SUMPRODUCT(AO5:AO36*ISNUMBER(MATCH(AM5:AM36&\"\",мария2&\"\",)))","v":0},null,null,{"$f":"AE39+AH39+AK39+AN39","v":0},{"$f":"AF39+AI39+AL39+AO39","v":0}]
[null,"Норпит",{"$f":"SUMPRODUCT(C5:C34*ISNUMBER(MATCH(B5:B34&\"\",Норпит&\"\",)))","v":0},{"$f":"SUMPRODUCT(D5:D34*ISNUMBER(MATCH(B5:B34&\"\",Норпит&\"\",)))","v":0},null,{"$f":"SUMPRODUCT(F5:F34*ISNUMBER(MATCH(E5:E34&\"\",Норпит&\"\",)))","v":0},{"$f":"SUMPRODUCT(G5:G34*ISNUMBER(MATCH(E5:E34&\"\",Норпит&\"\",)))","v":0},null,{"$f":"SUMPRODUCT(I5:I34*ISNUMBER(MATCH(H5:H34&\"\",Норпит&\"\",)))","v":0},{"$f":"SUMPRODUCT(J5:J34*ISNUMBER(MATCH(H5:H34&\"\",Норпит&\"\",)))","v":0},null,{"$f":"SUMPRODUCT(L5:L34*ISNUMBER(MATCH(K5:K34&\"\",Норпит&\"\",)))","v":0},{"$f":"SUMPRODUCT(M5:M34*ISNUMBER(MATCH(K5:K34&\"\",Норпит&\"\",)))","v":0},null,null,"общ. колич. Садов",null,null,null,null,"74-2","91",0,null,null,{"$f":"IFERROR(INDEX(Экспорт,MOD(ROW(O36)-1,COUNTA(Экспорт))+1,(ROW(O36)-1)/COUNTA(Экспорт)+1),\"\")","v":""},"127",null,null,"Норпит",{"$f":"SUMPRODUCT(AE5:AE34*ISNUMBER(MATCH(AD5:AD34&\"\",Норпит&\"\",)))","v":0},{"$f":"SUMPRODUCT(AF5:AF34*ISNUMBER(MATCH(AD5:AD34&\"\",Норпит&\"\",)))","v":0},null,{"$f":"SUMPRODUCT(AH5:AH34*ISNUMBER(MATCH(AG5:AG34&\"\",Норпит&\"\",)))","v":0},{"$f":"SUMPRODUCT(AI5:AI34*ISNUMBER(MATCH(AG5:AG34&\"\",Норпит&\"\",)))","v":0},null,{"$f":"SUMPRODUCT(AK5:AK34*ISNUMBER(MATCH(AJ5:AJ34&\"\",Норпит&\"\",)))","v":0},{"$f":"SUMPRODUCT(AL5:AL34*ISNUMBER(MATCH(AJ5:AJ34&\"\",Норпит&\"\",)))","v":0},null,{"$f":"SUMPRODUCT(AN5:AN34*ISNUMBER(MATCH(AM5:AM34&\"\",Норпит&\"\",)))","v":0},{"$f":"SUMPRODUCT(AO5:AO34*ISNUMBER(MATCH(AM5:AM34&\"\",Норпит&\"\",)))","v":0},null,null,"общ. колич. Садов"]
[null,{"$f":"COUNTA(B5:B35)","v":19},null,null,{"$f":"COUNTA(E5:E35)","v":17},null,null,{"$f":"COUNTA(H5:H35)","v":0},null,null,{"$f":"COUNTA(K5:K35)","v":0},null,null,null,{"$f":"COUNTA(O5:O35)","v":27},{"$f":"SUM(B41:O41)","v":63},null,null,null,null,"127","99",0,null,null,{"$f":"IFERROR(INDEX(Экспорт,MOD(ROW(O37)-1,COUNTA(Экспорт))+1,(ROW(O37)-1)/COUNTA(Экспорт)+1),\"\")","v":""},"6-1"]
[null,null,null,null,null,null,null,null,null,null,null,null,null,null,null,null,null,null,null,null,"3-2","102",0,null,null,{"$f":"IFERROR(INDEX(Экспорт,MOD(ROW(O38)-1,COUNTA(Экспорт))+1,(ROW(O38)-1)/COUNTA(Экспорт)+1),\"\")","v":""},"6-2"]
[null,null,null,null,null,null,null,null,null,null,null,null,null,null,null,null,null,null,null,null,"3-1","104",0,null,null,{"$f":"IFERROR(INDEX(Экспорт,MOD(ROW(O39)-1,COUNTA(Экспорт))+1,(ROW(O39)-1)/COUNTA(Экспорт)+1),\"\")","v":""},"7-1"]
[null,null,null,null,null,null,null,null,null,null,null,null,null,null,null,null,null,null,null,null,0,"110",0,null,null,{"$f":"IFERROR(INDEX(Экспорт,MOD(ROW(O40)-1,COUNTA(Экспорт))+1,(ROW(O40)-1)/COUNTA(Экспорт)+1),\"\")","v":""},"7-2"]
[null,null,null,null,null,null,null,null,null,null,null,null,null,null,null,null,null,null,null,null,0,"113",0,null,null,{"$f":"IFERROR(INDEX(Экспорт,MOD(ROW(O41)-1,COUNTA(Экспорт))+1,(ROW(O41)-1)/COUNTA(Экспорт)+1),\"\")","v":""},"140"]
[null,null,null,null,null,null,null,null,null,null,null,null,null,null,null,null,null,null,null,null,0,"119",0,null,null,{"$f":"IFERROR(INDEX(Экспорт,MOD(ROW(O42)-1,COUNTA(Экспорт))+1,(ROW(O42)-1)/COUNTA(Экспорт)+1),\"\")","v":""},"8 д/с"]
[null,null,null,null,null,null,null,null,null,null,null,null,null,null,null,null,null,null,null,null,0,"120",0,null,null,{"$f":"IFERROR(INDEX(Экспорт,MOD(ROW(O43)-1,COUNTA(Экспорт))+1,(ROW(O43)-1)/COUNTA(Экспорт)+1),\"\")","v":""},"кол.карп"]
[null,null,null,null,null,null,null,null,null,null,null,null,null,null,null,null,null,null,null,null,0,"121",0,null,null,{"$f":"IFERROR(INDEX(Экспорт,MOD(ROW(O44)-1,COUNTA(Экспорт))+1,(ROW(O44)-1)/COUNTA(Экспорт)+1),\"\")","v":""},"кол.обв"]
[null,null,null,null,null,null,null,null,null,null,null,null,null,null,null,null,null,null,null,null,0,"125-2",0,null,null,{"$f":"IFERROR(INDEX(Экспорт,MOD(ROW(O45)-1,COUNTA(Экспорт))+1,(ROW(O45)-1)/COUNTA(Экспорт)+1),\"\")","v":""},"лаб.лун"]
[null,null,null,null,null,null,null,null,null,null,null,null,null,null,null,null,null,null,null,null,0,"128-1",0,null,null,{"$f":"IFERROR(INDEX(Экспорт,MOD(ROW(O46)-1,COUNTA(Экспорт))+1,(ROW(O46)-1)/COUNTA(Экспорт)+1),\"\")","v":""},"лаб.обв"]
[null,null,2,3,4,2,3,7,2,3,8,2,3,null,null,2,3,12,13,null,0,"128-2",0,null,null,{"$f":"IFERROR(INDEX(Экспорт,MOD(ROW(O47)-1,COUNTA(Экспорт))+1,(ROW(O47)-1)/COUNTA(Экспорт)+1),\"\")","v":""},"кол.бум в/б"]
[null,null,null,null,null,null,null,null,null,null,null,null,null,null,null,null,null,null,null,null,0,"129",0,null,null,{"$f":"IFERROR(INDEX(Экспорт,MOD(ROW(O48)-1,COUNTA(Экспорт))+1,(ROW(O48)-1)/COUNTA(Экспорт)+1),\"\")","v":""},"36"]
[null,null,null,null,null,null,null,null,null,null,null,null,null,null,null,null,null,null,null,null,0,"132",0,null,null,{"$f":"IFERROR(INDEX(Экспорт,MOD(ROW(O49)-1,COUNTA(Экспорт))+1,(ROW(O49)-1)/COUNTA(Экспорт)+1),\"\")","v":""},"113"]
[null,null,null,null,null,null,null,null,null,null,null,null,null,null,null,null,null,null,null,null,0,"135-2",0,null,null,{"$f":"IFERROR(INDEX(Экспорт,MOD(ROW(O50)-1,COUNTA(Экспорт))+1,(ROW(O50)-1)/COUNTA(Экспорт)+1),\"\")","v":""},"103-Л"]
[null,null,null,null,null,null,null,null,null,null,null,null,null,null,null,null,null,null,null,null,0,"138",null,null,null,{"$f":"IFERROR(INDEX(Экспорт,MOD(ROW(O51)-1,COUNTA(Экспорт))+1,(ROW(O51)-1)/COUNTA(Экспорт)+1),\"\")","v":""},"103-лс"]
[null,null,null,null,null,null,null,null,null,null,null,null,null,null,null,null,null,null,null,null,0,"139",null,null,null,{"$f":"IFERROR(INDEX(Экспорт,MOD(ROW(O52)-1,COUNTA(Экспорт))+1,(ROW(O52)-1)/COUNTA(Экспорт)+1),\"\")","v":""},"34-1"]
[null,null,null,null,null,null,null,null,null,null,null,null,null,null,null,null,null,null,null,null,0,"141",null,null,null,{"$f":"IFERROR(INDEX(Экспорт,MOD(ROW(O53)-1,COUNTA(Экспорт))+1,(ROW(O53)-1)/COUNTA(Экспорт)+1),\"\")","v":""},"34-2"]
[null,null,null,null,null,null,null,null,null,null,null,null,null,null,null,null,null,null,null,null,0,"295",null,null,null,{"$f":"IFERROR(INDEX(Экспорт,MOD(ROW(O54)-1,COUNTA(Экспорт))+1,(ROW(O54)-1)/COUNTA(Экспорт)+1),\"\")","v":""},"40-п"]
[null,null,null,null,null,null,null,null,null,null,null,null,null,null,null,null,null,null,null,null,0,"53-д/д",null,null,null,{"$f":"IFERROR(INDEX(Экспорт,MOD(ROW(O55)-1,COUNTA(Экспорт))+1,(ROW(O55)-1)/COUNTA(Экспорт)+1),\"\")","v":""},"43-п"]
[null,null,null,null,null,null,null,null,null,null,null,null,null,null,null,null,null,null,null,null,0,"88",null,null,null,{"$f":"IFERROR(INDEX(Экспорт,MOD(ROW(O56)-1,COUNTA(Экспорт))+1,(ROW(O56)-1)/COUNTA(Экспорт)+1),\"\")","v":""},"85-п"]
[null,null,null,null,null,null,null,null,null,null,null,null,null,null,null,null,null,null,null,null,0,"109",null,null,null,{"$f":"IFERROR(INDEX(Экспорт,MOD(ROW(O57)-1,COUNTA(Экспорт))+1,(ROW(O57)-1)/COUNTA(Экспорт)+1),\"\")","v":""},"87-1-п"]
[null,null,null,null,null,null,null,null,null,null,null,null,null,null,null,null,null,null,null,null,0,"37",null,null,null,{"$f":"IFERROR(INDEX(Экспорт,MOD(ROW(O58)-1,COUNTA(Экспорт))+1,(ROW(O58)-1)/COUNTA(Экспорт)+1),\"\")","v":""},"87-2-п"]
[null,null,null,null,null,null,null,null,null,null,null,null,null,null,null,null,null,null,null,null,0,"123",null,null,null,{"$f":"IFERROR(INDEX(Экспорт,MOD(ROW(O59)-1,COUNTA(Экспорт))+1,(ROW(O59)-1)/COUNTA(Экспорт)+1),\"\")","v":""},"90-п"]
[null,null,null,null,null,null,null,null,null,null,null,null,null,null,null,null,null,null,null,null,0,"52",null,null,null,{"$f":"IFERROR(INDEX(Экспорт,MOD(ROW(O60)-1,COUNTA(Экспорт))+1,(ROW(O60)-1)/COUNTA(Экспорт)+1),\"\")","v":""},""]
[null,null,null,null,null,null,null,null,null,null,null,null,null,null,null,null,null,null,null,null,0,"124",null,null,null,{"$f":"IFERROR(INDEX(Экспорт,MOD(ROW(O61)-1,COUNTA(Экспорт))+1,(ROW(O61)-1)/COUNTA(Экспорт)+1),\"\")","v":""},""]
[null,null,null,null,null,null,null,null,null,null,null,null,null,null,null,null,null,null,null,null,0,"83",null,null,null,{"$f":"IFERROR(INDEX(Экспорт,MOD(ROW(O62)-1,COUNTA(Экспорт))+1,(ROW(O62)-1)/COUNTA(Экспорт)+1),\"\")","v":""},""]
[null,null,null,null,null,null,null,null,null,null,null,null,null,null,null,null,null,null,null,null,0,"298",null,null,null,{"$f":"IFERROR(INDEX(Экспорт,MOD(ROW(O63)-1,COUNTA(Экспорт))+1,(ROW(O63)-1)/COUNTA(Экспорт)+1),\"\")","v":""},""]
[null,null,null,null,null,null,null,null,null,null,null,null,null,null,null,null,null,null,null,null,0,{"$f":"МарияСписок","v":"233"},null,null,null,{"$f":"IFERROR(INDEX(Экспорт,MOD(ROW(O64)-1,COUNTA(Экспорт))+1,(ROW(O64)-1)/COUNTA(Экспорт)+1),\"\")","v":""},""]
[null,null,null,null,null,null,null,null,null,null,null,null,null,null,null,null,null,null,null,null,{"$f":"Артиссписок","v":0},"104-шк",null,null,null,{"$f":"IFERROR(INDEX(Экспорт,MOD(ROW(O65)-1,COUNTA(Экспорт))+1,(ROW(O65)-1)/COUNTA(Экспорт)+1),\"\")","v":""},""]
[null,null,null,null,null,null,null,null,null,null,null,null,null,null,null,null,null,null,null,null,0,"104-буф",null,null,null,{"$f":"IFERROR(INDEX(Экспорт,MOD(ROW(O66)-1,COUNTA(Экспорт))+1,(ROW(O66)-1)/COUNTA(Экспорт)+1),\"\")","v":""},""]
[null,null,null,null,null,null,null,null,null,null,null,null,null,null,null,null,null,null,null,null,0,"1-Инт",null,null,null,{"$f":"IFERROR(INDEX(Экспорт,MOD(ROW(O67)-1,COUNTA(Экспорт))+1,(ROW(O67)-1)/COUNTA(Экспорт)+1),\"\")","v":""},""]
[null,null,null,null,null,null,null,null,null,null,null,null,null,null,null,null,null,null,null,null,0,"33-Инт",null,null,null,{"$f":"IFERROR(INDEX(Экспорт,MOD(ROW(O68)-1,COUNTA(Экспорт))+1,(ROW(O68)-1)/COUNTA(Экспорт)+1),\"\")","v":""},""]
[null,null,null,null,null,null,null,null,null,null,null,null,null,null,null,null,null,null,null,null,0,"140",null,null,null,{"$f":"IFERROR(INDEX(Экспорт,MOD(ROW(O69)-1,COUNTA(Экспорт))+1,(ROW(O69)-1)/COUNTA(Экспорт)+1),\"\")","v":""},""]
[null,null,null,null,null,null,null,null,null,null,null,null,null,null,null,null,null,null,null,null,0,"8 д/с",null,null,null,{"$f":"IFERROR(INDEX(Экспорт,MOD(ROW(O70)-1,COUNTA(Экспорт))+1,(ROW(O70)-1)/COUNTA(Экспорт)+1),\"\")","v":""},""]
[null,null,null,null,null,null,null,null,null,null,null,null,null,null,null,null,null,null,null,null,0,"кол.карп",null,null,null,{"$f":"IFERROR(INDEX(Экспорт,MOD(ROW(O71)-1,COUNTA(Экспорт))+1,(ROW(O71)-1)/COUNTA(Экспорт)+1),\"\")","v":""},""]
[null,null,null,null,null,null,null,null,null,null,null,null,null,null,null,null,null,null,null,null,0,"кол.обв",null,null,null,{"$f":"IFERROR(INDEX(Экспорт,MOD(ROW(O72)-1,COUNTA(Экспорт))+1,(ROW(O72)-1)/COUNTA(Экспорт)+1),\"\")","v":""},""]
[null,null,null,null,null,null,null,null,null,null,null,null,null,null,null,null,null,null,null,null,0,"лаб.лун",null,null,null,{"$f":"IFERROR(INDEX(Экспорт,MOD(ROW(O73)-1,COUNTA(Экспорт))+1,(ROW(O73)-1)/COUNTA(Экспорт)+1),\"\")","v":""},""]
[null,null,null,null,null,null,null,null,null,null,null,null,null,null,null,null,null,null,null,null,0,"лаб.обв",null,null,null,{"$f":"IFERROR(INDEX(Экспорт,MOD(ROW(O74)-1,COUNTA(Экспорт))+1,(ROW(O74)-1)/COUNTA(Экспорт)+1),\"\")","v":""},""]
[null,null,null,null,null,null,null,null,null,null,null,null,null,null,null,null,null,null,null,null,0,"кол.бум в/б",null,null,null,{"$f":"IFERROR(INDEX(Экспорт,MOD(ROW(O75)-1,COUNTA(Экспорт))+1,(ROW(O75)-1)/COUNTA(Экспорт)+1),\"\")","v":""},""]
[null,null,null,null,null,null,null,null,null,null,null,null,null,null,null,null,null,null,null,null,0,"кол.обв в/б",null,null,null,{"$f":"IFERROR(INDEX(Экспорт,MOD(ROW(O76)-1,COUNTA(Экспорт))+1,(ROW(O76)-1)/COUNTA(Экспорт)+1),\"\")","v":""},""]
[null,null,null,null,null,null,null,null,null,null,null,null,null,null,null,null,null,null,null,null,0,"кол.карп в/б",null,null,null,{"$f":"IFERROR(INDEX(Экспорт,MOD(ROW(O77)-1,COUNTA(Экспорт))+1,(ROW(O77)-1)/COUNTA(Экспорт)+1),\"\")","v":""},""]
[null,null,null,null,null,null,null,null,null,null,null,null,null,null,null,null,null,null,null,null,null,"34-1",null,null,null,{"$f":"IFERROR(INDEX(Экспорт,MOD(ROW(O78)-1,COUNTA(Экспорт))+1,(ROW(O78)-1)/COUNTA(Экспорт)+1),\"\")","v":""},""]
[null,null,null,null,null,null,null,null,null,null,null,null,null,null,null,null,null,null,null,null,null,"34-2",null,null,null,{"$f":"IFERROR(INDEX(Экспорт,MOD(ROW(O79)-1,COUNTA(Экспорт))+1,(ROW(O79)-1)/COUNTA(Экспорт)+1),\"\")","v":""},""]
[null,null,null,null,null,null,null,null,null,null,null,null,null,null,null,null,null,null,null,null,null,"40-п",null,null,null,{"$f":"IFERROR(INDEX(Экспорт,MOD(ROW(O80)-1,COUNTA(Экспорт))+1,(ROW(O80)-1)/COUNTA(Экспорт)+1),\"\")","v":""},""]
[null,null,null,null,null,null,null,null,null,null,null,null,null,null,null,null,null,null,null,null,null,"43-п",null,null,null,{"$f":"IFERROR(INDEX(Экспорт,MOD(ROW(O81)-1,COUNTA(Экспорт))+1,(ROW(O81)-1)/COUNTA(Экспорт)+1),\"\")","v":""},""]
[null,null,null,null,null,null,null,null,null,null,null,null,null,null,null,null,null,null,null,null,null,"85-п",null,null,null,{"$f":"IFERROR(INDEX(Экспорт,MOD(ROW(O82)-1,COUNTA(Экспорт))+1,(ROW(O82)-1)/COUNTA(Экспорт)+1),\"\")","v":""},""]
[null,null,null,null,null,null,null,null,null,null,null,null,null,null,null,null,null,null,null,null,null,"87-1-п",null,null,null,{"$f":"IFERROR(INDEX(Экспорт,MOD(ROW(O83)-1,COUNTA(Экспорт))+1,(ROW(O83)-1)/COUNTA(Экспорт)+1),\"\")","v":""},""]
[null,null,null,null,null,null,null,null,null,null,null,null,null,null,null,null,null,null,null,null,null,"87-2-п",null,null,null,{"$f":"IFERROR(INDEX(Экспорт,MOD(ROW(O84)-1,COUNTA(Экспорт))+1,(ROW(O84)-1)/COUNTA(Экспорт)+1),\"\")","v":""},""]
[null,null,null,null,null,null,null,null,null,null,null,null,null,null,null,null,null,null,null,null,null,"90-п",null,null,null,{"$f":"IFERROR(INDEX(Экспорт,MOD(ROW(O85)-1,COUNTA(Экспорт))+1,(ROW(O85)-1)/COUNTA(Экспорт)+1),\"\")","v":""},""]
[null,null,null,null,null,null,null,null,null,null,null,null,null,null,null,null,null,null,null,null,null,20,null,null,null,{"$f":"IFERROR(INDEX(Экспорт,MOD(ROW(O86)-1,COUNTA(Экспорт))+1,(ROW(O86)-1)/COUNTA(Экспорт)+1),\"\")","v":""},""]
[null,null,null,null,null,null,null,null,null,null,null,null,null,null,null,null,null,null,null,null,null,"103-Л",null,null,null,{"$f":"IFERROR(INDEX(Экспорт,MOD(ROW(O87)-1,COUNTA(Экспорт))+1,(ROW(O87)-1)/COUNTA(Экспорт)+1),\"\")","v":""},""]
[null,null,null,null,null,null,null,null,null,null,null,null,null,null,null,null,null,null,null,null,null,"103-лс",null,null,null,{"$f":"IFERROR(INDEX(Экспорт,MOD(ROW(O88)-1,COUNTA(Экспорт))+1,(ROW(O88)-1)/COUNTA(Экспорт)+1),\"\")","v":""},""]
[null,null,null,null,null,null,null,null,null,null,null,null,null,null,null,null,null,null,null,null,null,0,null,null,null,{"$f":"IFERROR(INDEX(Экспорт,MOD(ROW(O89)-1,COUNTA(Экспорт))+1,(ROW(O89)-1)/COUNTA(Экспорт)+1),\"\")","v":""},""]
[null,null,null,null,null,null,null,null,null,null,null,null,null,null,null,null,null,null,null,null,null,0,null,null,null,{"$f":"IFERROR(INDEX(Экспорт,MOD(ROW(O90)-1,COUNTA(Экспорт))+1,(ROW(O90)-1)/COUNTA(Экспорт)+1),\"\")","v":""},""]
[null,null,null,null,null,null,null,null,null,null,null,null,null,null,null,null,null,null,null,null,null,0,null,null,null,{"$f":"IFERROR(INDEX(Экспорт,MOD(ROW(O91)-1,COUNTA(Экспорт))+1,(ROW(O91)-1)/COUNTA(Экспорт)+1),\"\")","v":""},""]
[null,null,null,null,null,null,null,null,null,null,null,null,null,null,null,null,null,null,null,null,null,0,null,null,null,{"$f":"IFERROR(INDEX(Экспорт,MOD(ROW(O92)-1,COUNTA(Экспорт))+1,(ROW(O92)-1)/COUNTA(Экспорт)+1),\"\")","v":""},""]
[null,null,null,null,null,null,null,null,null,null,null,null,null,null,null,null,null,null,null,null,null,0,null,null,null,{"$f":"IFERROR(INDEX(Экспорт,MOD(ROW(O93)-1,COUNTA(Экспорт))+1,(ROW(O93)-1)/COUNTA(Экспорт)+1),\"\")","v":""},""]
[null,null,null,null,null,null,null,null,null,null,null,null,null,null,null,null,null,null,null,null,null,0,null,null,null,{"$f":"IFERROR(INDEX(Экспорт,MOD(ROW(O94)-1,COUNTA(Экспорт))+1,(ROW(O94)-1)/COUNTA(Экспорт)+1),\"\")","v":""},""]
[null,null,null,null,null,null,null,null,null,null,null,null,null,null,null,null,null,null,null,null,null,0,null,null,null,{"$f":"IFERROR(INDEX(Экспорт,MOD(ROW(O95)-1,COUNTA(Экспорт))+1,(ROW(O95)-1)/COUNTA(Экспорт)+1),\"\")","v":""},""]
[null,null,null,null,null,null,null,null,null,null,null,null,null,null,null,null,null,null,null,null,null,{"$f":"МарияСписок","v":0},null,null,null,{"$f":"IFERROR(INDEX(Экспорт,MOD(ROW(O96)-1,COUNTA(Экспорт))+1,(ROW(O96)-1)/COUNTA(Экспорт)+1),\"\")","v":""},""]
[null,null,null,null,null,null,null,null,null,null,null,null,null,null,null,null,null,null,null,null,null,0,null,null,null,{"$f":"IFERROR(INDEX(Экспорт,MOD(ROW(O97)-1,COUNTA(Экспорт))+1,(ROW(O97)-1)/COUNTA(Экспорт)+1),\"\")","v":""},""]
[null,null,null,null,null,null,null,null,null,null,null,null,null,null,null,null,null,null,null,null,null,0,null,null,null,{"$f":"IFERROR(INDEX(Экспорт,MOD(ROW(O98)-1,COUNTA(Экспорт))+1,(ROW(O98)-1)/COUNTA(Экспорт)+1),\"\")","v":""},""]
[null,null,null,null,null,null,null,null,null,null,null,null,null,null,null,null,null,null,null,null,null,0,null,null,null,{"$f":"IFERROR(INDEX(Экспорт,MOD(ROW(O99)-1,COUNTA(Экспорт))+1,(ROW(O99)-1)/COUNTA(Экспорт)+1),\"\")","v":""},""]
[null,null,null,null,null,null,null,null,null,null,null,null,null,null,null,null,null,null,null,null,null,0,null,null,null,{"$f":"IFERROR(INDEX(Экспорт,MOD(ROW(O100)-1,COUNTA(Экспорт))+1,(ROW(O100)-1)/COUNTA(Экспорт)+1),\"\")","v":""},""]
[null,null,null,null,null,null,null,null,null,null,null,null,null,null,null,null,null,null,null,null,null,0,null,null,null,{"$f":"IFERROR(INDEX(Экспорт,MOD(ROW(O101)-1,COUNTA(Экспорт))+1,(ROW(O101)-1)/COUNTA(Экспорт)+1),\"\")","v":""},""]
[null,null,null,null,null,null,null,null,null,null,null,null,null,null,null,null,null,null,null,null,null,0,null,null,null,{"$f":"IFERROR(INDEX(Экспорт,MOD(ROW(O102)-1,COUNTA(Экспорт))+1,(ROW(O102)-1)/COUNTA(Экспорт)+1),\"\")","v":""},""]
[null,null,null,null,null,null,null,null,null,null,null,null,null,null,null,null,null,null,null,null,null,0,null,null,null,{"$f":"IFERROR(INDEX(Экспорт,MOD(ROW(O103)-1,COUNTA(Экспорт))+1,(ROW(O103)-1)/COUNTA(Экспорт)+1),\"\")","v":""},""]
[null,null,null,null,null,null,null,null,null,null,null,null,null,null,null,null,null,null,null,null,null,0,null,null,null,{"$f":"IFERROR(INDEX(Экспорт,MOD(ROW(O104)-1,COUNTA(Экспорт))+1,(ROW(O104)-1)/COUNTA(Экспорт)+1),\"\")","v":""},""]
[null,null,null,null,null,null,null,null,null,null,null,null,null,null,null,null,null,null,null,null,null,0,null,null,null,{"$f":"IFERROR(INDEX(Экспорт,MOD(ROW(O105)-1,COUNTA(Экспорт))+1,(ROW(O105)-1)/COUNTA(Экспорт)+1),\"\")","v":""},""]
[null,null,null,null,null,null,null,null,null,null,null,null,null,null,null,null,null,null,null,null,null,0,null,null,null,{"$f":"IFERROR(INDEX(Экспорт,MOD(ROW(O106)-1,COUNTA(Экспорт))+1,(ROW(O106)-1)/COUNTA(Экспорт)+1),\"\")","v":""},""]
[null,null,null,null,null,null,null,null,null,null,null,null,null,null,null,null,null,null,null,null,null,0,null,null,null,{"$f":"IFERROR(INDEX(Экспорт,MOD(ROW(O107)-1,COUNTA(Экспорт))+1,(ROW(O107)-1)/COUNTA(Экспорт)+1),\"\")","v":""},""]
[null,null,null,null,null,null,null,null,null,null,null,null,null,null,null,null,null,null,null,null,null,0,null,null,null,{"$f":"IFERROR(INDEX(Экспорт,MOD(ROW(O108)-1,COUNTA(Экспорт))+1,(ROW(O108)-1)/COUNTA(Экспорт)+1),\"\")","v":""},""]
[null,null,null,null,null,null,null,null,null,null,null,null,null,null,null,null,null,null,null,null,null,0,null,null,null,{"$f":"IFERROR(INDEX(Экспорт,MOD(ROW(O109)-1,COUNTA(Экспорт))+1,(ROW(O109)-1)/COUNTA(Экспорт)+1),\"\")","v":""},""]
[null,null,null,null,null,null,null,null,null,null,null,null,null,null,null,null,null,null,null,null,null,0,null,null,null,{"$f":"IFERROR(INDEX(Экспорт,MOD(ROW(O110)-1,COUNTA(Экспорт))+1,(ROW(O110)-1)/COUNTA(Экспорт)+1),\"\")","v":""},""]
[null,null,null,null,null,null,null,null,null,null,null,null,null,null,null,null,null,null,null,null,null,0,null,null,null,{"$f":"IFERROR(INDEX(Экспорт,MOD(ROW(O111)-1,COUNTA(Экспорт))+1,(ROW(O111)-1)/COUNTA(Экспорт)+1),\"\")","v":""},""]
[null,null,null,null,null,null,null,null,null,null,null,null,null,null,null,null,null,null,null,null,null,0,null,null,null,{"$f":"IFERROR(INDEX(Экспорт,MOD(ROW(O112)-1,COUNTA(Экспорт))+1,(ROW(O112)-1)/COUNTA(Экспорт)+1),\"\")","v":""},""]
[null,null,null,null,null,null,null,null,null,null,null,null,null,null,null,null,null,null,null,null,null,0,null,null,null,{"$f":"IFERROR(INDEX(Экспорт,MOD(ROW(O113)-1,COUNTA(Экспорт))+1,(ROW(O113)-1)/COUNTA(Экспорт)+1),\"\")","v":""},""]
[null,null,null,null,null,null,null,null,null,null,null,null,null,null,null,null,null,null,null,null,null,0,null,null,null,{"$f":"IFERROR(INDEX(Экспорт,MOD(ROW(O114)-1,COUNTA(Экспорт))+1,(ROW(O114)-1)/COUNTA(Экспорт)+1),\"\")","v":""},""]
[null,null,null,null,null,null,null,null,null,null,null,null,null,null,null,null,null,null,null,null,null,0,null,null,null,{"$f":"IFERROR(INDEX(Экспорт,MOD(ROW(O115)-1,COUNTA(Экспорт))+1,(ROW(O115)-1)/COUNTA(Экспорт)+1),\"\")","v":""},""]
[null,null,null,null,null,null,null,null,null,null,null,null,null,null,null,null,null,null,null,null,null,0,null,null,null,{"$f":"IFERROR(INDEX(Экспорт,MOD(ROW(O116)-1,COUNTA(Экспорт))+1,(ROW(O116)-1)/COUNTA(Экспорт)+1),\"\")","v":""},""]
[null,null,null,null,null,null,null,null,null,null,null,null,null,null,null,null,null,null,null,null,null,0,null,null,null,{"$f":"IFERROR(INDEX(Экспорт,MOD(ROW(O117)-1,COUNTA(Экспорт))+1,(ROW(O117)-1)/COUNTA(Экспорт)+1),\"\")","v":""},""]
[null,null,null,null,null,null,null,null,null,null,null,null,null,null,null,null,null,null,null,null,null,0,null,null,null,{"$f":"IFERROR(INDEX(Экспорт,MOD(ROW(O118)-1,COUNTA(Экспорт))+1,(ROW(O118)-1)/COUNTA(Экспорт)+1),\"\")","v":""},""]
[null,null,null,null,null,null,null,null,null,null,null,null,null,null,null,null,null,null,null,null,null,0,null,null,null,{"$f":"IFERROR(INDEX(Экспорт,MOD(ROW(O119)-1,COUNTA(Экспорт))+1,(ROW(O119)-1)/COUNTA(Экспорт)+1),\"\")","v":""},""]
[null,null,null,null,null,null,null,null,null,null,null,null,null,null,null,null,null,null,null,null,null,0,null,null,null,{"$f":"IFERROR(INDEX(Экспорт,MOD(ROW(O120)-1,COUNTA(Экспорт))+1,(ROW(O120)-1)/COUNTA(Экспорт)+1),\"\")","v":""},""]
[null,null,null,null,null,null,null,null,null,null,null,null,null,null,null,null,null,null,null,null,null,0,null,null,null,{"$f":"IFERROR(INDEX(Экспорт,MOD(ROW(O121)-1,COUNTA(Экспорт))+1,(ROW(O121)-1)/COUNTA(Экспорт)+1),\"\")","v":""},""]
[null,null,null,null,null,null,null,null,null,null,null,null,null,null,null,null,null,null,null,null,null,0,null,null,null,{"$f":"IFERROR(INDEX(Экспорт,MOD(ROW(O122)-1,COUNTA(Экспорт))+1,(ROW(O122)-1)/COUNTA(Экспорт)+1),\"\")","v":""},""]
[null,null,null,null,null,null,null,null,null,null,null,null,null,null,null,null,null,null,null,null,null,0,null,null,null,{"$f":"IFERROR(INDEX(Экспорт,MOD(ROW(O123)-1,COUNTA(Экспорт))+1,(ROW(O123)-1)/COUNTA(Экспорт)+1),\"\")","v":""},""]
[null,null,null,null,null,null,null,null,null,null,null,null,null,null,null,null,null,null,null,null,null,0,null,null,null,{"$f":"IFERROR(INDEX(Экспорт,MOD(ROW(O124)-1,COUNTA(Экспорт))+1,(ROW(O124)-1)/COUNTA(Экспорт)+1),\"\")","v":""},""]
[null,null,null,null,null,null,null,null,null,null,null,null,null,null,null,null,null,null,null,null,null,0,null,null,null,{"$f":"IFERROR(INDEX(Экспорт,MOD(ROW(O125)-1,COUNTA(Экспорт))+1,(ROW(O125)-1)/COUNTA(Экспорт)+1),\"\")","v":""},""]
[null,null,null,null,null,null,null,null,null,null,null,null,null,null,null,null,null,null,null,null,null,0,null,null,null,{"$f":"IFERROR(INDEX(Экспорт,MOD(ROW(O126)-1,COUNTA(Экспорт))+1,(ROW(O126)-1)/COUNTA(Экспорт)+1),\"\")","v":""},""]
[null,null,null,null,null,null,null,null,null,null,null,null,null,null,null,null,null,null,null,null,null,0,null,null,null,{"$f":"IFERROR(INDEX(Экспорт,MOD(ROW(O127)-1,COUNTA(Экспорт))+1,(ROW(O127)-1)/COUNTA(Экспорт)+1),\"\")","v":""},""]
[null,null,null,null,null,null,null,null,null,null,null,null,null,null,null,null,null,null,null,null,null,{"$f":"МарияСписок","v":0},null,null,null,{"$f":"IFERROR(INDEX(Экспорт,MOD(ROW(O128)-1,COUNTA(Экспорт))+1,(ROW(O128)-1)/COUNTA(Экспорт)+1),\"\")","v":""},""]
[null,null,null,null,null,null,null,null,null,null,null,null,null,null,null,null,null,null,null,null,null,0,null,null,null,{"$f":"IFERROR(INDEX(Экспорт,MOD(ROW(O129)-1,COUNTA(Экспорт))+1,(ROW(O129)-1)/COUNTA(Экспорт)+1),\"\")","v":""},""]
[null,null,null,null,null,null,null,null,null,null,null,null,null,null,null,null,null,null,null,null,null,0,null,null,null,{"$f":"IFERROR(INDEX(Экспорт,MOD(ROW(O130)-1,COUNTA(Экспорт))+1,(ROW(O130)-1)/COUNTA(Экспорт)+1),\"\")","v":""},""]
[null,null,null,null,null,null,null,null,null,null,null,null,null,null,null,null,null,null,null,null,null,0,null,null,null,{"$f":"IFERROR(INDEX(Экспорт,MOD(ROW(O131)-1,COUNTA(Экспорт))+1,(ROW(O131)-1)/COUNTA(Экспорт)+1),\"\")","v":""},""]
[null,null,null,null,null,null,null,null,null,null,null,null,null,null,null,null,null,null,null,null,null,0,null,null,null,{"$f":"IFERROR(INDEX(Экспорт,MOD(ROW(O132)-1,COUNTA(Экспорт))+1,(ROW(O132)-1)/COUNTA(Экспорт)+1),\"\")","v":""},""]
[null,null,null,null,null,null,null,null,null,null,null,null,null,null,null,null,null,null,null,null,null,0,null,null,null,{"$f":"IFERROR(INDEX(Экспорт,MOD(ROW(O133)-1,COUNTA(Экспорт))+1,(ROW(O133)-1)/COUNTA(Экспорт)+1),\"\")","v":""},""]
[null,null,null,null,null,null,null,null,null,null,null,null,null,null,null,null,null,null,null,null,null,0,null,null,null,{"$f":"IFERROR(INDEX(Экспорт,MOD(ROW(O134)-1,COUNTA(Экспорт))+1,(ROW(O134)-1)/COUNTA(Экспорт)+1),\"\")","v":""},""]
[null,null,null,null,null,null,null,null,null,null,null,null,null,null,null,null,null,null,null,null,null,0,null,null,null,{"$f":"IFERROR(INDEX(Экспорт,MOD(ROW(O135)-1,COUNTA(Экспорт))+1,(ROW(O135)-1)/COUNTA(Экспорт)+1),\"\")","v":""},""]
[null,null,null,null,null,null,null,null,null,null,null,null,null,null,null,null,null,null,null,null,null,0,null,null,null,{"$f":"IFERROR(INDEX(Экспорт,MOD(ROW(O136)-1,COUNTA(Экспорт))+1,(ROW(O136)-1)/COUNTA(Экспорт)+1),\"\")","v":""},""]
[null,null,null,null,null,null,null,null,null,null,null,null,null,null,null,null,null,null,null,null,null,0,null,null,null,{"$f":"IFERROR(INDEX(Экспорт,MOD(ROW(O137)-1,COUNTA(Экспорт))+1,(ROW(O137)-1)/COUNTA(Экспорт)+1),\"\")","v":""},""]
[null,null,null,null,null,null,null,null,null,null,null,null,null,null,null,null,null,null,null,null,null,0,null,null,null,{"$f":"IFERROR(INDEX(Экспорт,MOD(ROW(O138)-1,COUNTA(Экспорт))+1,(ROW(O138)-1)/COUNTA(Экспорт)+1),\"\")","v":""},""]
[null,null,null,null,null,null,null,null,null,null,null,null,null,null,null,null,null,null,null,null,null,0,null,null,null,{"$f":"IFERROR(INDEX(Экспорт,MOD(ROW(O139)-1,COUNTA(Экспорт))+1,(ROW(O139)-1)/COUNTA(Экспорт)+1),\"\")","v":""},""]
[null,null,null,null,null,null,null,null,null,null,null,null,null,null,null,null,null,null,null,null,null,0,null,null,null,{"$f":"IFERROR(INDEX(Экспорт,MOD(ROW(O140)-1,COUNTA(Экспорт))+1,(ROW(O140)-1)/COUNTA(Экспорт)+1),\"\")","v":""},""]
[null,null,null,null,null,null,null,null,null,null,null,null,null,null,null,null,null,null,null,null,null,0,null,null,null,{"$f":"IFERROR(INDEX(Экспорт,MOD(ROW(O141)-1,COUNTA(Экспорт))+1,(ROW(O141)-1)/COUNTA(Экспорт)+1),\"\")","v":""},""]
[null,null,null,null,null,null,null,null,null,null,null,null,null,null,null,null,null,null,null,null,null,0,null,null,null,{"$f":"IFERROR(INDEX(Экспорт,MOD(ROW(O142)-1,COUNTA(Экспорт))+1,(ROW(O142)-1)/COUNTA(Экспорт)+1),\"\")","v":""},""]
[null,null,null,null,null,null,null,null,null,null,null,null,null,null,null,null,null,null,null,null,null,0,null,null,null,{"$f":"IFERROR(INDEX(Экспорт,MOD(ROW(O143)-1,COUNTA(Экспорт))+1,(ROW(O143)-1)/COUNTA(Экспорт)+1),\"\")","v":""}]
[null,null,null,null,null,null,null,null,null,null,null,null,null,null,null,null,null,null,null,null,null,0,null,null,null,{"$f":"IFERROR(INDEX(Экспорт,MOD(ROW(O144)-1,COUNTA(Экспорт))+1,(ROW(O144)-1)/COUNTA(Экспорт)+1),\"\")","v":""}]
[null,null,null,null,null,null,null,null,null,null,null,null,null,null,null,null,null,null,null,null,null,0,null,null,null,{"$f":"IFERROR(INDEX(Экспорт,MOD(ROW(O145)-1,COUNTA(Экспорт))+1,(ROW(O145)-1)/COUNTA(Экспорт)+1),\"\")","v":""}]
[null,null,null,null,null,null,null,null,null,null,null,null,null,null,null,null,null,null,null,null,null,0,null,null,null,{"$f":"IFERROR(INDEX(Экспорт,MOD(ROW(O146)-1,COUNTA(Экспорт))+1,(ROW(O146)-1)/COUNTA(Экспорт)+1),\"\")","v":""}]
[null,null,null,null,null,null,null,null,null,null,null,null,null,null,null,null,null,null,null,null,null,0,null,null,null,{"$f":"IFERROR(INDEX(Экспорт,MOD(ROW(O147)-1,COUNTA(Экспорт))+1,(ROW(O147)-1)/COUNTA(Экспорт)+1),\"\")","v":""}]
[null,null,null,null,null,null,null,null,null,null,null,null,null,null,null,null,null,null,null,null,null,0,null,null,null,{"$f":"IFERROR(INDEX(Экспорт,MOD(ROW(O148)-1,COUNTA(Экспорт))+1,(ROW(O148)-1)/COUNTA(Экспорт)+1),\"\")","v":""}]
[null,null,null,null,null,null,null,null,null,null,null,null,null,null,null,null,null,null,null,null,null,0,null,null,null,{"$f":"IFERROR(INDEX(Экспорт,MOD(ROW(O149)-1,COUNTA(Экспорт))+1,(ROW(O149)-1)/COUNTA(Экспорт)+1),\"\")","v":""}]
[null,null,null,null,null,null,null,null,null,null,null,null,null,null,null,null,null,null,null,null,null,0,null,null,null,{"$f":"IFERROR(INDEX(Экспорт,MOD(ROW(O150)-1,COUNTA(Экспорт))+1,(ROW(O150)-1)/COUNTA(Экспорт)+1),\"\")","v":""}]
[null,null,null,null,null,null,null,null,null,null,null,null,null,null,null,null,null,null,null,null,null,0,null,null,null,{"$f":"IFERROR(INDEX(Экспорт,MOD(ROW(O151)-1,COUNTA(Экспорт))+1,(ROW(O151)-1)/COUNTA(Экспорт)+1),\"\")","v":""}]
[null,null,null,null,null,null,null,null,null,null,null,null,null,null,null,null,null,null,null,null,null,0,null,null,null,{"$f":"IFERROR(INDEX(Экспорт,MOD(ROW(O152)-1,COUNTA(Экспорт))+1,(ROW(O152)-1)/COUNTA(Экспорт)+1),\"\")","v":""}]
[null,null,null,null,null,null,null,null,null,null,null,null,null,null,null,null,null,null,null,null,null,0,null,null,null,{"$f":"IFERROR(INDEX(Экспорт,MOD(ROW(O153)-1,COUNTA(Экспорт))+1,(ROW(O153)-1)/COUNTA(Экспорт)+1),\"\")","v":""}]
[null,null,null,null,null,null,null,null,null,null,null,null,null,null,null,null,null,null,null,null,null,0,null,null,null,{"$f":"IFERROR(INDEX(Экспорт,MOD(ROW(O154)-1,COUNTA(Экспорт))+1,(ROW(O154)-1)/COUNTA(Экспорт)+1),\"\")","v":""}]
[null,null,null,null,null,null,null,null,null,null,null,null,null,null,null,null,null,null,null,null,null,0,null,null,null,{"$f":"IFERROR(INDEX(Экспорт,MOD(ROW(O155)-1,COUNTA(Экспорт))+1,(ROW(O155)-1)/COUNTA(Экспорт)+1),\"\")","v":""}]
[null,null,null,null,null,null,null,null,null,null,null,null,null,null,null,null,null,null,null,null,null,0,null,null,null,{"$f":"IFERROR(INDEX(Экспорт,MOD(ROW(O156)-1,COUNTA(Экспорт))+1,(ROW(O156)-1)/COUNTA(Экспорт)+1),\"\")","v":""}]
[null,null,null,null,null,null,null,null,null,null,null,null,null,null,null,null,null,null,null,null,null,0,null,null,null,{"$f":"IFERROR(INDEX(Экспорт,MOD(ROW(O157)-1,COUNTA(Экспорт))+1,(ROW(O157)-1)/COUNTA(Экспорт)+1),\"\")","v":""}]
[null,null,null,null,null,null,null,null,null,null,null,null,null,null,null,null,null,null,null,null,null,0,null,null,null,{"$f":"IFERROR(INDEX(Экспорт,MOD(ROW(O158)-1,COUNTA(Экспорт))+1,(ROW(O158)-1)/COUNTA(Экспорт)+1),\"\")","v":""}]
[null,null,null,null,null,null,null,null,null,null,null,null,null,null,null,null,null,null,null,null,null,0,null,null,null,{"$f":"IFERROR(INDEX(Экспорт,MOD(ROW(O159)-1,COUNTA(Экспорт))+1,(ROW(O159)-1)/COUNTA(Экспорт)+1),\"\")","v":""}]
[null,null,null,null,null,null,null,null,null,null,null,null,null,null,null,null,null,null,null,null,null,{"$f":"МарияСписок","v":0},null,null,null,{"$f":"IFERROR(INDEX(Экспорт,MOD(ROW(O160)-1,COUNTA(Экспорт))+1,(ROW(O160)-1)/COUNTA(Экспорт)+1),\"\")","v":""}]
[null,null,null,null,null,null,null,null,null,null,null,null,null,null,null,null,null,null,null,null,null,0,null,null,null,{"$f":"IFERROR(INDEX(Экспорт,MOD(ROW(O161)-1,COUNTA(Экспорт))+1,(ROW(O161)-1)/COUNTA(Экспорт)+1),\"\")","v":""}]
[null,null,null,null,null,null,null,null,null,null,null,null,null,null,null,null,null,null,null,null,null,0,null,null,null,{"$f":"IFERROR(INDEX(Экспорт,MOD(ROW(O162)-1,COUNTA(Экспорт))+1,(ROW(O162)-1)/COUNTA(Экспорт)+1),\"\")","v":""}]
[null,null,null,null,null,null,null,null,null,null,null,null,null,null,null,null,null,null,null,null,null,0,null,null,null,{"$f":"IFERROR(INDEX(Экспорт,MOD(ROW(O163)-1,COUNTA(Экспорт))+1,(ROW(O163)-1)/COUNTA(Экспорт)+1),\"\")","v":""}]
[null,null,null,null,null,null,null,null,null,null,null,null,null,null,null,null,null,null,null,null,null,0,null,null,null,{"$f":"IFERROR(INDEX(Экспорт,MOD(ROW(O164)-1,COUNTA(Экспорт))+1,(ROW(O164)-1)/COUNTA(Экспорт)+1),\"\")","v":""}]
[null,null,null,null,null,null,null,null,null,null,null,null,null,null,null,null,null,null,null,null,null,0,null,null,null,{"$f":"IFERROR(INDEX(Экспорт,MOD(ROW(O165)-1,COUNTA(Экспорт))+1,(ROW(O165)-1)/COUNTA(Экспорт)+1),\"\")","v":""}]
[null,null,null,null,null,null,null,null,null,null,null,null,null,null,null,null,null,null,null,null,null,0,null,null,null,{"$f":"IFERROR(INDEX(Экспорт,MOD(ROW(O166)-1,COUNTA(Экспорт))+1,(ROW(O166)-1)/COUNTA(Экспорт)+1),\"\")","v":""}]
[null,null,null,null,null,null,null,null,null,null,null,null,null,null,null,null,null,null,null,null,null,0,null,null,null,{"$f":"IFERROR(INDEX(Экспорт,MOD(ROW(O167)-1,COUNTA(Экспорт))+1,(ROW(O167)-1)/COUNTA(Экспорт)+1),\"\")","v":""}]
[null,null,null,null,null,null,null,null,null,null,null,null,null,null,null,null,null,null,null,null,null,0,null,null,null,{"$f":"IFERROR(INDEX(Экспорт,MOD(ROW(O168)-1,COUNTA(Экспорт))+1,(ROW(O168)-1)/COUNTA(Экспорт)+1),\"\")","v":""}]
[null,null,null,null,null,null,null,null,null,null,null,null,null,null,null,null,null,null,null,null,null,0,null,null,null,{"$f":"IFERROR(INDEX(Экспорт,MOD(ROW(O169)-1,COUNTA(Экспорт))+1,(ROW(O169)-1)/COUNTA(Экспорт)+1),\"\")","v":""}]
[null,null,null,null,null,null,null,null,null,null,null,null,null,null,null,null,null,null,null,null,null,0]